Department Family,Entity,Date,Expense Type,Expense area,Supplier,Transaction Number,Amount,VAT registration Number
Department of Health,Salisbury NHS Foundation Trust,25-Aug-17,BLDG STRUCTURES MAIN CONTR,Capital Projects,FOREMANS RELOCATABLE BUILDING SYSTEMS LTD,929501067-3,123075.01,
Department of Health,Salisbury NHS Foundation Trust,25-Aug-17,BLDG STRUCTURES MAIN CONTR,Capital Projects,FOREMANS RELOCATABLE BUILDING SYSTEMS LTD,929501067-3,26099.99,
Department of Health,Salisbury NHS Foundation Trust,25-Aug-17,BLDG STRUCTURES MAIN CONTR,Capital Projects,FOREMANS RELOCATABLE BUILDING SYSTEMS LTD,929501067-3,24615,
Department of Health,Salisbury NHS Foundation Trust,25-Aug-17,BLDG STRUCTURES MAIN CONTR,Capital Projects,FOREMANS RELOCATABLE BUILDING SYSTEMS LTD,929501067-3,5220,
Department of Health,Salisbury NHS Foundation Trust,18-Aug-17,HARD/SOFTWARE-COMPUTER SOFTWARE  SPECIALISED BESPOKE,Corporate - Finance & Procurement,GENESIS AUTOMATION UK LIMITED,68,40000,
Department of Health,Salisbury NHS Foundation Trust,18-Aug-17,HARD/SOFTWARE-COMPUTER SOFTWARE  SPECIALISED BESPOKE,Corporate - Finance & Procurement,GENESIS AUTOMATION UK LIMITED,68,7875,
Department of Health,Salisbury NHS Foundation Trust,18-Aug-17,HARD/SOFTWARE-COMPUTER SOFTWARE  SPECIALISED BESPOKE,Corporate - Finance & Procurement,GENESIS AUTOMATION UK LIMITED,68,30375,
Department of Health,Salisbury NHS Foundation Trust,18-Aug-17,HARD/SOFTWARE-COMPUTER SOFTWARE  SPECIALISED BESPOKE,Corporate - Finance & Procurement,GENESIS AUTOMATION UK LIMITED,68,8000,
Department of Health,Salisbury NHS Foundation Trust,18-Aug-17,HARD/SOFTWARE-COMPUTER SOFTWARE  SPECIALISED BESPOKE,Corporate - Finance & Procurement,GENESIS AUTOMATION UK LIMITED,68,1575,
Department of Health,Salisbury NHS Foundation Trust,18-Aug-17,HARD/SOFTWARE-COMPUTER SOFTWARE  SPECIALISED BESPOKE,Corporate - Finance & Procurement,GENESIS AUTOMATION UK LIMITED,68,6075,
Department of Health,Salisbury NHS Foundation Trust,18-Aug-17,HARD/SOFTWARE-COMPUTER SOFTWARE  SPECIALISED BESPOKE,Corporate - Finance & Procurement,GENESIS AUTOMATION UK LIMITED,68,40000,
Department of Health,Salisbury NHS Foundation Trust,18-Aug-17,HARD/SOFTWARE-COMPUTER SOFTWARE  SPECIALISED BESPOKE,Corporate - Finance & Procurement,GENESIS AUTOMATION UK LIMITED,68,7875,
Department of Health,Salisbury NHS Foundation Trust,18-Aug-17,HARD/SOFTWARE-COMPUTER SOFTWARE  SPECIALISED BESPOKE,Corporate - Finance & Procurement,GENESIS AUTOMATION UK LIMITED,68,30375,
Department of Health,Salisbury NHS Foundation Trust,11-Aug-17,RATES,Corporate - ETS,WILTSHIRE COUNCIL,AUG 17 NDR,114356,
Department of Health,Salisbury NHS Foundation Trust,04-Aug-17,BLDG STRUCTURES MAIN CONTR,Capital Projects,FOREMANS RELOCATABLE BUILDING SYSTEMS LTD,929501067-2,224262,
Department of Health,Salisbury NHS Foundation Trust,04-Aug-17,BLDG STRUCTURES MAIN CONTR,Capital Projects,FOREMANS RELOCATABLE BUILDING SYSTEMS LTD,929501067-2,44852.4,
Department of Health,Salisbury NHS Foundation Trust,25-Aug-17,LAB EQUIP-LABORATORY APPARATUS,Clinical Support,BECKMAN COULTER,1384768,28317.66,
Department of Health,Salisbury NHS Foundation Trust,25-Aug-17,BLDG STRUCTURES MAIN CONTR,Capital Projects,FOREMANS RELOCATABLE BUILDING SYSTEMS LTD,929501341,44850,
Department of Health,Salisbury NHS Foundation Trust,25-Aug-17,BLDG STRUCTURES MAIN CONTR,Capital Projects,FOREMANS RELOCATABLE BUILDING SYSTEMS LTD,929501341,8970,
Department of Health,Salisbury NHS Foundation Trust,18-Aug-17,DRESSINGS - PRE STERILE,Corporate - Finance & Procurement,HAMPSHIRE COSMETICS,91444,10819.38,
Department of Health,Salisbury NHS Foundation Trust,18-Aug-17,DRESSINGS - PRE STERILE,Corporate - Finance & Procurement,HAMPSHIRE COSMETICS,91444,13516.62,
Department of Health,Salisbury NHS Foundation Trust,18-Aug-17,LAB EQUIP-LABORATORY APPARATUS,Clinical Support,BECKMAN COULTER,1384797,97491.82,
Department of Health,Salisbury NHS Foundation Trust,04-Aug-17,DRUGS,Clinical Support,NOVARTIS PHARMACEUTICALS UK LTD,91811950,21028.73,
Department of Health,Salisbury NHS Foundation Trust,04-Aug-17,DRUGS,Clinical Support,NOVARTIS PHARMACEUTICALS UK LTD,91811950,4205.75,
Department of Health,Salisbury NHS Foundation Trust,04-Aug-17,HARD/SOFTWARE-COMPUTER SOFTWARE  OFF THE SHELF APPLICATIONS,Corporate - Finance & Procurement,GHX UK LTD,715-00000544,17000,
Department of Health,Salisbury NHS Foundation Trust,04-Aug-17,HARD/SOFTWARE-COMPUTER SOFTWARE  OFF THE SHELF APPLICATIONS,Corporate - Finance & Procurement,GHX UK LTD,715-00000544,5416,
Department of Health,Salisbury NHS Foundation Trust,04-Aug-17,HARD/SOFTWARE-COMPUTER SOFTWARE  OFF THE SHELF APPLICATIONS,Corporate - Finance & Procurement,GHX UK LTD,715-00000544,3400,
Department of Health,Salisbury NHS Foundation Trust,04-Aug-17,HARD/SOFTWARE-COMPUTER SOFTWARE  OFF THE SHELF APPLICATIONS,Corporate - Finance & Procurement,GHX UK LTD,715-00000544,1083.2,
Department of Health,Salisbury NHS Foundation Trust,04-Aug-17,DRUGS,Clinical Support,LLOYDSPHARMACY CLINICAL HOMECARE,SINV2411376,28915.73,
Department of Health,Salisbury NHS Foundation Trust,04-Aug-17,DRUGS,Clinical Support,ROCHE PRODUCTS LTD,1321963392,27021.68,
Department of Health,Salisbury NHS Foundation Trust,04-Aug-17,DRUGS,Clinical Support,ROCHE PRODUCTS LTD,1321963392,5404.34,
Department of Health,Salisbury NHS Foundation Trust,25-Aug-17,HEALTHCARE - NHS TRUSTS,Clinical Support,UNIVERSITY HOSPITAL SOUTHAMPTON NHS FOUNDATION TRUST,7295751,34482.96,
Department of Health,Salisbury NHS Foundation Trust,18-Aug-17,ENERGY WATER - ELECTRICITY,Corporate - ETS,SCOTTISH POWER,105026237,7699.93,
Department of Health,Salisbury NHS Foundation Trust,18-Aug-17,ENERGY WATER - ELECTRICITY,Corporate - ETS,SCOTTISH POWER,105026237,65836.2,
Department of Health,Salisbury NHS Foundation Trust,18-Aug-17,ENERGY WATER - ELECTRICITY,Corporate - ETS,SCOTTISH POWER,105026237,385,
Department of Health,Salisbury NHS Foundation Trust,18-Aug-17,ENERGY WATER - ELECTRICITY,Corporate - ETS,SCOTTISH POWER,105026237,13167.24,
Department of Health,Salisbury NHS Foundation Trust,25-Aug-17,HEALTHCARE - NHS TRUSTS,Musculo-Skeletal,OXFORD UNIVERSITY HOSPITALS NHS FOUNDATION TRUST,8258558,27064.72,
Department of Health,Salisbury NHS Foundation Trust,18-Aug-17,HEALTHCARE - NHS TRUSTS,Clinical Support,PORTSMOUTH HOSPITALS NHS TRUST,9335044,120336.74,
Department of Health,Salisbury NHS Foundation Trust,04-Aug-17,ENERGY WATER - GAS MAINS,Corporate - ETS,CORONA ENERGY,12254293,4481.19,
Department of Health,Salisbury NHS Foundation Trust,04-Aug-17,ENERGY WATER - GAS MAINS,Corporate - ETS,CORONA ENERGY,12254293,39693.09,
Department of Health,Salisbury NHS Foundation Trust,04-Aug-17,ENERGY WATER - GAS MAINS,Corporate - ETS,CORONA ENERGY,12254293,224.06,
Department of Health,Salisbury NHS Foundation Trust,04-Aug-17,ENERGY WATER - GAS MAINS,Corporate - ETS,CORONA ENERGY,12254293,7938.62,
Department of Health,Salisbury NHS Foundation Trust,11-Aug-17,COSTS TO OTHER LABS,Clinical Support,UNIVERSITY HOSPITAL SOUTHAMPTON NHS FOUNDATION TRUST,7302583,3879.13,
Department of Health,Salisbury NHS Foundation Trust,11-Aug-17,COSTS TO OTHER LABS,Clinical Support,UNIVERSITY HOSPITAL SOUTHAMPTON NHS FOUNDATION TRUST,7302583,21538.66,
Department of Health,Salisbury NHS Foundation Trust,25-Aug-17,HEALTHCARE - NHS TRUSTS,Clinical Support,UNIVERSITY HOSPITAL SOUTHAMPTON NHS FOUNDATION TRUST,7293535,57921.27,
Department of Health,Salisbury NHS Foundation Trust,04-Aug-17,ETS UNITARY CHARGE,Corporate,SALISBURY HEALTHCARE FACILITIES LTD,377,299260.04,
Department of Health,Salisbury NHS Foundation Trust,15-Aug-17,LIQUID REFRESHMENTS,Facilities,NHS LOGISTICS,1018091716,9.98,
Department of Health,Salisbury NHS Foundation Trust,15-Aug-17,LIQUID REFRESHMENTS,Facilities,NHS LOGISTICS,1018091716,4.66,
Department of Health,Salisbury NHS Foundation Trust,15-Aug-17,LIQUID REFRESHMENTS,Facilities,NHS LOGISTICS,1018091716,4.66,
Department of Health,Salisbury NHS Foundation Trust,15-Aug-17,LIQUID REFRESHMENTS,Facilities,NHS LOGISTICS,1018091716,102,
Department of Health,Salisbury NHS Foundation Trust,15-Aug-17,LIQUID REFRESHMENTS,Facilities,NHS LOGISTICS,1018091716,102,
Department of Health,Salisbury NHS Foundation Trust,15-Aug-17,LIQUID REFRESHMENTS,Facilities,NHS LOGISTICS,1018091716,14.85,
Department of Health,Salisbury NHS Foundation Trust,15-Aug-17,LIQUID REFRESHMENTS,Facilities,NHS LOGISTICS,1018091716,7.43,
Department of Health,Salisbury NHS Foundation Trust,15-Aug-17,LIQUID REFRESHMENTS,Facilities,NHS LOGISTICS,1018091716,13.25,
Department of Health,Salisbury NHS Foundation Trust,15-Aug-17,LIQUID REFRESHMENTS,Facilities,NHS LOGISTICS,1018091716,13.25,
Department of Health,Salisbury NHS Foundation Trust,15-Aug-17,LIQUID REFRESHMENTS,Facilities,NHS LOGISTICS,1018091716,13.25,
Department of Health,Salisbury NHS Foundation Trust,15-Aug-17,LIQUID REFRESHMENTS,Facilities,NHS LOGISTICS,1018091716,13.25,
Department of Health,Salisbury NHS Foundation Trust,15-Aug-17,LIQUID REFRESHMENTS,Facilities,NHS LOGISTICS,1018091716,9.17,
Department of Health,Salisbury NHS Foundation Trust,15-Aug-17,LIQUID REFRESHMENTS,Facilities,NHS LOGISTICS,1018091716,9.17,
Department of Health,Salisbury NHS Foundation Trust,15-Aug-17,LIQUID REFRESHMENTS,Facilities,NHS LOGISTICS,1018091716,24.63,
Department of Health,Salisbury NHS Foundation Trust,15-Aug-17,LIQUID REFRESHMENTS,Facilities,NHS LOGISTICS,1018091716,17.35,
Department of Health,Salisbury NHS Foundation Trust,15-Aug-17,LIQUID REFRESHMENTS,Facilities,NHS LOGISTICS,1018091716,12.4,
Department of Health,Salisbury NHS Foundation Trust,15-Aug-17,LIQUID REFRESHMENTS,Facilities,NHS LOGISTICS,1018091716,12.4,
Department of Health,Salisbury NHS Foundation Trust,15-Aug-17,LIQUID REFRESHMENTS,Facilities,NHS LOGISTICS,1018091716,2.53,
Department of Health,Salisbury NHS Foundation Trust,15-Aug-17,LIQUID REFRESHMENTS,Facilities,NHS LOGISTICS,1018091716,2.53,
Department of Health,Salisbury NHS Foundation Trust,15-Aug-17,LIQUID REFRESHMENTS,Facilities,NHS LOGISTICS,1018091716,8.73,
Department of Health,Salisbury NHS Foundation Trust,15-Aug-17,LIQUID REFRESHMENTS,Facilities,NHS LOGISTICS,1018091716,8.73,
Department of Health,Salisbury NHS Foundation Trust,15-Aug-17,LIQUID REFRESHMENTS,Facilities,NHS LOGISTICS,1018091716,6.58,
Department of Health,Salisbury NHS Foundation Trust,15-Aug-17,LIQUID REFRESHMENTS,Facilities,NHS LOGISTICS,1018091716,6.58,
Department of Health,Salisbury NHS Foundation Trust,15-Aug-17,BABY TEXTURE MODIFIED FOODS,Facilities,NHS LOGISTICS,1018091716,3.59,
Department of Health,Salisbury NHS Foundation Trust,15-Aug-17,BEVERAGES & AMBIENT FOOD,Facilities,NHS LOGISTICS,1018091716,32.22,
Department of Health,Salisbury NHS Foundation Trust,15-Aug-17,BEVERAGES & AMBIENT FOOD,Facilities,NHS LOGISTICS,1018091716,32.22,
Department of Health,Salisbury NHS Foundation Trust,15-Aug-17,BEVERAGES & AMBIENT FOOD,Facilities,NHS LOGISTICS,1018091716,52.74,
Department of Health,Salisbury NHS Foundation Trust,15-Aug-17,BEVERAGES & AMBIENT FOOD,Facilities,NHS LOGISTICS,1018091716,105.48,
Department of Health,Salisbury NHS Foundation Trust,15-Aug-17,BEVERAGES & AMBIENT FOOD,Facilities,NHS LOGISTICS,1018091716,94,
Department of Health,Salisbury NHS Foundation Trust,15-Aug-17,BEVERAGES & AMBIENT FOOD,Facilities,NHS LOGISTICS,1018091716,15.66,
Department of Health,Salisbury NHS Foundation Trust,15-Aug-17,BEVERAGES & AMBIENT FOOD,Facilities,NHS LOGISTICS,1018091716,33.36,
Department of Health,Salisbury NHS Foundation Trust,15-Aug-17,BEVERAGES & AMBIENT FOOD,Facilities,NHS LOGISTICS,1018091716,33.36,
Department of Health,Salisbury NHS Foundation Trust,15-Aug-17,BEVERAGES & AMBIENT FOOD,Facilities,NHS LOGISTICS,1018091716,12.42,
Department of Health,Salisbury NHS Foundation Trust,15-Aug-17,BEVERAGES & AMBIENT FOOD,Facilities,NHS LOGISTICS,1018091716,9.36,
Department of Health,Salisbury NHS Foundation Trust,15-Aug-17,BEVERAGES & AMBIENT FOOD,Facilities,NHS LOGISTICS,1018091716,13.2,
Department of Health,Salisbury NHS Foundation Trust,15-Aug-17,BEVERAGES & AMBIENT FOOD,Facilities,NHS LOGISTICS,1018091716,13.2,
Department of Health,Salisbury NHS Foundation Trust,15-Aug-17,BEVERAGES & AMBIENT FOOD,Facilities,NHS LOGISTICS,1018091716,94.4,
Department of Health,Salisbury NHS Foundation Trust,15-Aug-17,BEVERAGES & AMBIENT FOOD,Facilities,NHS LOGISTICS,1018091716,84.96,
Department of Health,Salisbury NHS Foundation Trust,15-Aug-17,BEVERAGES & AMBIENT FOOD,Facilities,NHS LOGISTICS,1018091716,8.47,
Department of Health,Salisbury NHS Foundation Trust,15-Aug-17,BEVERAGES & AMBIENT FOOD,Facilities,NHS LOGISTICS,1018091716,16.94,
Department of Health,Salisbury NHS Foundation Trust,15-Aug-17,BEVERAGES & AMBIENT FOOD,Facilities,NHS LOGISTICS,1018091716,10.26,
Department of Health,Salisbury NHS Foundation Trust,15-Aug-17,BEVERAGES & AMBIENT FOOD,Facilities,NHS LOGISTICS,1018091716,10.26,
Department of Health,Salisbury NHS Foundation Trust,15-Aug-17,BEVERAGES & AMBIENT FOOD,Facilities,NHS LOGISTICS,1018091716,25.98,
Department of Health,Salisbury NHS Foundation Trust,15-Aug-17,BEVERAGES & AMBIENT FOOD,Facilities,NHS LOGISTICS,1018091716,25.98,
Department of Health,Salisbury NHS Foundation Trust,15-Aug-17,BEVERAGES & AMBIENT FOOD,Facilities,NHS LOGISTICS,1018091716,26.82,
Department of Health,Salisbury NHS Foundation Trust,15-Aug-17,BEVERAGES & AMBIENT FOOD,Facilities,NHS LOGISTICS,1018091716,13.41,
Department of Health,Salisbury NHS Foundation Trust,15-Aug-17,BEVERAGES & AMBIENT FOOD,Facilities,NHS LOGISTICS,1018091716,11.86,
Department of Health,Salisbury NHS Foundation Trust,15-Aug-17,BEVERAGES & AMBIENT FOOD,Facilities,NHS LOGISTICS,1018091716,11.86,
Department of Health,Salisbury NHS Foundation Trust,15-Aug-17,BEVERAGES & AMBIENT FOOD,Facilities,NHS LOGISTICS,1018091716,16.17,
Department of Health,Salisbury NHS Foundation Trust,15-Aug-17,BEVERAGES & AMBIENT FOOD,Facilities,NHS LOGISTICS,1018091716,16.17,
Department of Health,Salisbury NHS Foundation Trust,15-Aug-17,BEVERAGES & AMBIENT FOOD,Facilities,NHS LOGISTICS,1018091716,5.96,
Department of Health,Salisbury NHS Foundation Trust,15-Aug-17,BEVERAGES & AMBIENT FOOD,Facilities,NHS LOGISTICS,1018091716,13.8,
Department of Health,Salisbury NHS Foundation Trust,15-Aug-17,BEVERAGES & AMBIENT FOOD,Facilities,NHS LOGISTICS,1018091716,27.12,
Department of Health,Salisbury NHS Foundation Trust,15-Aug-17,BEVERAGES & AMBIENT FOOD,Facilities,NHS LOGISTICS,1018091716,8.87,
Department of Health,Salisbury NHS Foundation Trust,15-Aug-17,BEVERAGES & AMBIENT FOOD,Facilities,NHS LOGISTICS,1018091716,23.14,
Department of Health,Salisbury NHS Foundation Trust,15-Aug-17,BEVERAGES & AMBIENT FOOD,Facilities,NHS LOGISTICS,1018091716,10.72,
Department of Health,Salisbury NHS Foundation Trust,15-Aug-17,BEVERAGES & AMBIENT FOOD,Facilities,NHS LOGISTICS,1018091716,10.72,
Department of Health,Salisbury NHS Foundation Trust,15-Aug-17,BEVERAGES & AMBIENT FOOD,Facilities,NHS LOGISTICS,1018091716,5.6,
Department of Health,Salisbury NHS Foundation Trust,15-Aug-17,BEVERAGES & AMBIENT FOOD,Facilities,NHS LOGISTICS,1018091716,5.6,
Department of Health,Salisbury NHS Foundation Trust,15-Aug-17,BEVERAGES & AMBIENT FOOD,Facilities,NHS LOGISTICS,1018091716,4.45,
Department of Health,Salisbury NHS Foundation Trust,15-Aug-17,BEVERAGES & AMBIENT FOOD,Facilities,NHS LOGISTICS,1018091716,4.43,
Department of Health,Salisbury NHS Foundation Trust,15-Aug-17,BEVERAGES & AMBIENT FOOD,Facilities,NHS LOGISTICS,1018091716,17,
Department of Health,Salisbury NHS Foundation Trust,15-Aug-17,BEVERAGES & AMBIENT FOOD,Facilities,NHS LOGISTICS,1018091716,7.72,
Department of Health,Salisbury NHS Foundation Trust,15-Aug-17,BEVERAGES & AMBIENT FOOD,Facilities,NHS LOGISTICS,1018091716,17.7,
Department of Health,Salisbury NHS Foundation Trust,15-Aug-17,BEVERAGES & AMBIENT FOOD,Facilities,NHS LOGISTICS,1018091716,6.26,
Department of Health,Salisbury NHS Foundation Trust,15-Aug-17,BEVERAGES & AMBIENT FOOD,Facilities,NHS LOGISTICS,1018091716,4.53,
Department of Health,Salisbury NHS Foundation Trust,15-Aug-17,BEVERAGES & AMBIENT FOOD,Facilities,NHS LOGISTICS,1018091716,3.26,
Department of Health,Salisbury NHS Foundation Trust,15-Aug-17,BEVERAGES & AMBIENT FOOD,Facilities,NHS LOGISTICS,1018091716,6.4,
Department of Health,Salisbury NHS Foundation Trust,15-Aug-17,BEVERAGES & AMBIENT FOOD,Facilities,NHS LOGISTICS,1018091716,18.78,
Department of Health,Salisbury NHS Foundation Trust,15-Aug-17,BEVERAGES & AMBIENT FOOD,Facilities,NHS LOGISTICS,1018091716,5.04,
Department of Health,Salisbury NHS Foundation Trust,15-Aug-17,BEVERAGES & AMBIENT FOOD,Facilities,NHS LOGISTICS,1018091716,8.94,
Department of Health,Salisbury NHS Foundation Trust,15-Aug-17,BEVERAGES & AMBIENT FOOD,Facilities,NHS LOGISTICS,1018091716,8.9,
Department of Health,Salisbury NHS Foundation Trust,15-Aug-17,BEVERAGES & AMBIENT FOOD,Facilities,NHS LOGISTICS,1018091716,9.22,
Department of Health,Salisbury NHS Foundation Trust,15-Aug-17,EGGS MILK OTHER DAIRY PRODUCTS,Facilities,NHS LOGISTICS,1018091716,15.64,
Department of Health,Salisbury NHS Foundation Trust,15-Aug-17,EGGS MILK OTHER DAIRY PRODUCTS,Facilities,NHS LOGISTICS,1018091716,23.24,
Department of Health,Salisbury NHS Foundation Trust,15-Aug-17,EGGS MILK OTHER DAIRY PRODUCTS,Facilities,NHS LOGISTICS,1018091716,64.58,
Department of Health,Salisbury NHS Foundation Trust,15-Aug-17,EGGS MILK OTHER DAIRY PRODUCTS,Facilities,NHS LOGISTICS,1018091716,129.16,
Department of Health,Salisbury NHS Foundation Trust,15-Aug-17,MEAT GAME POULTRY FISH,Facilities,NHS LOGISTICS,1018091716,42.48,
Department of Health,Salisbury NHS Foundation Trust,15-Aug-17,FRUIT & VEGETABLES,Facilities,NHS LOGISTICS,1018091716,17.94,
Department of Health,Salisbury NHS Foundation Trust,15-Aug-17,FRUIT & VEGETABLES,Facilities,NHS LOGISTICS,1018091716,26.04,
Department of Health,Salisbury NHS Foundation Trust,15-Aug-17,FRUIT & VEGETABLES,Facilities,NHS LOGISTICS,1018091716,13.02,
Department of Health,Salisbury NHS Foundation Trust,15-Aug-17,FRUIT & VEGETABLES,Facilities,NHS LOGISTICS,1018091716,21.84,
Department of Health,Salisbury NHS Foundation Trust,15-Aug-17,FRUIT & VEGETABLES,Facilities,NHS LOGISTICS,1018091716,30.6,
Department of Health,Salisbury NHS Foundation Trust,15-Aug-17,FRUIT & VEGETABLES,Facilities,NHS LOGISTICS,1018091716,30.48,
Department of Health,Salisbury NHS Foundation Trust,15-Aug-17,FRUIT & VEGETABLES,Facilities,NHS LOGISTICS,1018091716,18.18,
Department of Health,Salisbury NHS Foundation Trust,15-Aug-17,FRUIT & VEGETABLES,Facilities,NHS LOGISTICS,1018091716,20.84,
Department of Health,Salisbury NHS Foundation Trust,15-Aug-17,FRUIT & VEGETABLES,Facilities,NHS LOGISTICS,1018091716,41.68,
Department of Health,Salisbury NHS Foundation Trust,15-Aug-17,FRUIT & VEGETABLES,Facilities,NHS LOGISTICS,1018091716,2.64,
Department of Health,Salisbury NHS Foundation Trust,15-Aug-17,FRUIT & VEGETABLES,Facilities,NHS LOGISTICS,1018091716,11.7,
Department of Health,Salisbury NHS Foundation Trust,15-Aug-17,FRUIT & VEGETABLES,Facilities,NHS LOGISTICS,1018091716,13.2,
Department of Health,Salisbury NHS Foundation Trust,15-Aug-17,FRUIT & VEGETABLES,Facilities,NHS LOGISTICS,1018091716,26.4,
Department of Health,Salisbury NHS Foundation Trust,15-Aug-17,FRUIT & VEGETABLES,Facilities,NHS LOGISTICS,1018091716,17.82,
Department of Health,Salisbury NHS Foundation Trust,15-Aug-17,FRUIT & VEGETABLES,Facilities,NHS LOGISTICS,1018091716,17.82,
Department of Health,Salisbury NHS Foundation Trust,15-Aug-17,FRUIT & VEGETABLES,Facilities,NHS LOGISTICS,1018091716,22.08,
Department of Health,Salisbury NHS Foundation Trust,15-Aug-17,FRUIT & VEGETABLES,Facilities,NHS LOGISTICS,1018091716,27.6,
Department of Health,Salisbury NHS Foundation Trust,15-Aug-17,FRUIT & VEGETABLES,Facilities,NHS LOGISTICS,1018091716,10.92,
Department of Health,Salisbury NHS Foundation Trust,15-Aug-17,FRUIT & VEGETABLES,Facilities,NHS LOGISTICS,1018091716,12.78,
Department of Health,Salisbury NHS Foundation Trust,15-Aug-17,FRUIT & VEGETABLES,Facilities,NHS LOGISTICS,1018091716,30.96,
Department of Health,Salisbury NHS Foundation Trust,15-Aug-17,FRUIT & VEGETABLES,Facilities,NHS LOGISTICS,1018091716,61.92,
Department of Health,Salisbury NHS Foundation Trust,15-Aug-17,FRUIT & VEGETABLES,Facilities,NHS LOGISTICS,1018091716,78.54,
Department of Health,Salisbury NHS Foundation Trust,15-Aug-17,FRUIT & VEGETABLES,Facilities,NHS LOGISTICS,1018091716,78.54,
Department of Health,Salisbury NHS Foundation Trust,15-Aug-17,BEVERAGES & AMBIENT FOOD,Facilities,NHS LOGISTICS,1018091716,38.64,
Department of Health,Salisbury NHS Foundation Trust,15-Aug-17,BEVERAGES & AMBIENT FOOD,Facilities,NHS LOGISTICS,1018091716,34.32,
Department of Health,Salisbury NHS Foundation Trust,15-Aug-17,FRUIT & VEGETABLES,Facilities,NHS LOGISTICS,1018091716,4.8,
Department of Health,Salisbury NHS Foundation Trust,15-Aug-17,BEVERAGES & AMBIENT FOOD,Facilities,NHS LOGISTICS,1018091716,7.68,
Department of Health,Salisbury NHS Foundation Trust,15-Aug-17,BEVERAGES & AMBIENT FOOD,Facilities,NHS LOGISTICS,1018091716,38.32,
Department of Health,Salisbury NHS Foundation Trust,15-Aug-17,BEVERAGES & AMBIENT FOOD,Facilities,NHS LOGISTICS,1018091716,28.74,
Department of Health,Salisbury NHS Foundation Trust,15-Aug-17,BEVERAGES & AMBIENT FOOD,Facilities,NHS LOGISTICS,1018091716,9.52,
Department of Health,Salisbury NHS Foundation Trust,15-Aug-17,BEVERAGES & AMBIENT FOOD,Facilities,NHS LOGISTICS,1018091716,9.52,
Department of Health,Salisbury NHS Foundation Trust,15-Aug-17,BEVERAGES & AMBIENT FOOD,Facilities,NHS LOGISTICS,1018091716,14.52,
Department of Health,Salisbury NHS Foundation Trust,15-Aug-17,BEVERAGES & AMBIENT FOOD,Facilities,NHS LOGISTICS,1018091716,14.52,
Department of Health,Salisbury NHS Foundation Trust,15-Aug-17,FLAVOURINGS HERBS SPICES,Facilities,NHS LOGISTICS,1018091716,3.64,
Department of Health,Salisbury NHS Foundation Trust,15-Aug-17,FLAVOURINGS HERBS SPICES,Facilities,NHS LOGISTICS,1018091716,1.42,
Department of Health,Salisbury NHS Foundation Trust,15-Aug-17,FLAVOURINGS HERBS SPICES,Facilities,NHS LOGISTICS,1018091716,1.55,
Department of Health,Salisbury NHS Foundation Trust,15-Aug-17,FLAVOURINGS HERBS SPICES,Facilities,NHS LOGISTICS,1018091716,1.55,
Department of Health,Salisbury NHS Foundation Trust,15-Aug-17,FLAVOURINGS HERBS SPICES,Facilities,NHS LOGISTICS,1018091716,20.14,
Department of Health,Salisbury NHS Foundation Trust,15-Aug-17,FLAVOURINGS HERBS SPICES,Facilities,NHS LOGISTICS,1018091716,26.48,
Department of Health,Salisbury NHS Foundation Trust,15-Aug-17,FLAVOURINGS HERBS SPICES,Facilities,NHS LOGISTICS,1018091716,13.47,
Department of Health,Salisbury NHS Foundation Trust,15-Aug-17,BEVERAGES & AMBIENT FOOD,Facilities,NHS LOGISTICS,1018091716,20.33,
Department of Health,Salisbury NHS Foundation Trust,15-Aug-17,BEVERAGES & AMBIENT FOOD,Facilities,NHS LOGISTICS,1018091716,20.33,
Department of Health,Salisbury NHS Foundation Trust,15-Aug-17,ADULTS HEARING AIDS,Surgery,NHS LOGISTICS,1018091716,2895.67,
Department of Health,Salisbury NHS Foundation Trust,15-Aug-17,ADULTS HEARING AIDS,Surgery,NHS LOGISTICS,1018091716,2895.67,
Department of Health,Salisbury NHS Foundation Trust,15-Aug-17,ADULTS HEARING AIDS,Surgery,NHS LOGISTICS,1018091716,93.75,
Department of Health,Salisbury NHS Foundation Trust,15-Aug-17,ADULTS HEARING AIDS,Surgery,NHS LOGISTICS,1018091716,93.75,
Department of Health,Salisbury NHS Foundation Trust,15-Aug-17,TISSUES HAND TOWELS & TOILET PAPER,Facilities,NHS LOGISTICS,1018091716,10.65,
Department of Health,Salisbury NHS Foundation Trust,15-Aug-17,COOKING & KITCHEN UTENSILS,Facilities,NHS LOGISTICS,1018091716,19.17,
Department of Health,Salisbury NHS Foundation Trust,15-Aug-17,COOKING & KITCHEN UTENSILS,Facilities,NHS LOGISTICS,1018091716,19.17,
Department of Health,Salisbury NHS Foundation Trust,15-Aug-17,COOKING & KITCHEN UTENSILS,Facilities,NHS LOGISTICS,1018091716,25,
Department of Health,Salisbury NHS Foundation Trust,15-Aug-17,COOKING & KITCHEN UTENSILS,Facilities,NHS LOGISTICS,1018091716,16.04,
Department of Health,Salisbury NHS Foundation Trust,15-Aug-17,COOKING & KITCHEN UTENSILS,Facilities,NHS LOGISTICS,1018091716,17.81,
Department of Health,Salisbury NHS Foundation Trust,15-Aug-17,COOKING & KITCHEN UTENSILS,Facilities,NHS LOGISTICS,1018091716,8.43,
Department of Health,Salisbury NHS Foundation Trust,15-Aug-17,COOKING & KITCHEN UTENSILS,Facilities,NHS LOGISTICS,1018091716,12.64,
Department of Health,Salisbury NHS Foundation Trust,15-Aug-17,STATIONERY SUNDRIES,Facilities,NHS LOGISTICS,1018091716,2.3,
Department of Health,Salisbury NHS Foundation Trust,15-Aug-17,BAGS SACKS - OTHER,Facilities,NHS LOGISTICS,1018091716,7.21,
Department of Health,Salisbury NHS Foundation Trust,15-Aug-17,BAGS SACKS - OTHER,Facilities,NHS LOGISTICS,1018091716,20.27,
Department of Health,Salisbury NHS Foundation Trust,15-Aug-17,DRESSINGS - PRE STERILE,Medicine,NHS LOGISTICS,1018091716,16.33,
Department of Health,Salisbury NHS Foundation Trust,15-Aug-17,M & S EQUIPELECTEQUIPINST - OTHER,Medicine,NHS LOGISTICS,1018091716,1.47,
Department of Health,Salisbury NHS Foundation Trust,15-Aug-17,OTHER MEDICAL SUPPLIES,Medicine,NHS LOGISTICS,1018091716,1.88,
Department of Health,Salisbury NHS Foundation Trust,15-Aug-17,HEALTHCARE - WEAR,Medicine,NHS LOGISTICS,1018091716,31.95,
Department of Health,Salisbury NHS Foundation Trust,15-Aug-17,DISPOSABLE THEATRE DRAPES WIPES,Medicine,NHS LOGISTICS,1018091716,7.7,
Department of Health,Salisbury NHS Foundation Trust,15-Aug-17,DISPOSABLE THEATRE DRAPES WIPES,Medicine,NHS LOGISTICS,1018091716,3.55,
Department of Health,Salisbury NHS Foundation Trust,15-Aug-17,TISSUES HAND TOWELS & TOILET PAPER,Medicine,NHS LOGISTICS,1018091716,1.24,
Department of Health,Salisbury NHS Foundation Trust,15-Aug-17,OTHER MEDICAL SUPPLIES,Medicine,NHS LOGISTICS,1018091716,5.65,
Department of Health,Salisbury NHS Foundation Trust,15-Aug-17,SURGICAL INSTRUMENTS: GENERAL,Medicine,NHS LOGISTICS,1018091716,14.75,
Department of Health,Salisbury NHS Foundation Trust,15-Aug-17,TUBES,Medicine,NHS LOGISTICS,1018091716,6.85,
Department of Health,Salisbury NHS Foundation Trust,15-Aug-17,DISPOSABLE THEATRE DRAPES WIPES,Medicine,NHS LOGISTICS,1018091716,3.55,
Department of Health,Salisbury NHS Foundation Trust,15-Aug-17,TISSUES HAND TOWELS & TOILET PAPER,Medicine,NHS LOGISTICS,1018091716,1.05,
Department of Health,Salisbury NHS Foundation Trust,15-Aug-17,PATIENT APPLIANCES,Medicine,NHS LOGISTICS,1018091716,3.35,
Department of Health,Salisbury NHS Foundation Trust,15-Aug-17,PATIENT APPLIANCES,Medicine,NHS LOGISTICS,1018091716,3.35,
Department of Health,Salisbury NHS Foundation Trust,15-Aug-17,PATIENT APPLIANCES,Medicine,NHS LOGISTICS,1018091716,4.39,
Department of Health,Salisbury NHS Foundation Trust,15-Aug-17,TISSUES HAND TOWELS & TOILET PAPER,Medicine,NHS LOGISTICS,1018091716,0.35,
Department of Health,Salisbury NHS Foundation Trust,15-Aug-17,OTHER MEDICAL SUPPLIES,Medicine,NHS LOGISTICS,1018091716,1.88,
Department of Health,Salisbury NHS Foundation Trust,15-Aug-17,PATIENT APPLIANCES,Medicine,NHS LOGISTICS,1018091716,6.7,
Department of Health,Salisbury NHS Foundation Trust,15-Aug-17,PATIENT APPLIANCES,Medicine,NHS LOGISTICS,1018091716,6.7,
Department of Health,Salisbury NHS Foundation Trust,15-Aug-17,CLEANING MATERIALS PRODUCTS SUNDRIES,Medicine,NHS LOGISTICS,1018091716,5.53,
Department of Health,Salisbury NHS Foundation Trust,15-Aug-17,TOILETRIES PERSONAL HYGIENE PRODUCTS,Medicine,NHS LOGISTICS,1018091716,4.13,
Department of Health,Salisbury NHS Foundation Trust,15-Aug-17,TISSUES HAND TOWELS & TOILET PAPER,Medicine,NHS LOGISTICS,1018091716,0.7,
Department of Health,Salisbury NHS Foundation Trust,15-Aug-17,M & S EQUIPELECTEQUIPINST - OTHER,Medicine,NHS LOGISTICS,1018091716,7.1,
Department of Health,Salisbury NHS Foundation Trust,15-Aug-17,DRUGS,Surgery,NHS LOGISTICS,1018091716,16.7,
Department of Health,Salisbury NHS Foundation Trust,15-Aug-17,DRESSINGS - PRE STERILE,Surgery,NHS LOGISTICS,1018091716,7.64,
Department of Health,Salisbury NHS Foundation Trust,15-Aug-17,DRESSINGS - PRE STERILE,Surgery,NHS LOGISTICS,1018091716,11.18,
Department of Health,Salisbury NHS Foundation Trust,15-Aug-17,DRESSINGS - PRE STERILE,Surgery,NHS LOGISTICS,1018091716,16.33,
Department of Health,Salisbury NHS Foundation Trust,15-Aug-17,DRESSINGS - PRE STERILE,Surgery,NHS LOGISTICS,1018091716,9.97,
Department of Health,Salisbury NHS Foundation Trust,15-Aug-17,DRESSINGS - PRE STERILE,Surgery,NHS LOGISTICS,1018091716,5.98,
Department of Health,Salisbury NHS Foundation Trust,15-Aug-17,DRESSINGS - PRE STERILE,Surgery,NHS LOGISTICS,1018091716,5.98,
Department of Health,Salisbury NHS Foundation Trust,15-Aug-17,OTHER MEDICAL SUPPLIES,Surgery,NHS LOGISTICS,1018091716,1.88,
Department of Health,Salisbury NHS Foundation Trust,15-Aug-17,OTHER MEDICAL SUPPLIES,Surgery,NHS LOGISTICS,1018091716,3.77,
Department of Health,Salisbury NHS Foundation Trust,15-Aug-17,PATIENT APPLIANCES,Surgery,NHS LOGISTICS,1018091716,3.35,
Department of Health,Salisbury NHS Foundation Trust,15-Aug-17,COOKING & KITCHEN UTENSILS,Surgery,NHS LOGISTICS,1018091716,17.72,
Department of Health,Salisbury NHS Foundation Trust,15-Aug-17,CLEANING MATERIALS PRODUCTS SUNDRIES,Surgery,NHS LOGISTICS,1018091716,5.53,
Department of Health,Salisbury NHS Foundation Trust,15-Aug-17,CLEANING MATERIALS PRODUCTS SUNDRIES,Surgery,NHS LOGISTICS,1018091716,5.53,
Department of Health,Salisbury NHS Foundation Trust,15-Aug-17,DISPOSABLE THEATRE DRAPES WIPES,Surgery,NHS LOGISTICS,1018091716,10.65,
Department of Health,Salisbury NHS Foundation Trust,15-Aug-17,TOILETRIES PERSONAL HYGIENE PRODUCTS,Surgery,NHS LOGISTICS,1018091716,15.42,
Department of Health,Salisbury NHS Foundation Trust,15-Aug-17,TOILETRIES PERSONAL HYGIENE PRODUCTS,Surgery,NHS LOGISTICS,1018091716,3.08,
Department of Health,Salisbury NHS Foundation Trust,15-Aug-17,TISSUES HAND TOWELS & TOILET PAPER,Surgery,NHS LOGISTICS,1018091716,0.7,
Department of Health,Salisbury NHS Foundation Trust,15-Aug-17,TISSUES HAND TOWELS & TOILET PAPER,Surgery,NHS LOGISTICS,1018091716,0.7,
Department of Health,Salisbury NHS Foundation Trust,15-Aug-17,TISSUES HAND TOWELS & TOILET PAPER,Surgery,NHS LOGISTICS,1018091716,0.7,
Department of Health,Salisbury NHS Foundation Trust,15-Aug-17,ELECTRICAL EQUIPMENT x,Surgery,NHS LOGISTICS,1018091716,7.73,
Department of Health,Salisbury NHS Foundation Trust,15-Aug-17,DRESSINGS - PRE STERILE,Surgery,NHS LOGISTICS,1018091716,7.64,
Department of Health,Salisbury NHS Foundation Trust,15-Aug-17,DRESSINGS - PRE STERILE,Surgery,NHS LOGISTICS,1018091716,16.33,
Department of Health,Salisbury NHS Foundation Trust,15-Aug-17,OTHER MEDICAL SUPPLIES,Surgery,NHS LOGISTICS,1018091716,3.77,
Department of Health,Salisbury NHS Foundation Trust,15-Aug-17,MEDSURGCONS - OTHER,Surgery,NHS LOGISTICS,1018091716,59.78,
Department of Health,Salisbury NHS Foundation Trust,15-Aug-17,PATIENT APPLIANCES,Surgery,NHS LOGISTICS,1018091716,6.7,
Department of Health,Salisbury NHS Foundation Trust,15-Aug-17,PATIENT APPLIANCES,Surgery,NHS LOGISTICS,1018091716,4.39,
Department of Health,Salisbury NHS Foundation Trust,15-Aug-17,CLEANING MATERIALS PRODUCTS SUNDRIES,Surgery,NHS LOGISTICS,1018091716,5.53,
Department of Health,Salisbury NHS Foundation Trust,15-Aug-17,DISPOSABLE THEATRE DRAPES WIPES,Surgery,NHS LOGISTICS,1018091716,3.55,
Department of Health,Salisbury NHS Foundation Trust,15-Aug-17,TOILETRIES PERSONAL HYGIENE PRODUCTS,Surgery,NHS LOGISTICS,1018091716,3.08,
Department of Health,Salisbury NHS Foundation Trust,15-Aug-17,TISSUES HAND TOWELS & TOILET PAPER,Surgery,NHS LOGISTICS,1018091716,0.7,
Department of Health,Salisbury NHS Foundation Trust,15-Aug-17,TISSUES HAND TOWELS & TOILET PAPER,Surgery,NHS LOGISTICS,1018091716,1.24,
Department of Health,Salisbury NHS Foundation Trust,15-Aug-17,OTHER MEDICAL SUPPLIES,Medicine,NHS LOGISTICS,1018091716,5.65,
Department of Health,Salisbury NHS Foundation Trust,15-Aug-17,OTHER MEDICAL SUPPLIES,Medicine,NHS LOGISTICS,1018091716,5.65,
Department of Health,Salisbury NHS Foundation Trust,15-Aug-17,OTHER MEDICAL SUPPLIES,Medicine,NHS LOGISTICS,1018091716,5.58,
Department of Health,Salisbury NHS Foundation Trust,15-Aug-17,MEDSURGCONS - OTHER,Medicine,NHS LOGISTICS,1018091716,5.89,
Department of Health,Salisbury NHS Foundation Trust,15-Aug-17,MEDSURGCONS - OTHER,Medicine,NHS LOGISTICS,1018091716,6.82,
Department of Health,Salisbury NHS Foundation Trust,15-Aug-17,MEDSURGCONS - OTHER,Medicine,NHS LOGISTICS,1018091716,3.91,
Department of Health,Salisbury NHS Foundation Trust,15-Aug-17,SURGICAL INSTRUMENTS: GENERAL,Medicine,NHS LOGISTICS,1018091716,4.92,
Department of Health,Salisbury NHS Foundation Trust,15-Aug-17,TUBES,Medicine,NHS LOGISTICS,1018091716,6.85,
Department of Health,Salisbury NHS Foundation Trust,15-Aug-17,PATIENT APPLIANCES,Medicine,NHS LOGISTICS,1018091716,3.35,
Department of Health,Salisbury NHS Foundation Trust,15-Aug-17,PATIENT APPLIANCES,Medicine,NHS LOGISTICS,1018091716,8.78,
Department of Health,Salisbury NHS Foundation Trust,15-Aug-17,DISPOSABLE TABLE LINEN,Medicine,NHS LOGISTICS,1018091716,0.69,
Department of Health,Salisbury NHS Foundation Trust,15-Aug-17,DISPOSABLE TABLE LINEN,Medicine,NHS LOGISTICS,1018091716,0.69,
Department of Health,Salisbury NHS Foundation Trust,15-Aug-17,DISPOSABLE THEATRE DRAPES WIPES,Medicine,NHS LOGISTICS,1018091716,3.55,
Department of Health,Salisbury NHS Foundation Trust,15-Aug-17,DISPOSABLE THEATRE DRAPES WIPES,Medicine,NHS LOGISTICS,1018091716,7.1,
Department of Health,Salisbury NHS Foundation Trust,15-Aug-17,TISSUES HAND TOWELS & TOILET PAPER,Medicine,NHS LOGISTICS,1018091716,0.7,
Department of Health,Salisbury NHS Foundation Trust,15-Aug-17,TISSUES HAND TOWELS & TOILET PAPER,Medicine,NHS LOGISTICS,1018091716,1.24,
Department of Health,Salisbury NHS Foundation Trust,15-Aug-17,OTHER MEDICAL SUPPLIES,Medicine,NHS LOGISTICS,1018091716,5.65,
Department of Health,Salisbury NHS Foundation Trust,15-Aug-17,OTHER MEDICAL SUPPLIES,Medicine,NHS LOGISTICS,1018091716,5.58,
Department of Health,Salisbury NHS Foundation Trust,15-Aug-17,MEDSURGCONS - OTHER,Medicine,NHS LOGISTICS,1018091716,5.89,
Department of Health,Salisbury NHS Foundation Trust,15-Aug-17,MEDSURGCONS - OTHER,Medicine,NHS LOGISTICS,1018091716,3.91,
Department of Health,Salisbury NHS Foundation Trust,15-Aug-17,CLEANING MATERIALS PRODUCTS SUNDRIES,Medicine,NHS LOGISTICS,1018091716,5.53,
Department of Health,Salisbury NHS Foundation Trust,15-Aug-17,DISPOSABLE THEATRE DRAPES WIPES,Medicine,NHS LOGISTICS,1018091716,10.65,
Department of Health,Salisbury NHS Foundation Trust,15-Aug-17,TISSUES HAND TOWELS & TOILET PAPER,Medicine,NHS LOGISTICS,1018091716,1.05,
Department of Health,Salisbury NHS Foundation Trust,15-Aug-17,OTHER MEDICAL SUPPLIES,Surgery,NHS LOGISTICS,1018091716,1.88,
Department of Health,Salisbury NHS Foundation Trust,15-Aug-17,OTHER MEDICAL SUPPLIES,Surgery,NHS LOGISTICS,1018091716,6.84,
Department of Health,Salisbury NHS Foundation Trust,15-Aug-17,DISPOSABLE THEATRE DRAPES WIPES,Surgery,NHS LOGISTICS,1018091716,3.55,
Department of Health,Salisbury NHS Foundation Trust,15-Aug-17,DRUGS,Surgery,NHS LOGISTICS,1018091716,6.48,
Department of Health,Salisbury NHS Foundation Trust,15-Aug-17,M & S EQUIPELECTEQUIPINST - OTHER,Surgery,NHS LOGISTICS,1018091716,1.47,
Department of Health,Salisbury NHS Foundation Trust,15-Aug-17,OTHER MEDICAL SUPPLIES,Surgery,NHS LOGISTICS,1018091716,7.53,
Department of Health,Salisbury NHS Foundation Trust,15-Aug-17,MEDSURGCONS - OTHER,Surgery,NHS LOGISTICS,1018091716,38.62,
Department of Health,Salisbury NHS Foundation Trust,15-Aug-17,MEDSURGCONS - OTHER,Surgery,NHS LOGISTICS,1018091716,5.34,
Department of Health,Salisbury NHS Foundation Trust,15-Aug-17,MEDSURGCONS - OTHER,Surgery,NHS LOGISTICS,1018091716,101.8,
Department of Health,Salisbury NHS Foundation Trust,15-Aug-17,MEDSURGCONS - OTHER,Surgery,NHS LOGISTICS,1018091716,21.42,
Department of Health,Salisbury NHS Foundation Trust,15-Aug-17,MEDSURGCONS - OTHER,Surgery,NHS LOGISTICS,1018091716,13.57,
Department of Health,Salisbury NHS Foundation Trust,15-Aug-17,PATIENT APPLIANCES,Surgery,NHS LOGISTICS,1018091716,4.32,
Department of Health,Salisbury NHS Foundation Trust,15-Aug-17,DISPOSABLE THEATRE DRAPES WIPES,Surgery,NHS LOGISTICS,1018091716,2.24,
Department of Health,Salisbury NHS Foundation Trust,15-Aug-17,DISPOSABLE THEATRE DRAPES WIPES,Surgery,NHS LOGISTICS,1018091716,2.63,
Department of Health,Salisbury NHS Foundation Trust,15-Aug-17,DISPOSABLE THEATRE DRAPES WIPES,Surgery,NHS LOGISTICS,1018091716,7.1,
Department of Health,Salisbury NHS Foundation Trust,15-Aug-17,DISPOSABLE THEATRE DRAPES WIPES,Surgery,NHS LOGISTICS,1018091716,7.1,
Department of Health,Salisbury NHS Foundation Trust,15-Aug-17,TOILETRIES PERSONAL HYGIENE PRODUCTS,Surgery,NHS LOGISTICS,1018091716,4.15,
Department of Health,Salisbury NHS Foundation Trust,15-Aug-17,ELECTRICAL EQUIPMENT x,Surgery,NHS LOGISTICS,1018091716,3.68,
Department of Health,Salisbury NHS Foundation Trust,15-Aug-17,DRESSINGS - PRE STERILE,Musculo-Skeletal,NHS LOGISTICS,1018091716,61.13,
Department of Health,Salisbury NHS Foundation Trust,15-Aug-17,DRESSINGS - PRE STERILE,Musculo-Skeletal,NHS LOGISTICS,1018091716,0.82,
Department of Health,Salisbury NHS Foundation Trust,15-Aug-17,DRESSINGS - PRE STERILE,Musculo-Skeletal,NHS LOGISTICS,1018091716,81.82,
Department of Health,Salisbury NHS Foundation Trust,15-Aug-17,DRESSINGS - PRE STERILE,Musculo-Skeletal,NHS LOGISTICS,1018091716,179.68,
Department of Health,Salisbury NHS Foundation Trust,15-Aug-17,MEDSURGCONS - OTHER,Musculo-Skeletal,NHS LOGISTICS,1018091716,4.85,
Department of Health,Salisbury NHS Foundation Trust,15-Aug-17,OTHER MEDICAL SUPPLIES,Medicine,NHS LOGISTICS,1018091716,1.88,
Department of Health,Salisbury NHS Foundation Trust,15-Aug-17,MEDSURGCONS - OTHER,Medicine,NHS LOGISTICS,1018091716,4.71,
Department of Health,Salisbury NHS Foundation Trust,15-Aug-17,MEDSURGCONS - OTHER,Medicine,NHS LOGISTICS,1018091716,59.78,
Department of Health,Salisbury NHS Foundation Trust,15-Aug-17,MED SURG EQUIP REP MAINT CLEANING,Medicine,NHS LOGISTICS,1018091716,10.97,
Department of Health,Salisbury NHS Foundation Trust,15-Aug-17,PATIENTS BABY WEAR,Medicine,NHS LOGISTICS,1018091716,7.17,
Department of Health,Salisbury NHS Foundation Trust,15-Aug-17,PATIENTS BABY WEAR,Medicine,NHS LOGISTICS,1018091716,32.13,
Department of Health,Salisbury NHS Foundation Trust,15-Aug-17,CLEANING MATERIALS PRODUCTS SUNDRIES,Medicine,NHS LOGISTICS,1018091716,5.53,
Department of Health,Salisbury NHS Foundation Trust,15-Aug-17,DISPOSABLE THEATRE DRAPES WIPES,Medicine,NHS LOGISTICS,1018091716,3.55,
Department of Health,Salisbury NHS Foundation Trust,15-Aug-17,TOILETRIES PERSONAL HYGIENE PRODUCTS,Medicine,NHS LOGISTICS,1018091716,3.08,
Department of Health,Salisbury NHS Foundation Trust,15-Aug-17,TISSUES HAND TOWELS & TOILET PAPER,Medicine,NHS LOGISTICS,1018091716,0.35,
Department of Health,Salisbury NHS Foundation Trust,15-Aug-17,TISSUES HAND TOWELS & TOILET PAPER,Medicine,NHS LOGISTICS,1018091716,1.24,
Department of Health,Salisbury NHS Foundation Trust,15-Aug-17,SERVICES FROM NHS BODIES,Medicine,NHS LOGISTICS,1018091716,4.44,
Department of Health,Salisbury NHS Foundation Trust,15-Aug-17,MEDSURGCONS - OTHER,Medicine,NHS LOGISTICS,1018091716,3.91,
Department of Health,Salisbury NHS Foundation Trust,15-Aug-17,PATIENT APPLIANCES,Medicine,NHS LOGISTICS,1018091716,4.39,
Department of Health,Salisbury NHS Foundation Trust,15-Aug-17,TISSUES HAND TOWELS & TOILET PAPER,Medicine,NHS LOGISTICS,1018091716,0.78,
Department of Health,Salisbury NHS Foundation Trust,15-Aug-17,TISSUES HAND TOWELS & TOILET PAPER,Medicine,NHS LOGISTICS,1018091716,0.35,
Department of Health,Salisbury NHS Foundation Trust,15-Aug-17,TISSUES HAND TOWELS & TOILET PAPER,Medicine,NHS LOGISTICS,1018091716,2.48,
Department of Health,Salisbury NHS Foundation Trust,15-Aug-17,SURGICAL INSTRUMENTS: GENERAL,Medicine,NHS LOGISTICS,1018091716,103.42,
Department of Health,Salisbury NHS Foundation Trust,15-Aug-17,TISSUES HAND TOWELS & TOILET PAPER,Medicine,NHS LOGISTICS,1018091716,2.48,
Department of Health,Salisbury NHS Foundation Trust,15-Aug-17,DRESSINGS - PRE STERILE,Musculo-Skeletal,NHS LOGISTICS,1018091716,79.13,
Department of Health,Salisbury NHS Foundation Trust,15-Aug-17,OTHER MEDICAL SUPPLIES,Musculo-Skeletal,NHS LOGISTICS,1018091716,26.23,
Department of Health,Salisbury NHS Foundation Trust,15-Aug-17,PATIENTS BEDWEAR UNISEX,Musculo-Skeletal,NHS LOGISTICS,1018091716,58.23,
Department of Health,Salisbury NHS Foundation Trust,15-Aug-17,DRESSINGS - PRE STERILE,Musculo-Skeletal,NHS LOGISTICS,1018091716,15.28,
Department of Health,Salisbury NHS Foundation Trust,15-Aug-17,DRESSINGS - PRE STERILE,Musculo-Skeletal,NHS LOGISTICS,1018091716,15.28,
Department of Health,Salisbury NHS Foundation Trust,15-Aug-17,DRESSINGS - PRE STERILE,Musculo-Skeletal,NHS LOGISTICS,1018091716,6,
Department of Health,Salisbury NHS Foundation Trust,15-Aug-17,DRESSINGS - PRE STERILE,Musculo-Skeletal,NHS LOGISTICS,1018091716,24.91,
Department of Health,Salisbury NHS Foundation Trust,15-Aug-17,DRESSINGS - PRE STERILE,Musculo-Skeletal,NHS LOGISTICS,1018091716,8.83,
Department of Health,Salisbury NHS Foundation Trust,15-Aug-17,TUBES,Musculo-Skeletal,NHS LOGISTICS,1018091716,13.7,
Department of Health,Salisbury NHS Foundation Trust,15-Aug-17,TUBES,Musculo-Skeletal,NHS LOGISTICS,1018091716,6.85,
Department of Health,Salisbury NHS Foundation Trust,15-Aug-17,PATIENT APPLIANCES,Musculo-Skeletal,NHS LOGISTICS,1018091716,3.35,
Department of Health,Salisbury NHS Foundation Trust,15-Aug-17,PATIENT APPLIANCES,Musculo-Skeletal,NHS LOGISTICS,1018091716,4.39,
Department of Health,Salisbury NHS Foundation Trust,15-Aug-17,PATIENT APPLIANCES,Musculo-Skeletal,NHS LOGISTICS,1018091716,4.39,
Department of Health,Salisbury NHS Foundation Trust,15-Aug-17,DISPOSABLE THEATRE DRAPES WIPES,Musculo-Skeletal,NHS LOGISTICS,1018091716,30.8,
Department of Health,Salisbury NHS Foundation Trust,15-Aug-17,DISPOSABLE THEATRE DRAPES WIPES,Musculo-Skeletal,NHS LOGISTICS,1018091716,2.63,
Department of Health,Salisbury NHS Foundation Trust,15-Aug-17,DISPOSABLE THEATRE DRAPES WIPES,Musculo-Skeletal,NHS LOGISTICS,1018091716,7.7,
Department of Health,Salisbury NHS Foundation Trust,15-Aug-17,DISPOSABLE THEATRE DRAPES WIPES,Musculo-Skeletal,NHS LOGISTICS,1018091716,7.1,
Department of Health,Salisbury NHS Foundation Trust,15-Aug-17,DISPOSABLE THEATRE DRAPES WIPES,Musculo-Skeletal,NHS LOGISTICS,1018091716,7.1,
Department of Health,Salisbury NHS Foundation Trust,15-Aug-17,TISSUES HAND TOWELS & TOILET PAPER,Musculo-Skeletal,NHS LOGISTICS,1018091716,0.35,
Department of Health,Salisbury NHS Foundation Trust,15-Aug-17,TISSUES HAND TOWELS & TOILET PAPER,Musculo-Skeletal,NHS LOGISTICS,1018091716,0.35,
Department of Health,Salisbury NHS Foundation Trust,15-Aug-17,TISSUES HAND TOWELS & TOILET PAPER,Musculo-Skeletal,NHS LOGISTICS,1018091716,1.24,
Department of Health,Salisbury NHS Foundation Trust,15-Aug-17,TISSUES HAND TOWELS & TOILET PAPER,Musculo-Skeletal,NHS LOGISTICS,1018091716,3.72,
Department of Health,Salisbury NHS Foundation Trust,15-Aug-17,M & S EQUIPELECTEQUIPINST - OTHER,Clinical Support,NHS LOGISTICS,1018091716,1.47,
Department of Health,Salisbury NHS Foundation Trust,15-Aug-17,OTHER MEDICAL SUPPLIES,Clinical Support,NHS LOGISTICS,1018091716,9.42,
Department of Health,Salisbury NHS Foundation Trust,15-Aug-17,OTHER MEDICAL SUPPLIES,Clinical Support,NHS LOGISTICS,1018091716,6.84,
Department of Health,Salisbury NHS Foundation Trust,15-Aug-17,MEDSURGCONS - OTHER,Clinical Support,NHS LOGISTICS,1018091716,3.92,
Department of Health,Salisbury NHS Foundation Trust,15-Aug-17,MEDSURGCONS - OTHER,Clinical Support,NHS LOGISTICS,1018091716,16.61,
Department of Health,Salisbury NHS Foundation Trust,15-Aug-17,MEDSURGCONS - OTHER,Clinical Support,NHS LOGISTICS,1018091716,13.29,
Department of Health,Salisbury NHS Foundation Trust,15-Aug-17,MEDSURGCONS - OTHER,Clinical Support,NHS LOGISTICS,1018091716,6.82,
Department of Health,Salisbury NHS Foundation Trust,15-Aug-17,MEDSURGCONS - OTHER,Clinical Support,NHS LOGISTICS,1018091716,7.82,
Department of Health,Salisbury NHS Foundation Trust,15-Aug-17,BABY TEXTURE MODIFIED FOODS,Clinical Support,NHS LOGISTICS,1018091716,16.53,
Department of Health,Salisbury NHS Foundation Trust,15-Aug-17,DISPOSABLE THEATRE DRAPES WIPES,Clinical Support,NHS LOGISTICS,1018091716,7.1,
Department of Health,Salisbury NHS Foundation Trust,15-Aug-17,TISSUES HAND TOWELS & TOILET PAPER,Clinical Support,NHS LOGISTICS,1018091716,2.48,
Department of Health,Salisbury NHS Foundation Trust,15-Aug-17,OTHER MEDICAL SUPPLIES,Musculo-Skeletal,NHS LOGISTICS,1018091716,106.67,
Department of Health,Salisbury NHS Foundation Trust,15-Aug-17,OTHER MEDICAL SUPPLIES,Musculo-Skeletal,NHS LOGISTICS,1018091716,1.88,
Department of Health,Salisbury NHS Foundation Trust,15-Aug-17,MEDSURGCONS - OTHER,Musculo-Skeletal,NHS LOGISTICS,1018091716,21.47,
Department of Health,Salisbury NHS Foundation Trust,15-Aug-17,MEDSURGCONS - OTHER,Musculo-Skeletal,NHS LOGISTICS,1018091716,11.95,
Department of Health,Salisbury NHS Foundation Trust,15-Aug-17,MEDSURGCONS - OTHER,Musculo-Skeletal,NHS LOGISTICS,1018091716,155.23,
Department of Health,Salisbury NHS Foundation Trust,15-Aug-17,ANAESTHETIC EQUIPMENT ACCESSORIES,Musculo-Skeletal,NHS LOGISTICS,1018091716,15.96,
Department of Health,Salisbury NHS Foundation Trust,15-Aug-17,PATIENT APPLIANCES,Musculo-Skeletal,NHS LOGISTICS,1018091716,86.33,
Department of Health,Salisbury NHS Foundation Trust,15-Aug-17,DISPOSABLE THEATRE DRAPES WIPES,Musculo-Skeletal,NHS LOGISTICS,1018091716,1.32,
Department of Health,Salisbury NHS Foundation Trust,15-Aug-17,DISPOSABLE THEATRE DRAPES WIPES,Musculo-Skeletal,NHS LOGISTICS,1018091716,14.2,
Department of Health,Salisbury NHS Foundation Trust,15-Aug-17,TISSUES HAND TOWELS & TOILET PAPER,Musculo-Skeletal,NHS LOGISTICS,1018091716,21,
Department of Health,Salisbury NHS Foundation Trust,15-Aug-17,M & S EQUIPELECTEQUIPINST - OTHER,Clinical Support,NHS LOGISTICS,1018091716,49.26,
Department of Health,Salisbury NHS Foundation Trust,15-Aug-17,OTHER MEDICAL SUPPLIES,Clinical Support,NHS LOGISTICS,1018091716,157.9,
Department of Health,Salisbury NHS Foundation Trust,15-Aug-17,OTHER MEDICAL SUPPLIES,Clinical Support,NHS LOGISTICS,1018091716,1.88,
Department of Health,Salisbury NHS Foundation Trust,15-Aug-17,MEDSURGCONS - OTHER,Clinical Support,NHS LOGISTICS,1018091716,29.46,
Department of Health,Salisbury NHS Foundation Trust,15-Aug-17,MEDSURGCONS - OTHER,Clinical Support,NHS LOGISTICS,1018091716,3.78,
Department of Health,Salisbury NHS Foundation Trust,15-Aug-17,MEDSURGCONS - OTHER,Clinical Support,NHS LOGISTICS,1018091716,3.92,
Department of Health,Salisbury NHS Foundation Trust,15-Aug-17,BABY TEXTURE MODIFIED FOODS,Clinical Support,NHS LOGISTICS,1018091716,31.65,
Department of Health,Salisbury NHS Foundation Trust,15-Aug-17,PATIENTS BEDWEAR UNISEX,Clinical Support,NHS LOGISTICS,1018091716,4,
Department of Health,Salisbury NHS Foundation Trust,15-Aug-17,DRESSINGS - PRE STERILE,Clinical Support,NHS LOGISTICS,1018091716,0.35,
Department of Health,Salisbury NHS Foundation Trust,15-Aug-17,DRESSINGS - PRE STERILE,Clinical Support,NHS LOGISTICS,1018091716,16.33,
Department of Health,Salisbury NHS Foundation Trust,15-Aug-17,DRESSINGS - PRE STERILE,Clinical Support,NHS LOGISTICS,1018091716,32.28,
Department of Health,Salisbury NHS Foundation Trust,15-Aug-17,DRESSINGS  -  PROCEDURE PACKS,Clinical Support,NHS LOGISTICS,1018091716,255.44,
Department of Health,Salisbury NHS Foundation Trust,15-Aug-17,M & S EQUIPELECTEQUIPINST - OTHER,Clinical Support,NHS LOGISTICS,1018091716,5.75,
Department of Health,Salisbury NHS Foundation Trust,15-Aug-17,OTHER MEDICAL SUPPLIES,Clinical Support,NHS LOGISTICS,1018091716,61.04,
Department of Health,Salisbury NHS Foundation Trust,15-Aug-17,OTHER MEDICAL SUPPLIES,Clinical Support,NHS LOGISTICS,1018091716,3.77,
Department of Health,Salisbury NHS Foundation Trust,15-Aug-17,SURGICAL INSTRUMENTS: DISPOSABLE,Clinical Support,NHS LOGISTICS,1018091716,49.41,
Department of Health,Salisbury NHS Foundation Trust,15-Aug-17,MED SURG EQUIP REP MAINT CLEANING,Clinical Support,NHS LOGISTICS,1018091716,10.97,
Department of Health,Salisbury NHS Foundation Trust,15-Aug-17,PATIENT APPLIANCES,Clinical Support,NHS LOGISTICS,1018091716,4.32,
Department of Health,Salisbury NHS Foundation Trust,15-Aug-17,PATIENTS BEDWEAR UNISEX,Clinical Support,NHS LOGISTICS,1018091716,16,
Department of Health,Salisbury NHS Foundation Trust,15-Aug-17,PATIENTS BEDWEAR UNISEX,Clinical Support,NHS LOGISTICS,1018091716,16,
Department of Health,Salisbury NHS Foundation Trust,15-Aug-17,DISPOSABLE THEATRE DRAPES WIPES,Clinical Support,NHS LOGISTICS,1018091716,11.38,
Department of Health,Salisbury NHS Foundation Trust,15-Aug-17,DRESSINGS - PRE STERILE,Clinical Support,NHS LOGISTICS,1018091716,0.35,
Department of Health,Salisbury NHS Foundation Trust,15-Aug-17,BABY TEXTURE MODIFIED FOODS,Clinical Support,NHS LOGISTICS,1018091716,16.66,
Department of Health,Salisbury NHS Foundation Trust,15-Aug-17,PATIENTS BEDWEAR UNISEX,Clinical Support,NHS LOGISTICS,1018091716,4,
Department of Health,Salisbury NHS Foundation Trust,15-Aug-17,CLEANING MATERIALS PRODUCTS SUNDRIES,Clinical Support,NHS LOGISTICS,1018091716,5.45,
Department of Health,Salisbury NHS Foundation Trust,15-Aug-17,TISSUES HAND TOWELS & TOILET PAPER,Clinical Support,NHS LOGISTICS,1018091716,1.24,
Department of Health,Salisbury NHS Foundation Trust,15-Aug-17,DRESSINGS - PRE STERILE,Clinical Support,NHS LOGISTICS,1018091716,0.35,
Department of Health,Salisbury NHS Foundation Trust,15-Aug-17,TISSUES HAND TOWELS & TOILET PAPER,Clinical Support,NHS LOGISTICS,1018091716,1.57,
Department of Health,Salisbury NHS Foundation Trust,15-Aug-17,DRESSINGS - PRE STERILE,Musculo-Skeletal,NHS LOGISTICS,1018091716,22.93,
Department of Health,Salisbury NHS Foundation Trust,15-Aug-17,DRESSINGS - PRE STERILE,Musculo-Skeletal,NHS LOGISTICS,1018091716,12,
Department of Health,Salisbury NHS Foundation Trust,15-Aug-17,DRESSINGS - PRE STERILE,Musculo-Skeletal,NHS LOGISTICS,1018091716,2.23,
Department of Health,Salisbury NHS Foundation Trust,15-Aug-17,DRESSINGS - PRE STERILE,Musculo-Skeletal,NHS LOGISTICS,1018091716,1.85,
Department of Health,Salisbury NHS Foundation Trust,15-Aug-17,DRESSINGS - PRE STERILE,Musculo-Skeletal,NHS LOGISTICS,1018091716,0.35,
Department of Health,Salisbury NHS Foundation Trust,15-Aug-17,OTHER MEDICAL SUPPLIES,Musculo-Skeletal,NHS LOGISTICS,1018091716,1.88,
Department of Health,Salisbury NHS Foundation Trust,15-Aug-17,MEDSURGCONS - OTHER,Musculo-Skeletal,NHS LOGISTICS,1018091716,16.53,
Department of Health,Salisbury NHS Foundation Trust,15-Aug-17,TUBES,Musculo-Skeletal,NHS LOGISTICS,1018091716,6.85,
Department of Health,Salisbury NHS Foundation Trust,15-Aug-17,TOILETRIES PERSONAL HYGIENE PRODUCTS,Musculo-Skeletal,NHS LOGISTICS,1018091716,3.08,
Department of Health,Salisbury NHS Foundation Trust,15-Aug-17,BAGS SACKS - OTHER,Musculo-Skeletal,NHS LOGISTICS,1018091716,3,
Department of Health,Salisbury NHS Foundation Trust,15-Aug-17,TISSUES HAND TOWELS & TOILET PAPER,Musculo-Skeletal,NHS LOGISTICS,1018091716,9.93,
Department of Health,Salisbury NHS Foundation Trust,15-Aug-17,DRESSINGS - PRE STERILE,Musculo-Skeletal,NHS LOGISTICS,1018091716,12.36,
Department of Health,Salisbury NHS Foundation Trust,15-Aug-17,TISSUES HAND TOWELS & TOILET PAPER,Musculo-Skeletal,NHS LOGISTICS,1018091716,2.48,
Department of Health,Salisbury NHS Foundation Trust,15-Aug-17,DRESSINGS - PRE STERILE,Surgery,NHS LOGISTICS,1018091716,12.08,
Department of Health,Salisbury NHS Foundation Trust,15-Aug-17,DRESSINGS - PRE STERILE,Surgery,NHS LOGISTICS,1018091716,25.68,
Department of Health,Salisbury NHS Foundation Trust,15-Aug-17,DRESSINGS - PRE STERILE,Surgery,NHS LOGISTICS,1018091716,66.93,
Department of Health,Salisbury NHS Foundation Trust,15-Aug-17,DRESSINGS - PRE STERILE,Surgery,NHS LOGISTICS,1018091716,3.92,
Department of Health,Salisbury NHS Foundation Trust,15-Aug-17,DRESSINGS - PRE STERILE,Surgery,NHS LOGISTICS,1018091716,3.9,
Department of Health,Salisbury NHS Foundation Trust,15-Aug-17,DRESSINGS - PRE STERILE,Surgery,NHS LOGISTICS,1018091716,9.33,
Department of Health,Salisbury NHS Foundation Trust,15-Aug-17,DRESSINGS - PRE STERILE,Surgery,NHS LOGISTICS,1018091716,15.56,
Department of Health,Salisbury NHS Foundation Trust,15-Aug-17,MEDSURGCONS - OTHER,Surgery,NHS LOGISTICS,1018091716,4.88,
Department of Health,Salisbury NHS Foundation Trust,15-Aug-17,TISSUES HAND TOWELS & TOILET PAPER,Surgery,NHS LOGISTICS,1018091716,1.85,
Department of Health,Salisbury NHS Foundation Trust,15-Aug-17,TISSUES HAND TOWELS & TOILET PAPER,Surgery,NHS LOGISTICS,1018091716,7.45,
Department of Health,Salisbury NHS Foundation Trust,15-Aug-17,DRESSINGS - PRE STERILE,Medicine,NHS LOGISTICS,1018091716,4.95,
Department of Health,Salisbury NHS Foundation Trust,15-Aug-17,DRESSINGS - PRE STERILE,Medicine,NHS LOGISTICS,1018091716,12.46,
Department of Health,Salisbury NHS Foundation Trust,15-Aug-17,DRESSINGS - PRE STERILE,Medicine,NHS LOGISTICS,1018091716,32.28,
Department of Health,Salisbury NHS Foundation Trust,15-Aug-17,OTHER MEDICAL SUPPLIES,Medicine,NHS LOGISTICS,1018091716,6.84,
Department of Health,Salisbury NHS Foundation Trust,15-Aug-17,TUBES,Medicine,NHS LOGISTICS,1018091716,7.06,
Department of Health,Salisbury NHS Foundation Trust,15-Aug-17,DISPOSABLE THEATRE DRAPES WIPES,Medicine,NHS LOGISTICS,1018091716,3.55,
Department of Health,Salisbury NHS Foundation Trust,15-Aug-17,DRESSINGS - PRE STERILE,Surgery,NHS LOGISTICS,1018091716,3.93,
Department of Health,Salisbury NHS Foundation Trust,15-Aug-17,DRESSINGS - PRE STERILE,Surgery,NHS LOGISTICS,1018091716,3.33,
Department of Health,Salisbury NHS Foundation Trust,15-Aug-17,DRESSINGS - PRE STERILE,Surgery,NHS LOGISTICS,1018091716,2.22,
Department of Health,Salisbury NHS Foundation Trust,15-Aug-17,M & S EQUIPELECTEQUIPINST - OTHER,Surgery,NHS LOGISTICS,1018091716,133.33,
Department of Health,Salisbury NHS Foundation Trust,15-Aug-17,MEDSURGCONS - OTHER,Surgery,NHS LOGISTICS,1018091716,4.71,
Department of Health,Salisbury NHS Foundation Trust,15-Aug-17,SURGICAL INSTRUMENTS: DISPOSABLE,Surgery,NHS LOGISTICS,1018091716,42.35,
Department of Health,Salisbury NHS Foundation Trust,15-Aug-17,TOILETRIES PERSONAL HYGIENE PRODUCTS,Surgery,NHS LOGISTICS,1018091716,3.08,
Department of Health,Salisbury NHS Foundation Trust,15-Aug-17,TISSUES HAND TOWELS & TOILET PAPER,Surgery,NHS LOGISTICS,1018091716,0.78,
Department of Health,Salisbury NHS Foundation Trust,15-Aug-17,TISSUES HAND TOWELS & TOILET PAPER,Surgery,NHS LOGISTICS,1018091716,10.65,
Department of Health,Salisbury NHS Foundation Trust,15-Aug-17,TISSUES HAND TOWELS & TOILET PAPER,Surgery,NHS LOGISTICS,1018091716,10.65,
Department of Health,Salisbury NHS Foundation Trust,15-Aug-17,TOILETRIES PERSONAL HYGIENE PRODUCTS,Surgery,NHS LOGISTICS,1018091716,9.25,
Department of Health,Salisbury NHS Foundation Trust,15-Aug-17,DRESSINGS - PRE STERILE,Musculo-Skeletal,NHS LOGISTICS,1018091716,53.76,
Department of Health,Salisbury NHS Foundation Trust,15-Aug-17,DRESSINGS - PRE STERILE,Musculo-Skeletal,NHS LOGISTICS,1018091716,21.88,
Department of Health,Salisbury NHS Foundation Trust,15-Aug-17,DRESSINGS - PRE STERILE,Musculo-Skeletal,NHS LOGISTICS,1018091716,30.03,
Department of Health,Salisbury NHS Foundation Trust,15-Aug-17,DRESSINGS - PRE STERILE,Musculo-Skeletal,NHS LOGISTICS,1018091716,144.21,
Department of Health,Salisbury NHS Foundation Trust,15-Aug-17,DRESSINGS - PRE STERILE,Musculo-Skeletal,NHS LOGISTICS,1018091716,17.16,
Department of Health,Salisbury NHS Foundation Trust,15-Aug-17,DRESSINGS - PRE STERILE,Musculo-Skeletal,NHS LOGISTICS,1018091716,3.29,
Department of Health,Salisbury NHS Foundation Trust,15-Aug-17,DRESSINGS - PRE STERILE,Musculo-Skeletal,NHS LOGISTICS,1018091716,12.27,
Department of Health,Salisbury NHS Foundation Trust,15-Aug-17,DRESSINGS - PRE STERILE,Musculo-Skeletal,NHS LOGISTICS,1018091716,9.64,
Department of Health,Salisbury NHS Foundation Trust,15-Aug-17,DRESSINGS - PRE STERILE,Musculo-Skeletal,NHS LOGISTICS,1018091716,10.28,
Department of Health,Salisbury NHS Foundation Trust,15-Aug-17,DRESSINGS - PRE STERILE,Musculo-Skeletal,NHS LOGISTICS,1018091716,20.68,
Department of Health,Salisbury NHS Foundation Trust,15-Aug-17,DRESSINGS - PRE STERILE,Musculo-Skeletal,NHS LOGISTICS,1018091716,20.68,
Department of Health,Salisbury NHS Foundation Trust,15-Aug-17,DRESSINGS - PRE STERILE,Musculo-Skeletal,NHS LOGISTICS,1018091716,10.34,
Department of Health,Salisbury NHS Foundation Trust,15-Aug-17,DISPOSABLE THEATRE DRAPES WIPES,Musculo-Skeletal,NHS LOGISTICS,1018091716,1.32,
Department of Health,Salisbury NHS Foundation Trust,15-Aug-17,TISSUES HAND TOWELS & TOILET PAPER,Musculo-Skeletal,NHS LOGISTICS,1018091716,1.24,
Department of Health,Salisbury NHS Foundation Trust,15-Aug-17,DRESSINGS - PRE STERILE,Surgery,NHS LOGISTICS,1018091716,165.23,
Department of Health,Salisbury NHS Foundation Trust,15-Aug-17,OTHER MEDICAL SUPPLIES,Surgery,NHS LOGISTICS,1018091716,46.28,
Department of Health,Salisbury NHS Foundation Trust,15-Aug-17,OTHER MEDICAL SUPPLIES,Surgery,NHS LOGISTICS,1018091716,46.28,
Department of Health,Salisbury NHS Foundation Trust,15-Aug-17,DISPOSABLE THEATRE DRAPES WIPES,Surgery,NHS LOGISTICS,1018091716,4.48,
Department of Health,Salisbury NHS Foundation Trust,15-Aug-17,TISSUES HAND TOWELS & TOILET PAPER,Surgery,NHS LOGISTICS,1018091716,1.24,
Department of Health,Salisbury NHS Foundation Trust,15-Aug-17,DRESSINGS - PRE STERILE,Clinical Support,NHS LOGISTICS,1018091716,0.35,
Department of Health,Salisbury NHS Foundation Trust,15-Aug-17,OTHER MEDICAL SUPPLIES,Clinical Support,NHS LOGISTICS,1018091716,4.69,
Department of Health,Salisbury NHS Foundation Trust,15-Aug-17,PATIENT APPLIANCES,Clinical Support,NHS LOGISTICS,1018091716,15.22,
Department of Health,Salisbury NHS Foundation Trust,15-Aug-17,PATIENT APPLIANCES,Clinical Support,NHS LOGISTICS,1018091716,94.46,
Department of Health,Salisbury NHS Foundation Trust,15-Aug-17,PATIENT APPLIANCES,Clinical Support,NHS LOGISTICS,1018091716,25.01,
Department of Health,Salisbury NHS Foundation Trust,15-Aug-17,PATIENT APPLIANCES,Clinical Support,NHS LOGISTICS,1018091716,28.83,
Department of Health,Salisbury NHS Foundation Trust,15-Aug-17,DISPOSABLE THEATRE DRAPES WIPES,Clinical Support,NHS LOGISTICS,1018091716,3.55,
Department of Health,Salisbury NHS Foundation Trust,15-Aug-17,TISSUES HAND TOWELS & TOILET PAPER,Clinical Support,NHS LOGISTICS,1018091716,3.72,
Department of Health,Salisbury NHS Foundation Trust,15-Aug-17,DRESSINGS - PRE STERILE,Musculo-Skeletal,NHS LOGISTICS,1018091716,16.33,
Department of Health,Salisbury NHS Foundation Trust,15-Aug-17,OTHER MEDICAL SUPPLIES,Musculo-Skeletal,NHS LOGISTICS,1018091716,3.77,
Department of Health,Salisbury NHS Foundation Trust,15-Aug-17,DISPOSABLE THEATRE DRAPES WIPES,Musculo-Skeletal,NHS LOGISTICS,1018091716,7.1,
Department of Health,Salisbury NHS Foundation Trust,15-Aug-17,TISSUES HAND TOWELS & TOILET PAPER,Musculo-Skeletal,NHS LOGISTICS,1018091716,2.48,
Department of Health,Salisbury NHS Foundation Trust,15-Aug-17,TISSUES HAND TOWELS & TOILET PAPER,Clinical Support,NHS LOGISTICS,1018091716,1.57,
Department of Health,Salisbury NHS Foundation Trust,15-Aug-17,TISSUES HAND TOWELS & TOILET PAPER,Clinical Support,NHS LOGISTICS,1018091716,9.93,
Department of Health,Salisbury NHS Foundation Trust,15-Aug-17,TISSUES HAND TOWELS & TOILET PAPER,Surgery,NHS LOGISTICS,1018091716,0.39,
Department of Health,Salisbury NHS Foundation Trust,15-Aug-17,TISSUES HAND TOWELS & TOILET PAPER,Surgery,NHS LOGISTICS,1018091716,1.24,
Department of Health,Salisbury NHS Foundation Trust,15-Aug-17,DRESSINGS - PRE STERILE,Medicine,NHS LOGISTICS,1018091716,0.7,
Department of Health,Salisbury NHS Foundation Trust,15-Aug-17,DRESSINGS - PRE STERILE,Medicine,NHS LOGISTICS,1018091716,16.33,
Department of Health,Salisbury NHS Foundation Trust,15-Aug-17,DRESSINGS - PRE STERILE,Medicine,NHS LOGISTICS,1018091716,7.48,
Department of Health,Salisbury NHS Foundation Trust,15-Aug-17,M & S EQUIPELECTEQUIPINST - OTHER,Medicine,NHS LOGISTICS,1018091716,20.24,
Department of Health,Salisbury NHS Foundation Trust,15-Aug-17,OTHER MEDICAL SUPPLIES,Medicine,NHS LOGISTICS,1018091716,8.9,
Department of Health,Salisbury NHS Foundation Trust,15-Aug-17,OTHER MEDICAL SUPPLIES,Medicine,NHS LOGISTICS,1018091716,3.77,
Department of Health,Salisbury NHS Foundation Trust,15-Aug-17,PATIENT APPLIANCES,Medicine,NHS LOGISTICS,1018091716,3.35,
Department of Health,Salisbury NHS Foundation Trust,15-Aug-17,PATIENT APPLIANCES,Medicine,NHS LOGISTICS,1018091716,3.35,
Department of Health,Salisbury NHS Foundation Trust,15-Aug-17,PATIENT APPLIANCES,Medicine,NHS LOGISTICS,1018091716,3.35,
Department of Health,Salisbury NHS Foundation Trust,15-Aug-17,DISPOSABLE THEATRE DRAPES WIPES,Medicine,NHS LOGISTICS,1018091716,7.1,
Department of Health,Salisbury NHS Foundation Trust,15-Aug-17,TISSUES HAND TOWELS & TOILET PAPER,Medicine,NHS LOGISTICS,1018091716,0.78,
Department of Health,Salisbury NHS Foundation Trust,15-Aug-17,DRESSINGS - PRE STERILE,Clinical Support,NHS LOGISTICS,1018091716,16.33,
Department of Health,Salisbury NHS Foundation Trust,15-Aug-17,DRESSINGS - PRE STERILE,Clinical Support,NHS LOGISTICS,1018091716,5.54,
Department of Health,Salisbury NHS Foundation Trust,15-Aug-17,M & S EQUIPELECTEQUIPINST - OTHER,Clinical Support,NHS LOGISTICS,1018091716,229.17,
Department of Health,Salisbury NHS Foundation Trust,15-Aug-17,M & S EQUIPELECTEQUIPINST - OTHER,Clinical Support,NHS LOGISTICS,1018091716,130.21,
Department of Health,Salisbury NHS Foundation Trust,15-Aug-17,OTHER MEDICAL SUPPLIES,Clinical Support,NHS LOGISTICS,1018091716,74.97,
Department of Health,Salisbury NHS Foundation Trust,15-Aug-17,OTHER MEDICAL SUPPLIES,Clinical Support,NHS LOGISTICS,1018091716,1.88,
Department of Health,Salisbury NHS Foundation Trust,15-Aug-17,OTHER MEDICAL SUPPLIES,Clinical Support,NHS LOGISTICS,1018091716,13.68,
Department of Health,Salisbury NHS Foundation Trust,15-Aug-17,MED SURG EQUIP REP MAINT CLEANING,Clinical Support,NHS LOGISTICS,1018091716,110.42,
Department of Health,Salisbury NHS Foundation Trust,15-Aug-17,DISPOSABLE THEATRE DRAPES WIPES,Clinical Support,NHS LOGISTICS,1018091716,3.55,
Department of Health,Salisbury NHS Foundation Trust,15-Aug-17,TOILETRIES PERSONAL HYGIENE PRODUCTS,Clinical Support,NHS LOGISTICS,1018091716,3.08,
Department of Health,Salisbury NHS Foundation Trust,15-Aug-17,TISSUES HAND TOWELS & TOILET PAPER,Clinical Support,NHS LOGISTICS,1018091716,2.48,
Department of Health,Salisbury NHS Foundation Trust,15-Aug-17,TISSUES HAND TOWELS & TOILET PAPER,Clinical Support,NHS LOGISTICS,1018091716,1.24,
Department of Health,Salisbury NHS Foundation Trust,15-Aug-17,DRUGS,Surgery,NHS LOGISTICS,1018091716,9.35,
Department of Health,Salisbury NHS Foundation Trust,15-Aug-17,DRUGS,Surgery,NHS LOGISTICS,1018091716,9.82,
Department of Health,Salisbury NHS Foundation Trust,15-Aug-17,DRESSINGS - PRE STERILE,Surgery,NHS LOGISTICS,1018091716,25.18,
Department of Health,Salisbury NHS Foundation Trust,15-Aug-17,DRESSINGS - PRE STERILE,Surgery,NHS LOGISTICS,1018091716,16.84,
Department of Health,Salisbury NHS Foundation Trust,15-Aug-17,OTHER MEDICAL SUPPLIES,Surgery,NHS LOGISTICS,1018091716,5.65,
Department of Health,Salisbury NHS Foundation Trust,15-Aug-17,OTHER MEDICAL SUPPLIES,Surgery,NHS LOGISTICS,1018091716,5.65,
Department of Health,Salisbury NHS Foundation Trust,15-Aug-17,MEDSURGCONS - OTHER,Surgery,NHS LOGISTICS,1018091716,12,
Department of Health,Salisbury NHS Foundation Trust,15-Aug-17,MEDSURGCONS - OTHER,Surgery,NHS LOGISTICS,1018091716,3.75,
Department of Health,Salisbury NHS Foundation Trust,15-Aug-17,MEDSURGCONS - OTHER,Surgery,NHS LOGISTICS,1018091716,14.12,
Department of Health,Salisbury NHS Foundation Trust,15-Aug-17,SURGICAL INSTRUMENTS: GENERAL,Surgery,NHS LOGISTICS,1018091716,85.91,
Department of Health,Salisbury NHS Foundation Trust,15-Aug-17,SURGICAL INSTRUMENTS: GENERAL,Surgery,NHS LOGISTICS,1018091716,4.5,
Department of Health,Salisbury NHS Foundation Trust,15-Aug-17,PATIENT APPLIANCES,Surgery,NHS LOGISTICS,1018091716,4.32,
Department of Health,Salisbury NHS Foundation Trust,15-Aug-17,BEVERAGES & AMBIENT FOOD,Surgery,NHS LOGISTICS,1018091716,14.34,
Department of Health,Salisbury NHS Foundation Trust,15-Aug-17,BEVERAGES & AMBIENT FOOD,Surgery,NHS LOGISTICS,1018091716,1.39,
Department of Health,Salisbury NHS Foundation Trust,15-Aug-17,BEVERAGES & AMBIENT FOOD,Surgery,NHS LOGISTICS,1018091716,0.87,
Department of Health,Salisbury NHS Foundation Trust,15-Aug-17,DISPOSABLE THEATRE DRAPES WIPES,Surgery,NHS LOGISTICS,1018091716,11.38,
Department of Health,Salisbury NHS Foundation Trust,15-Aug-17,DISPOSABLE THEATRE DRAPES WIPES,Surgery,NHS LOGISTICS,1018091716,11.38,
Department of Health,Salisbury NHS Foundation Trust,15-Aug-17,DISPOSABLE THEATRE DRAPES WIPES,Surgery,NHS LOGISTICS,1018091716,10.65,
Department of Health,Salisbury NHS Foundation Trust,15-Aug-17,DISPOSABLE THEATRE DRAPES WIPES,Surgery,NHS LOGISTICS,1018091716,4.97,
Department of Health,Salisbury NHS Foundation Trust,15-Aug-17,DISPOSABLE THEATRE DRAPES WIPES,Surgery,NHS LOGISTICS,1018091716,7.47,
Department of Health,Salisbury NHS Foundation Trust,15-Aug-17,TISSUES HAND TOWELS & TOILET PAPER,Surgery,NHS LOGISTICS,1018091716,1.24,
Department of Health,Salisbury NHS Foundation Trust,15-Aug-17,TISSUES HAND TOWELS & TOILET PAPER,Surgery,NHS LOGISTICS,1018091716,2.48,
Department of Health,Salisbury NHS Foundation Trust,15-Aug-17,DRESSINGS - PRE STERILE,Medicine,NHS LOGISTICS,1018091716,16.33,
Department of Health,Salisbury NHS Foundation Trust,15-Aug-17,DRESSINGS - PRE STERILE,Medicine,NHS LOGISTICS,1018091716,32.67,
Department of Health,Salisbury NHS Foundation Trust,15-Aug-17,DRESSINGS - PRE STERILE,Medicine,NHS LOGISTICS,1018091716,2.49,
Department of Health,Salisbury NHS Foundation Trust,15-Aug-17,OTHER MEDICAL SUPPLIES,Medicine,NHS LOGISTICS,1018091716,111.15,
Department of Health,Salisbury NHS Foundation Trust,15-Aug-17,OTHER MEDICAL SUPPLIES,Medicine,NHS LOGISTICS,1018091716,8.58,
Department of Health,Salisbury NHS Foundation Trust,15-Aug-17,OTHER MEDICAL SUPPLIES,Medicine,NHS LOGISTICS,1018091716,3.77,
Department of Health,Salisbury NHS Foundation Trust,15-Aug-17,OTHER MEDICAL SUPPLIES,Medicine,NHS LOGISTICS,1018091716,3.77,
Department of Health,Salisbury NHS Foundation Trust,15-Aug-17,RENAL CONSUMEABLES,Medicine,NHS LOGISTICS,1018091716,317.67,
Department of Health,Salisbury NHS Foundation Trust,15-Aug-17,MEDSURGCONS - OTHER,Medicine,NHS LOGISTICS,1018091716,4.71,
Department of Health,Salisbury NHS Foundation Trust,15-Aug-17,MEDSURGCONS - OTHER,Medicine,NHS LOGISTICS,1018091716,59.78,
Department of Health,Salisbury NHS Foundation Trust,15-Aug-17,SURGICAL INSTRUMENTS: GENERAL,Medicine,NHS LOGISTICS,1018091716,9.48,
Department of Health,Salisbury NHS Foundation Trust,15-Aug-17,SURGICAL INSTRUMENTS: GENERAL,Medicine,NHS LOGISTICS,1018091716,335.25,
Department of Health,Salisbury NHS Foundation Trust,15-Aug-17,TUBES,Medicine,NHS LOGISTICS,1018091716,6.85,
Department of Health,Salisbury NHS Foundation Trust,15-Aug-17,TUBES,Medicine,NHS LOGISTICS,1018091716,6.85,
Department of Health,Salisbury NHS Foundation Trust,15-Aug-17,PATIENT APPLIANCES,Medicine,NHS LOGISTICS,1018091716,58.75,
Department of Health,Salisbury NHS Foundation Trust,15-Aug-17,PATIENT APPLIANCES,Medicine,NHS LOGISTICS,1018091716,70.5,
Department of Health,Salisbury NHS Foundation Trust,15-Aug-17,DISPOSABLE THEATRE DRAPES WIPES,Medicine,NHS LOGISTICS,1018091716,21.3,
Department of Health,Salisbury NHS Foundation Trust,15-Aug-17,HABERDASHERY,Medicine,NHS LOGISTICS,1018091716,1.73,
Department of Health,Salisbury NHS Foundation Trust,15-Aug-17,ELECTRICAL EQUIPMENT x,Medicine,NHS LOGISTICS,1018091716,5.8,
Department of Health,Salisbury NHS Foundation Trust,15-Aug-17,ADULTS HEARING AIDS,Surgery,NHS LOGISTICS,1018091716,872.67,
Department of Health,Salisbury NHS Foundation Trust,15-Aug-17,ADULTS HEARING AIDS,Surgery,NHS LOGISTICS,1018091716,2669.58,
Department of Health,Salisbury NHS Foundation Trust,15-Aug-17,ADULTS HEARING AIDS,Surgery,NHS LOGISTICS,1018091716,707.5,
Department of Health,Salisbury NHS Foundation Trust,15-Aug-17,ADULTS HEARING AIDS,Surgery,NHS LOGISTICS,1018091716,70.67,
Department of Health,Salisbury NHS Foundation Trust,15-Aug-17,DRESSINGS - PRE STERILE,Musculo-Skeletal,NHS LOGISTICS,1018091716,2.41,
Department of Health,Salisbury NHS Foundation Trust,15-Aug-17,DENTAL SURGERY SUNDRIES,Musculo-Skeletal,NHS LOGISTICS,1018091716,3.43,
Department of Health,Salisbury NHS Foundation Trust,15-Aug-17,TUBES,Musculo-Skeletal,NHS LOGISTICS,1018091716,13.7,
Department of Health,Salisbury NHS Foundation Trust,15-Aug-17,TOILETRIES PERSONAL HYGIENE PRODUCTS,Musculo-Skeletal,NHS LOGISTICS,1018091716,9.25,
Department of Health,Salisbury NHS Foundation Trust,15-Aug-17,SERVICES FROM NHS BODIES,Musculo-Skeletal,NHS LOGISTICS,1018091716,4.44,
Department of Health,Salisbury NHS Foundation Trust,15-Aug-17,DISPOSABLE THEATRE DRAPES WIPES,Medicine,NHS LOGISTICS,1018091716,3.55,
Department of Health,Salisbury NHS Foundation Trust,15-Aug-17,TISSUES HAND TOWELS & TOILET PAPER,Medicine,NHS LOGISTICS,1018091716,10.65,
Department of Health,Salisbury NHS Foundation Trust,15-Aug-17,DRESSINGS - PRE STERILE,Surgery,NHS LOGISTICS,1018091716,32.67,
Department of Health,Salisbury NHS Foundation Trust,15-Aug-17,DRESSINGS - PRE STERILE,Surgery,NHS LOGISTICS,1018091716,16.33,
Department of Health,Salisbury NHS Foundation Trust,15-Aug-17,M & S EQUIPELECTEQUIPINST - OTHER,Surgery,NHS LOGISTICS,1018091716,9.01,
Department of Health,Salisbury NHS Foundation Trust,15-Aug-17,M & S EQUIPELECTEQUIPINST - OTHER,Surgery,NHS LOGISTICS,1018091716,9.01,
Department of Health,Salisbury NHS Foundation Trust,15-Aug-17,M & S EQUIPELECTEQUIPINST - OTHER,Surgery,NHS LOGISTICS,1018091716,9.01,
Department of Health,Salisbury NHS Foundation Trust,15-Aug-17,M & S EQUIPELECTEQUIPINST - OTHER,Surgery,NHS LOGISTICS,1018091716,7.73,
Department of Health,Salisbury NHS Foundation Trust,15-Aug-17,OTHER MEDICAL SUPPLIES,Surgery,NHS LOGISTICS,1018091716,129.5,
Department of Health,Salisbury NHS Foundation Trust,15-Aug-17,OTHER MEDICAL SUPPLIES,Surgery,NHS LOGISTICS,1018091716,8.58,
Department of Health,Salisbury NHS Foundation Trust,15-Aug-17,OTHER MEDICAL SUPPLIES,Surgery,NHS LOGISTICS,1018091716,8.52,
Department of Health,Salisbury NHS Foundation Trust,15-Aug-17,OTHER MEDICAL SUPPLIES,Surgery,NHS LOGISTICS,1018091716,18.83,
Department of Health,Salisbury NHS Foundation Trust,15-Aug-17,OTHER MEDICAL SUPPLIES,Surgery,NHS LOGISTICS,1018091716,9.42,
Department of Health,Salisbury NHS Foundation Trust,15-Aug-17,MEDSURGCONS - OTHER,Surgery,NHS LOGISTICS,1018091716,72,
Department of Health,Salisbury NHS Foundation Trust,15-Aug-17,MEDSURGCONS - OTHER,Surgery,NHS LOGISTICS,1018091716,5.89,
Department of Health,Salisbury NHS Foundation Trust,15-Aug-17,ANAESTHETIC EQUIPMENT ACCESSORIES,Surgery,NHS LOGISTICS,1018091716,0.65,
Department of Health,Salisbury NHS Foundation Trust,15-Aug-17,DRUGS,Surgery,NHS LOGISTICS,1018091716,54.9,
Department of Health,Salisbury NHS Foundation Trust,15-Aug-17,DRESSINGS - PRE STERILE,Surgery,NHS LOGISTICS,1018091716,25.18,
Department of Health,Salisbury NHS Foundation Trust,15-Aug-17,DRESSINGS - PRE STERILE,Surgery,NHS LOGISTICS,1018091716,23.76,
Department of Health,Salisbury NHS Foundation Trust,15-Aug-17,DRESSINGS - PRE STERILE,Surgery,NHS LOGISTICS,1018091716,11.18,
Department of Health,Salisbury NHS Foundation Trust,15-Aug-17,DRESSINGS - PRE STERILE,Surgery,NHS LOGISTICS,1018091716,17.65,
Department of Health,Salisbury NHS Foundation Trust,15-Aug-17,M & S EQUIPELECTEQUIPINST - OTHER,Surgery,NHS LOGISTICS,1018091716,13.67,
Department of Health,Salisbury NHS Foundation Trust,15-Aug-17,OTHER MEDICAL SUPPLIES,Surgery,NHS LOGISTICS,1018091716,252.86,
Department of Health,Salisbury NHS Foundation Trust,15-Aug-17,MEDSURGCONS - OTHER,Surgery,NHS LOGISTICS,1018091716,28.25,
Department of Health,Salisbury NHS Foundation Trust,15-Aug-17,SURGICAL INSTRUMENTS: GENERAL,Surgery,NHS LOGISTICS,1018091716,85.91,
Department of Health,Salisbury NHS Foundation Trust,15-Aug-17,SURGICAL INSTRUMENTS: GENERAL,Surgery,NHS LOGISTICS,1018091716,62.78,
Department of Health,Salisbury NHS Foundation Trust,15-Aug-17,SURGICAL INSTRUMENTS: GENERAL,Surgery,NHS LOGISTICS,1018091716,62.78,
Department of Health,Salisbury NHS Foundation Trust,15-Aug-17,SURGICAL INSTRUMENTS: GENERAL,Surgery,NHS LOGISTICS,1018091716,62.78,
Department of Health,Salisbury NHS Foundation Trust,15-Aug-17,SURGICAL INSTRUMENTS: DISPOSABLE,Surgery,NHS LOGISTICS,1018091716,12,
Department of Health,Salisbury NHS Foundation Trust,15-Aug-17,LAB EQUIP-LABORATORY APPARATUS,Surgery,NHS LOGISTICS,1018091716,4.61,
Department of Health,Salisbury NHS Foundation Trust,15-Aug-17,BEVERAGES & AMBIENT FOOD,Surgery,NHS LOGISTICS,1018091716,2.78,
Department of Health,Salisbury NHS Foundation Trust,15-Aug-17,BEVERAGES & AMBIENT FOOD,Surgery,NHS LOGISTICS,1018091716,1.74,
Department of Health,Salisbury NHS Foundation Trust,15-Aug-17,COOKING & KITCHEN UTENSILS,Surgery,NHS LOGISTICS,1018091716,20.38,
Department of Health,Salisbury NHS Foundation Trust,15-Aug-17,COOKING & KITCHEN UTENSILS,Surgery,NHS LOGISTICS,1018091716,20.38,
Department of Health,Salisbury NHS Foundation Trust,15-Aug-17,HEALTHCARE - WEAR,Surgery,NHS LOGISTICS,1018091716,23.08,
Department of Health,Salisbury NHS Foundation Trust,15-Aug-17,CLEANING MATERIALS PRODUCTS SUNDRIES,Surgery,NHS LOGISTICS,1018091716,2.3,
Department of Health,Salisbury NHS Foundation Trust,15-Aug-17,DISPOSABLE THEATRE DRAPES WIPES,Surgery,NHS LOGISTICS,1018091716,33.35,
Department of Health,Salisbury NHS Foundation Trust,15-Aug-17,TOILETRIES PERSONAL HYGIENE PRODUCTS,Surgery,NHS LOGISTICS,1018091716,9.25,
Department of Health,Salisbury NHS Foundation Trust,15-Aug-17,BAGS SACKS - OTHER,Surgery,NHS LOGISTICS,1018091716,12.19,
Department of Health,Salisbury NHS Foundation Trust,15-Aug-17,PATIENT APPLIANCES,Clinical Support,NHS LOGISTICS,1018091716,4.32,
Department of Health,Salisbury NHS Foundation Trust,15-Aug-17,PATIENT APPLIANCES,Clinical Support,NHS LOGISTICS,1018091716,4.32,
Department of Health,Salisbury NHS Foundation Trust,15-Aug-17,DRESSINGS - PRE STERILE,Clinical Support,NHS LOGISTICS,1018091716,0.65,
Department of Health,Salisbury NHS Foundation Trust,15-Aug-17,MEDSURGCONS - OTHER,Clinical Support,NHS LOGISTICS,1018091716,3.83,
Department of Health,Salisbury NHS Foundation Trust,15-Aug-17,DRESSINGS  -  PROCEDURE PACKS,Clinical Support,NHS LOGISTICS,1018091716,42.56,
Department of Health,Salisbury NHS Foundation Trust,15-Aug-17,OTHER MEDICAL SUPPLIES,Clinical Support,NHS LOGISTICS,1018091716,455,
Department of Health,Salisbury NHS Foundation Trust,15-Aug-17,LAB EQUIP-LABORATORY APPARATUS,Clinical Support,NHS LOGISTICS,1018091716,15.29,
Department of Health,Salisbury NHS Foundation Trust,15-Aug-17,LAB EQUIP-LABORATORY APPARATUS,Clinical Support,NHS LOGISTICS,1018091716,6.3,
Department of Health,Salisbury NHS Foundation Trust,15-Aug-17,LAB EQUIP-LABORATORY APPARATUS,Clinical Support,NHS LOGISTICS,1018091716,146.4,
Department of Health,Salisbury NHS Foundation Trust,15-Aug-17,LAB EQUIP-LABORATORY APPARATUS,Clinical Support,NHS LOGISTICS,1018091716,48.33,
Department of Health,Salisbury NHS Foundation Trust,15-Aug-17,LAB EQUIP-LABORATORY APPARATUS,Clinical Support,NHS LOGISTICS,1018091716,748.67,
Department of Health,Salisbury NHS Foundation Trust,15-Aug-17,LAB EQUIP-LABORATORY APPARATUS,Clinical Support,NHS LOGISTICS,1018091716,38.5,
Department of Health,Salisbury NHS Foundation Trust,15-Aug-17,LAB EQUIP-LABORATORY APPARATUS,Clinical Support,NHS LOGISTICS,1018091716,356,
Department of Health,Salisbury NHS Foundation Trust,15-Aug-17,LAB EQUIP-LABORATORY APPARATUS,Clinical Support,NHS LOGISTICS,1018091716,50.47,
Department of Health,Salisbury NHS Foundation Trust,15-Aug-17,LAB EQUIP-LABORATORY APPARATUS,Clinical Support,NHS LOGISTICS,1018091716,12.92,
Department of Health,Salisbury NHS Foundation Trust,15-Aug-17,LAB EQUIP-ANALYSERS,Clinical Support,NHS LOGISTICS,1018091716,10.19,
Department of Health,Salisbury NHS Foundation Trust,15-Aug-17,LAB REAGENTS-BUFFERS COMPUND SOLNS,Clinical Support,NHS LOGISTICS,1018091716,96.48,
Department of Health,Salisbury NHS Foundation Trust,15-Aug-17,COOKING & KITCHEN UTENSILS,Clinical Support,NHS LOGISTICS,1018091716,5.07,
Department of Health,Salisbury NHS Foundation Trust,15-Aug-17,TISSUES HAND TOWELS & TOILET PAPER,Clinical Support,NHS LOGISTICS,1018091716,7.45,
Department of Health,Salisbury NHS Foundation Trust,15-Aug-17,LAB EQUIP-LABORATORY APPARATUS,Clinical Support,NHS LOGISTICS,1018091716,15.59,
Department of Health,Salisbury NHS Foundation Trust,15-Aug-17,LAB REAGENTS-BUFFERS COMPUND SOLNS,Clinical Support,NHS LOGISTICS,1018091716,866.67,
Department of Health,Salisbury NHS Foundation Trust,15-Aug-17,MEDSURGCONS - OTHER,Clinical Support,NHS LOGISTICS,1018091716,20.78,
Department of Health,Salisbury NHS Foundation Trust,15-Aug-17,DRESSINGS - PRE STERILE,Clinical Support,NHS LOGISTICS,1018091716,24.91,
Department of Health,Salisbury NHS Foundation Trust,15-Aug-17,DRESSINGS - PRE STERILE,Clinical Support,NHS LOGISTICS,1018091716,3.33,
Department of Health,Salisbury NHS Foundation Trust,15-Aug-17,DRESSINGS  -  PROCEDURE PACKS,Clinical Support,NHS LOGISTICS,1018091716,5.65,
Department of Health,Salisbury NHS Foundation Trust,15-Aug-17,OTHER MEDICAL SUPPLIES,Clinical Support,NHS LOGISTICS,1018091716,6.84,
Department of Health,Salisbury NHS Foundation Trust,15-Aug-17,COOKING & KITCHEN UTENSILS,Clinical Support,NHS LOGISTICS,1018091716,12.67,
Department of Health,Salisbury NHS Foundation Trust,15-Aug-17,DISPOSABLE THEATRE DRAPES WIPES,Clinical Support,NHS LOGISTICS,1018091716,3.55,
Department of Health,Salisbury NHS Foundation Trust,15-Aug-17,NON DISPOSABLE BED LINEN,Clinical Support,NHS LOGISTICS,1018091716,11.83,
Department of Health,Salisbury NHS Foundation Trust,15-Aug-17,TISSUES HAND TOWELS & TOILET PAPER,Clinical Support,NHS LOGISTICS,1018091716,3.92,
Department of Health,Salisbury NHS Foundation Trust,15-Aug-17,TISSUES HAND TOWELS & TOILET PAPER,Clinical Support,NHS LOGISTICS,1018091716,21.3,
Department of Health,Salisbury NHS Foundation Trust,15-Aug-17,TISSUES HAND TOWELS & TOILET PAPER,Clinical Support,NHS LOGISTICS,1018091716,10.65,
Department of Health,Salisbury NHS Foundation Trust,15-Aug-17,LAB EQUIP-LABORATORY APPARATUS,Clinical Support,NHS LOGISTICS,1018091716,172,
Department of Health,Salisbury NHS Foundation Trust,15-Aug-17,TISSUES HAND TOWELS & TOILET PAPER,Clinical Support,NHS LOGISTICS,1018091716,3.72,
Department of Health,Salisbury NHS Foundation Trust,15-Aug-17,TISSUES HAND TOWELS & TOILET PAPER,Clinical Support,NHS LOGISTICS,1018091716,10.65,
Department of Health,Salisbury NHS Foundation Trust,15-Aug-17,MEDSURGCONS-LAPAROSCOPIC EQUIPMENT,Surgery,NHS LOGISTICS,1018091716,134.03,
Department of Health,Salisbury NHS Foundation Trust,15-Aug-17,PATIENT APPLIANCES,Surgery,NHS LOGISTICS,1018091716,3.29,
Department of Health,Salisbury NHS Foundation Trust,15-Aug-17,PATIENT APPLIANCES,Surgery,NHS LOGISTICS,1018091716,25.16,
Department of Health,Salisbury NHS Foundation Trust,15-Aug-17,MEDSURGCONS - OTHER,Surgery,NHS LOGISTICS,1018091716,146.75,
Department of Health,Salisbury NHS Foundation Trust,15-Aug-17,MEDSURGCONS - OTHER,Surgery,NHS LOGISTICS,1018091716,146.75,
Department of Health,Salisbury NHS Foundation Trust,15-Aug-17,MEDSURGCONS - OTHER,Surgery,NHS LOGISTICS,1018091716,146.75,
Department of Health,Salisbury NHS Foundation Trust,15-Aug-17,MEDSURGCONS - OTHER,Surgery,NHS LOGISTICS,1018091716,40.75,
Department of Health,Salisbury NHS Foundation Trust,15-Aug-17,MEDSURGCONS - OTHER,Surgery,NHS LOGISTICS,1018091716,40.75,
Department of Health,Salisbury NHS Foundation Trust,15-Aug-17,MEDSURGCONS - OTHER,Surgery,NHS LOGISTICS,1018091716,40.75,
Department of Health,Salisbury NHS Foundation Trust,15-Aug-17,COOKING & KITCHEN UTENSILS,Surgery,NHS LOGISTICS,1018091716,381.63,
Department of Health,Salisbury NHS Foundation Trust,15-Aug-17,COOKING & KITCHEN UTENSILS,Surgery,NHS LOGISTICS,1018091716,381.63,
Department of Health,Salisbury NHS Foundation Trust,15-Aug-17,COOKING & KITCHEN UTENSILS,Surgery,NHS LOGISTICS,1018091716,152.65,
Department of Health,Salisbury NHS Foundation Trust,15-Aug-17,COOKING & KITCHEN UTENSILS,Surgery,NHS LOGISTICS,1018091716,20,
Department of Health,Salisbury NHS Foundation Trust,15-Aug-17,TISSUES HAND TOWELS & TOILET PAPER,Surgery,NHS LOGISTICS,1018091716,2.48,
Department of Health,Salisbury NHS Foundation Trust,15-Aug-17,M & S EQUIPELECTEQUIPINST - OTHER,Surgery,NHS LOGISTICS,1018091716,259.79,
Department of Health,Salisbury NHS Foundation Trust,15-Aug-17,DRESSINGS - PRE STERILE,Musculo-Skeletal,NHS LOGISTICS,1018091716,237.4,
Department of Health,Salisbury NHS Foundation Trust,15-Aug-17,M & S EQUIPELECTEQUIPINST - OTHER,Musculo-Skeletal,NHS LOGISTICS,1018091716,287.63,
Department of Health,Salisbury NHS Foundation Trust,15-Aug-17,OTHER MEDICAL SUPPLIES,Corporate - Finance & Procurement,NHS LOGISTICS,1018091716,150,
Department of Health,Salisbury NHS Foundation Trust,15-Aug-17,COOKING & KITCHEN UTENSILS,Corporate - Finance & Procurement,NHS LOGISTICS,1018091716,185,
Department of Health,Salisbury NHS Foundation Trust,15-Aug-17,LIQUID REFRESHMENTS,Facilities,NHS LOGISTICS,1018091716,3.91,
Department of Health,Salisbury NHS Foundation Trust,15-Aug-17,CLEANING MATERIALS PRODUCTS SUNDRIES,Facilities,NHS LOGISTICS,1018091716,33.07,
Department of Health,Salisbury NHS Foundation Trust,15-Aug-17,CLEANING MATERIALS PRODUCTS SUNDRIES,Facilities,NHS LOGISTICS,1018091716,85.2,
Department of Health,Salisbury NHS Foundation Trust,15-Aug-17,CLEANING MATERIALS PRODUCTS SUNDRIES,Facilities,NHS LOGISTICS,1018091716,25.5,
Department of Health,Salisbury NHS Foundation Trust,15-Aug-17,CLEANING MATERIALS PRODUCTS SUNDRIES,Facilities,NHS LOGISTICS,1018091716,13.75,
Department of Health,Salisbury NHS Foundation Trust,15-Aug-17,DISPOSABLE THEATRE DRAPES WIPES,Facilities,NHS LOGISTICS,1018091716,266.8,
Department of Health,Salisbury NHS Foundation Trust,15-Aug-17,DISPOSABLE THEATRE DRAPES WIPES,Facilities,NHS LOGISTICS,1018091716,114,
Department of Health,Salisbury NHS Foundation Trust,15-Aug-17,BAGS SACKS - OTHER,Facilities,NHS LOGISTICS,1018091716,129,
Department of Health,Salisbury NHS Foundation Trust,15-Aug-17,ELECTRICAL EQUIPMENT x,Corporate - ETS,NHS LOGISTICS,1018091716,61.75,
Department of Health,Salisbury NHS Foundation Trust,15-Aug-17,ELECTRICAL EQUIPMENT x,Corporate - ETS,NHS LOGISTICS,1018091716,30.87,
Department of Health,Salisbury NHS Foundation Trust,15-Aug-17,ELECTRICAL EQUIPMENT x,Corporate - ETS,NHS LOGISTICS,1018091716,19.33,
Department of Health,Salisbury NHS Foundation Trust,15-Aug-17,MEDSURGCONS - OTHER,Medicine,NHS LOGISTICS,1018091716,17632.8,
Department of Health,Salisbury NHS Foundation Trust,15-Aug-17,TISSUES HAND TOWELS & TOILET PAPER,Corporate - HR/Education,NHS LOGISTICS,1018091716,7.45,
Department of Health,Salisbury NHS Foundation Trust,15-Aug-17,LAB EQUIP-LABORATORY APPARATUS,Clinical Support,NHS LOGISTICS,1018091716,3.12,
Department of Health,Salisbury NHS Foundation Trust,15-Aug-17,SURGICAL INSTRUMENTS: GENERAL,Medicine,NHS LOGISTICS,1018091716,20.68,
Department of Health,Salisbury NHS Foundation Trust,15-Aug-17,ELECTRICAL EQUIPMENT x,Corporate - ETS,NHS LOGISTICS,1018091716,12.35,
Department of Health,Salisbury NHS Foundation Trust,15-Aug-17,ADULTS HEARING AIDS,Surgery,NHS LOGISTICS,1018091716,174.53,
Department of Health,Salisbury NHS Foundation Trust,15-Aug-17,MEDSURGCONS - OTHER,Surgery,NHS LOGISTICS,1018091716,29.35,
Department of Health,Salisbury NHS Foundation Trust,15-Aug-17,MEDSURGCONS - OTHER,Surgery,NHS LOGISTICS,1018091716,29.35,
Department of Health,Salisbury NHS Foundation Trust,15-Aug-17,MEDSURGCONS - OTHER,Surgery,NHS LOGISTICS,1018091716,29.35,
Department of Health,Salisbury NHS Foundation Trust,15-Aug-17,MEDSURGCONS - OTHER,Surgery,NHS LOGISTICS,1018091716,8.15,
Department of Health,Salisbury NHS Foundation Trust,15-Aug-17,MEDSURGCONS - OTHER,Surgery,NHS LOGISTICS,1018091716,8.15,
Department of Health,Salisbury NHS Foundation Trust,15-Aug-17,MEDSURGCONS - OTHER,Surgery,NHS LOGISTICS,1018091716,8.15,
Department of Health,Salisbury NHS Foundation Trust,15-Aug-17,ELECTRICAL EQUIPMENT x,Corporate - ETS,NHS LOGISTICS,1018091716,6.17,
Department of Health,Salisbury NHS Foundation Trust,15-Aug-17,ELECTRICAL EQUIPMENT x,Corporate - ETS,NHS LOGISTICS,1018091716,3.87,
Department of Health,Salisbury NHS Foundation Trust,15-Aug-17,TISSUES HAND TOWELS & TOILET PAPER,Clinical Support,NHS LOGISTICS,1018091716,2.87,
Department of Health,Salisbury NHS Foundation Trust,15-Aug-17,PATIENT APPLIANCES,Surgery,NHS LOGISTICS,1018091716,0.66,
Department of Health,Salisbury NHS Foundation Trust,15-Aug-17,PATIENT APPLIANCES,Surgery,NHS LOGISTICS,1018091716,5.03,
Department of Health,Salisbury NHS Foundation Trust,15-Aug-17,SURGICAL INSTRUMENTS: GENERAL,Surgery,NHS LOGISTICS,1018091716,17.18,
Department of Health,Salisbury NHS Foundation Trust,15-Aug-17,MEDSURGCONS - OTHER,Surgery,NHS LOGISTICS,1018091716,14.4,
Department of Health,Salisbury NHS Foundation Trust,15-Aug-17,MEDSURGCONS - OTHER,Surgery,NHS LOGISTICS,1018091716,7.72,
Department of Health,Salisbury NHS Foundation Trust,15-Aug-17,DRESSINGS - PRE STERILE,Surgery,NHS LOGISTICS,1018091716,3.11,
Department of Health,Salisbury NHS Foundation Trust,15-Aug-17,TISSUES HAND TOWELS & TOILET PAPER,Corporate - HR/Education,NHS LOGISTICS,1018091716,1.49,
Department of Health,Salisbury NHS Foundation Trust,15-Aug-17,M & S EQUIPELECTEQUIPINST - OTHER,Surgery,NHS LOGISTICS,1018091716,1.8,
Department of Health,Salisbury NHS Foundation Trust,15-Aug-17,M & S EQUIPELECTEQUIPINST - OTHER,Surgery,NHS LOGISTICS,1018091716,1.8,
Department of Health,Salisbury NHS Foundation Trust,15-Aug-17,M & S EQUIPELECTEQUIPINST - OTHER,Surgery,NHS LOGISTICS,1018091716,1.8,
Department of Health,Salisbury NHS Foundation Trust,15-Aug-17,DRESSINGS - PRE STERILE,Musculo-Skeletal,NHS LOGISTICS,1018091716,28.84,
Department of Health,Salisbury NHS Foundation Trust,15-Aug-17,SURGICAL INSTRUMENTS: GENERAL,Surgery,NHS LOGISTICS,1018091716,17.18,
Department of Health,Salisbury NHS Foundation Trust,15-Aug-17,MEDSURGCONS - OTHER,Surgery,NHS LOGISTICS,1018091716,2.4,
Department of Health,Salisbury NHS Foundation Trust,15-Aug-17,DRESSINGS - PRE STERILE,Musculo-Skeletal,NHS LOGISTICS,1018091716,15.83,
Department of Health,Salisbury NHS Foundation Trust,15-Aug-17,OTHER MEDICAL SUPPLIES,Surgery,NHS LOGISTICS,1018091716,25.9,
Department of Health,Salisbury NHS Foundation Trust,15-Aug-17,PATIENT APPLIANCES,Clinical Support,NHS LOGISTICS,1018091716,18.89,
Department of Health,Salisbury NHS Foundation Trust,15-Aug-17,PATIENT APPLIANCES,Clinical Support,NHS LOGISTICS,1018091716,5,
Department of Health,Salisbury NHS Foundation Trust,15-Aug-17,LAB REAGENTS-BUFFERS COMPUND SOLNS,Clinical Support,NHS LOGISTICS,1018091716,173.33,
Department of Health,Salisbury NHS Foundation Trust,15-Aug-17,TISSUES HAND TOWELS & TOILET PAPER,Surgery,NHS LOGISTICS,1018091716,0.5,
Department of Health,Salisbury NHS Foundation Trust,15-Aug-17,MEDSURGCONS - OTHER,Musculo-Skeletal,NHS LOGISTICS,1018091716,31.05,
Department of Health,Salisbury NHS Foundation Trust,15-Aug-17,ANAESTHETIC EQUIPMENT ACCESSORIES,Musculo-Skeletal,NHS LOGISTICS,1018091716,3.19,
Department of Health,Salisbury NHS Foundation Trust,15-Aug-17,LAB EQUIP-LABORATORY APPARATUS,Clinical Support,NHS LOGISTICS,1018091716,34.4,
Department of Health,Salisbury NHS Foundation Trust,15-Aug-17,OTHER MEDICAL SUPPLIES,Clinical Support,NHS LOGISTICS,1018091716,12.21,
Department of Health,Salisbury NHS Foundation Trust,15-Aug-17,DRESSINGS - PRE STERILE,Musculo-Skeletal,NHS LOGISTICS,1018091716,3.06,
Department of Health,Salisbury NHS Foundation Trust,15-Aug-17,DRESSINGS - PRE STERILE,Musculo-Skeletal,NHS LOGISTICS,1018091716,1.2,
Department of Health,Salisbury NHS Foundation Trust,15-Aug-17,TISSUES HAND TOWELS & TOILET PAPER,Musculo-Skeletal,NHS LOGISTICS,1018091716,0.25,
Department of Health,Salisbury NHS Foundation Trust,15-Aug-17,DRESSINGS - PRE STERILE,Musculo-Skeletal,NHS LOGISTICS,1018091716,1.77,
Department of Health,Salisbury NHS Foundation Trust,15-Aug-17,TUBES,Musculo-Skeletal,NHS LOGISTICS,1018091716,2.74,
Department of Health,Salisbury NHS Foundation Trust,15-Aug-17,PATIENT APPLIANCES,Musculo-Skeletal,NHS LOGISTICS,1018091716,0.88,
Department of Health,Salisbury NHS Foundation Trust,15-Aug-17,TISSUES HAND TOWELS & TOILET PAPER,Musculo-Skeletal,NHS LOGISTICS,1018091716,0.07,
Department of Health,Salisbury NHS Foundation Trust,15-Aug-17,DISPOSABLE THEATRE DRAPES WIPES,Musculo-Skeletal,NHS LOGISTICS,1018091716,1.42,
Department of Health,Salisbury NHS Foundation Trust,15-Aug-17,DISPOSABLE THEATRE DRAPES WIPES,Musculo-Skeletal,NHS LOGISTICS,1018091716,6.16,
Department of Health,Salisbury NHS Foundation Trust,15-Aug-17,M & S EQUIPELECTEQUIPINST - OTHER,Medicine,NHS LOGISTICS,1018091716,1.42,
Department of Health,Salisbury NHS Foundation Trust,15-Aug-17,M & S EQUIPELECTEQUIPINST - OTHER,Surgery,NHS LOGISTICS,1018091716,1.55,
Department of Health,Salisbury NHS Foundation Trust,15-Aug-17,LAB EQUIP-LABORATORY APPARATUS,Clinical Support,NHS LOGISTICS,1018091716,10.09,
Department of Health,Salisbury NHS Foundation Trust,15-Aug-17,LAB EQUIP-LABORATORY APPARATUS,Clinical Support,NHS LOGISTICS,1018091716,71.2,
Department of Health,Salisbury NHS Foundation Trust,15-Aug-17,LAB EQUIP-LABORATORY APPARATUS,Clinical Support,NHS LOGISTICS,1018091716,2.58,
Department of Health,Salisbury NHS Foundation Trust,15-Aug-17,LAB EQUIP-LABORATORY APPARATUS,Clinical Support,NHS LOGISTICS,1018091716,159.4,
Department of Health,Salisbury NHS Foundation Trust,15-Aug-17,LAB EQUIP-LABORATORY APPARATUS,Clinical Support,NHS LOGISTICS,1018091716,7.7,
Department of Health,Salisbury NHS Foundation Trust,15-Aug-17,LAB EQUIP-ANALYSERS,Clinical Support,NHS LOGISTICS,1018091716,2.04,
Department of Health,Salisbury NHS Foundation Trust,15-Aug-17,DRESSINGS  -  PROCEDURE PACKS,Clinical Support,NHS LOGISTICS,1018091716,8.51,
Department of Health,Salisbury NHS Foundation Trust,15-Aug-17,TISSUES HAND TOWELS & TOILET PAPER,Clinical Support,NHS LOGISTICS,1018091716,1.49,
Department of Health,Salisbury NHS Foundation Trust,15-Aug-17,COOKING & KITCHEN UTENSILS,Clinical Support,NHS LOGISTICS,1018091716,1.01,
Department of Health,Salisbury NHS Foundation Trust,15-Aug-17,LAB EQUIP-LABORATORY APPARATUS,Clinical Support,NHS LOGISTICS,1018091716,30.54,
Department of Health,Salisbury NHS Foundation Trust,15-Aug-17,OTHER MEDICAL SUPPLIES,Clinical Support,NHS LOGISTICS,1018091716,91,
Department of Health,Salisbury NHS Foundation Trust,15-Aug-17,LAB REAGENTS-BUFFERS COMPUND SOLNS,Clinical Support,NHS LOGISTICS,1018091716,19.3,
Department of Health,Salisbury NHS Foundation Trust,15-Aug-17,LAB EQUIP-LABORATORY APPARATUS,Clinical Support,NHS LOGISTICS,1018091716,3.06,
Department of Health,Salisbury NHS Foundation Trust,15-Aug-17,BAGS SACKS - OTHER,Facilities,NHS LOGISTICS,1018091716,25.8,
Department of Health,Salisbury NHS Foundation Trust,15-Aug-17,LIQUID REFRESHMENTS,Facilities,NHS LOGISTICS,1018091716,0.78,
Department of Health,Salisbury NHS Foundation Trust,15-Aug-17,CLEANING MATERIALS PRODUCTS SUNDRIES,Facilities,NHS LOGISTICS,1018091716,6.61,
Department of Health,Salisbury NHS Foundation Trust,15-Aug-17,CLEANING MATERIALS PRODUCTS SUNDRIES,Facilities,NHS LOGISTICS,1018091716,2.75,
Department of Health,Salisbury NHS Foundation Trust,15-Aug-17,DISPOSABLE THEATRE DRAPES WIPES,Facilities,NHS LOGISTICS,1018091716,53.36,
Department of Health,Salisbury NHS Foundation Trust,15-Aug-17,CLEANING MATERIALS PRODUCTS SUNDRIES,Facilities,NHS LOGISTICS,1018091716,5.1,
Department of Health,Salisbury NHS Foundation Trust,15-Aug-17,CLEANING MATERIALS PRODUCTS SUNDRIES,Facilities,NHS LOGISTICS,1018091716,17.04,
Department of Health,Salisbury NHS Foundation Trust,15-Aug-17,DISPOSABLE THEATRE DRAPES WIPES,Facilities,NHS LOGISTICS,1018091716,22.8,
Department of Health,Salisbury NHS Foundation Trust,15-Aug-17,CLEANING MATERIALS PRODUCTS SUNDRIES,Medicine,NHS LOGISTICS,1018091716,1.11,
Department of Health,Salisbury NHS Foundation Trust,15-Aug-17,OTHER MEDICAL SUPPLIES,Medicine,NHS LOGISTICS,1018091716,0.38,
Department of Health,Salisbury NHS Foundation Trust,15-Aug-17,PATIENT APPLIANCES,Medicine,NHS LOGISTICS,1018091716,1.34,
Department of Health,Salisbury NHS Foundation Trust,15-Aug-17,PATIENT APPLIANCES,Medicine,NHS LOGISTICS,1018091716,1.34,
Department of Health,Salisbury NHS Foundation Trust,15-Aug-17,TISSUES HAND TOWELS & TOILET PAPER,Medicine,NHS LOGISTICS,1018091716,0.14,
Department of Health,Salisbury NHS Foundation Trust,15-Aug-17,TOILETRIES PERSONAL HYGIENE PRODUCTS,Medicine,NHS LOGISTICS,1018091716,0.83,
Department of Health,Salisbury NHS Foundation Trust,15-Aug-17,MEDSURGCONS - OTHER,Clinical Support,NHS LOGISTICS,1018091716,4.16,
Department of Health,Salisbury NHS Foundation Trust,15-Aug-17,OTHER MEDICAL SUPPLIES,Corporate - Finance & Procurement,NHS LOGISTICS,1018091716,30,
Department of Health,Salisbury NHS Foundation Trust,15-Aug-17,COOKING & KITCHEN UTENSILS,Corporate - Finance & Procurement,NHS LOGISTICS,1018091716,37,
Department of Health,Salisbury NHS Foundation Trust,15-Aug-17,M & S EQUIPELECTEQUIPINST - OTHER,Medicine,NHS LOGISTICS,1018091716,4.05,
Department of Health,Salisbury NHS Foundation Trust,15-Aug-17,DRESSINGS - PRE STERILE,Medicine,NHS LOGISTICS,1018091716,3.27,
Department of Health,Salisbury NHS Foundation Trust,15-Aug-17,DRESSINGS - PRE STERILE,Medicine,NHS LOGISTICS,1018091716,1.5,
Department of Health,Salisbury NHS Foundation Trust,15-Aug-17,TISSUES HAND TOWELS & TOILET PAPER,Medicine,NHS LOGISTICS,1018091716,0.16,
Department of Health,Salisbury NHS Foundation Trust,15-Aug-17,OTHER MEDICAL SUPPLIES,Medicine,NHS LOGISTICS,1018091716,0.75,
Department of Health,Salisbury NHS Foundation Trust,15-Aug-17,OTHER MEDICAL SUPPLIES,Medicine,NHS LOGISTICS,1018091716,1.78,
Department of Health,Salisbury NHS Foundation Trust,15-Aug-17,PATIENT APPLIANCES,Medicine,NHS LOGISTICS,1018091716,0.67,
Department of Health,Salisbury NHS Foundation Trust,15-Aug-17,PATIENT APPLIANCES,Medicine,NHS LOGISTICS,1018091716,0.67,
Department of Health,Salisbury NHS Foundation Trust,15-Aug-17,PATIENT APPLIANCES,Medicine,NHS LOGISTICS,1018091716,0.67,
Department of Health,Salisbury NHS Foundation Trust,15-Aug-17,DRESSINGS - PRE STERILE,Medicine,NHS LOGISTICS,1018091716,0.14,
Department of Health,Salisbury NHS Foundation Trust,15-Aug-17,DISPOSABLE THEATRE DRAPES WIPES,Medicine,NHS LOGISTICS,1018091716,1.42,
Department of Health,Salisbury NHS Foundation Trust,15-Aug-17,PATIENTS BABY WEAR,Medicine,NHS LOGISTICS,1018091716,6.43,
Department of Health,Salisbury NHS Foundation Trust,15-Aug-17,PATIENTS BABY WEAR,Medicine,NHS LOGISTICS,1018091716,1.43,
Department of Health,Salisbury NHS Foundation Trust,15-Aug-17,TOILETRIES PERSONAL HYGIENE PRODUCTS,Medicine,NHS LOGISTICS,1018091716,0.62,
Department of Health,Salisbury NHS Foundation Trust,15-Aug-17,TISSUES HAND TOWELS & TOILET PAPER,Medicine,NHS LOGISTICS,1018091716,0.25,
Department of Health,Salisbury NHS Foundation Trust,15-Aug-17,CLEANING MATERIALS PRODUCTS SUNDRIES,Medicine,NHS LOGISTICS,1018091716,1.11,
Department of Health,Salisbury NHS Foundation Trust,15-Aug-17,MEDSURGCONS - OTHER,Medicine,NHS LOGISTICS,1018091716,0.94,
Department of Health,Salisbury NHS Foundation Trust,15-Aug-17,OTHER MEDICAL SUPPLIES,Medicine,NHS LOGISTICS,1018091716,0.38,
Department of Health,Salisbury NHS Foundation Trust,15-Aug-17,SERVICES FROM NHS BODIES,Medicine,NHS LOGISTICS,1018091716,0.89,
Department of Health,Salisbury NHS Foundation Trust,15-Aug-17,MEDSURGCONS - OTHER,Medicine,NHS LOGISTICS,1018091716,11.96,
Department of Health,Salisbury NHS Foundation Trust,15-Aug-17,TISSUES HAND TOWELS & TOILET PAPER,Medicine,NHS LOGISTICS,1018091716,0.07,
Department of Health,Salisbury NHS Foundation Trust,15-Aug-17,MED SURG EQUIP REP MAINT CLEANING,Medicine,NHS LOGISTICS,1018091716,2.19,
Department of Health,Salisbury NHS Foundation Trust,15-Aug-17,DISPOSABLE THEATRE DRAPES WIPES,Medicine,NHS LOGISTICS,1018091716,0.71,
Department of Health,Salisbury NHS Foundation Trust,15-Aug-17,COOKING & KITCHEN UTENSILS,Surgery,NHS LOGISTICS,1018091716,4.08,
Department of Health,Salisbury NHS Foundation Trust,15-Aug-17,DRESSINGS - PRE STERILE,Musculo-Skeletal,NHS LOGISTICS,1018091716,2.47,
Department of Health,Salisbury NHS Foundation Trust,15-Aug-17,TISSUES HAND TOWELS & TOILET PAPER,Musculo-Skeletal,NHS LOGISTICS,1018091716,0.5,
Department of Health,Salisbury NHS Foundation Trust,15-Aug-17,TISSUES HAND TOWELS & TOILET PAPER,Medicine,NHS LOGISTICS,1018091716,0.5,
Department of Health,Salisbury NHS Foundation Trust,15-Aug-17,PATIENT APPLIANCES,Medicine,NHS LOGISTICS,1018091716,0.67,
Department of Health,Salisbury NHS Foundation Trust,15-Aug-17,PATIENT APPLIANCES,Medicine,NHS LOGISTICS,1018091716,0.67,
Department of Health,Salisbury NHS Foundation Trust,15-Aug-17,PATIENT APPLIANCES,Medicine,NHS LOGISTICS,1018091716,0.88,
Department of Health,Salisbury NHS Foundation Trust,15-Aug-17,TISSUES HAND TOWELS & TOILET PAPER,Medicine,NHS LOGISTICS,1018091716,0.07,
Department of Health,Salisbury NHS Foundation Trust,15-Aug-17,HEALTHCARE - WEAR,Surgery,NHS LOGISTICS,1018091716,4.62,
Department of Health,Salisbury NHS Foundation Trust,15-Aug-17,TISSUES HAND TOWELS & TOILET PAPER,Clinical Support,NHS LOGISTICS,1018091716,0.5,
Department of Health,Salisbury NHS Foundation Trust,15-Aug-17,OTHER MEDICAL SUPPLIES,Clinical Support,NHS LOGISTICS,1018091716,2.74,
Department of Health,Salisbury NHS Foundation Trust,15-Aug-17,OTHER MEDICAL SUPPLIES,Clinical Support,NHS LOGISTICS,1018091716,0.38,
Department of Health,Salisbury NHS Foundation Trust,15-Aug-17,DRESSINGS - PRE STERILE,Clinical Support,NHS LOGISTICS,1018091716,1.11,
Department of Health,Salisbury NHS Foundation Trust,15-Aug-17,M & S EQUIPELECTEQUIPINST - OTHER,Surgery,NHS LOGISTICS,1018091716,51.96,
Department of Health,Salisbury NHS Foundation Trust,15-Aug-17,OTHER MEDICAL SUPPLIES,Medicine,NHS LOGISTICS,1018091716,22.23,
Department of Health,Salisbury NHS Foundation Trust,15-Aug-17,COOKING & KITCHEN UTENSILS,Surgery,NHS LOGISTICS,1018091716,76.33,
Department of Health,Salisbury NHS Foundation Trust,15-Aug-17,PATIENTS BEDWEAR UNISEX,Musculo-Skeletal,NHS LOGISTICS,1018091716,11.65,
Department of Health,Salisbury NHS Foundation Trust,15-Aug-17,OTHER MEDICAL SUPPLIES,Musculo-Skeletal,NHS LOGISTICS,1018091716,5.25,
Department of Health,Salisbury NHS Foundation Trust,15-Aug-17,PATIENT APPLIANCES,Clinical Support,NHS LOGISTICS,1018091716,0.86,
Department of Health,Salisbury NHS Foundation Trust,15-Aug-17,ELECTRICAL EQUIPMENT x,Medicine,NHS LOGISTICS,1018091716,1.16,
Department of Health,Salisbury NHS Foundation Trust,15-Aug-17,DRESSINGS - PRE STERILE,Surgery,NHS LOGISTICS,1018091716,33.05,
Department of Health,Salisbury NHS Foundation Trust,15-Aug-17,PATIENT APPLIANCES,Medicine,NHS LOGISTICS,1018091716,11.75,
Department of Health,Salisbury NHS Foundation Trust,15-Aug-17,DRESSINGS - PRE STERILE,Medicine,NHS LOGISTICS,1018091716,3.27,
Department of Health,Salisbury NHS Foundation Trust,15-Aug-17,MEDSURGCONS - OTHER,Medicine,NHS LOGISTICS,1018091716,0.94,
Department of Health,Salisbury NHS Foundation Trust,15-Aug-17,TUBES,Medicine,NHS LOGISTICS,1018091716,1.37,
Department of Health,Salisbury NHS Foundation Trust,15-Aug-17,OTHER MEDICAL SUPPLIES,Medicine,NHS LOGISTICS,1018091716,1.72,
Department of Health,Salisbury NHS Foundation Trust,15-Aug-17,OTHER MEDICAL SUPPLIES,Medicine,NHS LOGISTICS,1018091716,0.75,
Department of Health,Salisbury NHS Foundation Trust,15-Aug-17,DISPOSABLE THEATRE DRAPES WIPES,Medicine,NHS LOGISTICS,1018091716,4.26,
Department of Health,Salisbury NHS Foundation Trust,15-Aug-17,TISSUES HAND TOWELS & TOILET PAPER,Clinical Support,NHS LOGISTICS,1018091716,4.26,
Department of Health,Salisbury NHS Foundation Trust,15-Aug-17,DRESSINGS - PRE STERILE,Clinical Support,NHS LOGISTICS,1018091716,4.98,
Department of Health,Salisbury NHS Foundation Trust,15-Aug-17,OTHER MEDICAL SUPPLIES,Clinical Support,NHS LOGISTICS,1018091716,1.37,
Department of Health,Salisbury NHS Foundation Trust,15-Aug-17,DRESSINGS - PRE STERILE,Clinical Support,NHS LOGISTICS,1018091716,0.67,
Department of Health,Salisbury NHS Foundation Trust,15-Aug-17,NON DISPOSABLE BED LINEN,Clinical Support,NHS LOGISTICS,1018091716,2.37,
Department of Health,Salisbury NHS Foundation Trust,15-Aug-17,DISPOSABLE THEATRE DRAPES WIPES,Clinical Support,NHS LOGISTICS,1018091716,0.71,
Department of Health,Salisbury NHS Foundation Trust,15-Aug-17,TISSUES HAND TOWELS & TOILET PAPER,Surgery,NHS LOGISTICS,1018091716,0.25,
Department of Health,Salisbury NHS Foundation Trust,15-Aug-17,MEDSURGCONS - OTHER,Surgery,NHS LOGISTICS,1018091716,0.75,
Department of Health,Salisbury NHS Foundation Trust,15-Aug-17,DISPOSABLE THEATRE DRAPES WIPES,Surgery,NHS LOGISTICS,1018091716,2.28,
Department of Health,Salisbury NHS Foundation Trust,15-Aug-17,MEDSURGCONS - OTHER,Surgery,NHS LOGISTICS,1018091716,2.82,
Department of Health,Salisbury NHS Foundation Trust,15-Aug-17,SURGICAL INSTRUMENTS: GENERAL,Surgery,NHS LOGISTICS,1018091716,0.9,
Department of Health,Salisbury NHS Foundation Trust,15-Aug-17,OTHER MEDICAL SUPPLIES,Surgery,NHS LOGISTICS,1018091716,1.13,
Department of Health,Salisbury NHS Foundation Trust,15-Aug-17,BEVERAGES & AMBIENT FOOD,Surgery,NHS LOGISTICS,1018091716,2.87,
Department of Health,Salisbury NHS Foundation Trust,15-Aug-17,BEVERAGES & AMBIENT FOOD,Surgery,NHS LOGISTICS,1018091716,0.17,
Department of Health,Salisbury NHS Foundation Trust,15-Aug-17,BEVERAGES & AMBIENT FOOD,Surgery,NHS LOGISTICS,1018091716,0.28,
Department of Health,Salisbury NHS Foundation Trust,15-Aug-17,DISPOSABLE THEATRE DRAPES WIPES,Surgery,NHS LOGISTICS,1018091716,2.13,
Department of Health,Salisbury NHS Foundation Trust,15-Aug-17,DRESSINGS - PRE STERILE,Surgery,NHS LOGISTICS,1018091716,5.04,
Department of Health,Salisbury NHS Foundation Trust,15-Aug-17,SURGICAL INSTRUMENTS: GENERAL,Surgery,NHS LOGISTICS,1018091716,12.56,
Department of Health,Salisbury NHS Foundation Trust,15-Aug-17,SURGICAL INSTRUMENTS: GENERAL,Surgery,NHS LOGISTICS,1018091716,12.56,
Department of Health,Salisbury NHS Foundation Trust,15-Aug-17,ADULTS HEARING AIDS,Surgery,NHS LOGISTICS,1018091716,14.13,
Department of Health,Salisbury NHS Foundation Trust,15-Aug-17,ADULTS HEARING AIDS,Surgery,NHS LOGISTICS,1018091716,141.5,
Department of Health,Salisbury NHS Foundation Trust,15-Aug-17,ADULTS HEARING AIDS,Surgery,NHS LOGISTICS,1018091716,533.92,
Department of Health,Salisbury NHS Foundation Trust,15-Aug-17,RENAL CONSUMEABLES,Medicine,NHS LOGISTICS,1018091716,63.53,
Department of Health,Salisbury NHS Foundation Trust,15-Aug-17,DRESSINGS - PRE STERILE,Musculo-Skeletal,NHS LOGISTICS,1018091716,12.23,
Department of Health,Salisbury NHS Foundation Trust,15-Aug-17,DRESSINGS - PRE STERILE,Musculo-Skeletal,NHS LOGISTICS,1018091716,0.16,
Department of Health,Salisbury NHS Foundation Trust,15-Aug-17,DRESSINGS - PRE STERILE,Musculo-Skeletal,NHS LOGISTICS,1018091716,16.36,
Department of Health,Salisbury NHS Foundation Trust,15-Aug-17,DRESSINGS - PRE STERILE,Musculo-Skeletal,NHS LOGISTICS,1018091716,35.94,
Department of Health,Salisbury NHS Foundation Trust,15-Aug-17,MEDSURGCONS - OTHER,Musculo-Skeletal,NHS LOGISTICS,1018091716,0.97,
Department of Health,Salisbury NHS Foundation Trust,15-Aug-17,TOILETRIES PERSONAL HYGIENE PRODUCTS,Surgery,NHS LOGISTICS,1018091716,0.62,
Department of Health,Salisbury NHS Foundation Trust,15-Aug-17,DRESSINGS - PRE STERILE,Surgery,NHS LOGISTICS,1018091716,2.24,
Department of Health,Salisbury NHS Foundation Trust,15-Aug-17,DRESSINGS - PRE STERILE,Surgery,NHS LOGISTICS,1018091716,1.2,
Department of Health,Salisbury NHS Foundation Trust,15-Aug-17,DRESSINGS - PRE STERILE,Surgery,NHS LOGISTICS,1018091716,1.99,
Department of Health,Salisbury NHS Foundation Trust,15-Aug-17,OTHER MEDICAL SUPPLIES,Surgery,NHS LOGISTICS,1018091716,0.38,
Department of Health,Salisbury NHS Foundation Trust,15-Aug-17,PATIENT APPLIANCES,Surgery,NHS LOGISTICS,1018091716,0.67,
Department of Health,Salisbury NHS Foundation Trust,15-Aug-17,TISSUES HAND TOWELS & TOILET PAPER,Surgery,NHS LOGISTICS,1018091716,0.14,
Department of Health,Salisbury NHS Foundation Trust,15-Aug-17,BABY TEXTURE MODIFIED FOODS,Clinical Support,NHS LOGISTICS,1018091716,6.33,
Department of Health,Salisbury NHS Foundation Trust,15-Aug-17,TUBES,Medicine,NHS LOGISTICS,1018091716,1.37,
Department of Health,Salisbury NHS Foundation Trust,15-Aug-17,SURGICAL INSTRUMENTS: GENERAL,Medicine,NHS LOGISTICS,1018091716,0.98,
Department of Health,Salisbury NHS Foundation Trust,15-Aug-17,OTHER MEDICAL SUPPLIES,Medicine,NHS LOGISTICS,1018091716,1.13,
Department of Health,Salisbury NHS Foundation Trust,15-Aug-17,DISPOSABLE TABLE LINEN,Medicine,NHS LOGISTICS,1018091716,0.14,
Department of Health,Salisbury NHS Foundation Trust,15-Aug-17,PATIENT APPLIANCES,Medicine,NHS LOGISTICS,1018091716,1.76,
Department of Health,Salisbury NHS Foundation Trust,15-Aug-17,MEDSURGCONS - OTHER,Medicine,NHS LOGISTICS,1018091716,1.18,
Department of Health,Salisbury NHS Foundation Trust,15-Aug-17,MEDSURGCONS - OTHER,Medicine,NHS LOGISTICS,1018091716,0.78,
Department of Health,Salisbury NHS Foundation Trust,15-Aug-17,MEDSURGCONS - OTHER,Medicine,NHS LOGISTICS,1018091716,1.36,
Department of Health,Salisbury NHS Foundation Trust,15-Aug-17,TISSUES HAND TOWELS & TOILET PAPER,Medicine,NHS LOGISTICS,1018091716,0.14,
Department of Health,Salisbury NHS Foundation Trust,15-Aug-17,DISPOSABLE THEATRE DRAPES WIPES,Medicine,NHS LOGISTICS,1018091716,0.71,
Department of Health,Salisbury NHS Foundation Trust,15-Aug-17,COOKING & KITCHEN UTENSILS,Surgery,NHS LOGISTICS,1018091716,30.53,
Department of Health,Salisbury NHS Foundation Trust,15-Aug-17,TISSUES HAND TOWELS & TOILET PAPER,Clinical Support,NHS LOGISTICS,1018091716,0.5,
Department of Health,Salisbury NHS Foundation Trust,15-Aug-17,MEDSURGCONS - OTHER,Clinical Support,NHS LOGISTICS,1018091716,0.78,
Department of Health,Salisbury NHS Foundation Trust,15-Aug-17,OTHER MEDICAL SUPPLIES,Clinical Support,NHS LOGISTICS,1018091716,1.37,
Department of Health,Salisbury NHS Foundation Trust,15-Aug-17,OTHER MEDICAL SUPPLIES,Clinical Support,NHS LOGISTICS,1018091716,1.88,
Department of Health,Salisbury NHS Foundation Trust,15-Aug-17,MEDSURGCONS - OTHER,Clinical Support,NHS LOGISTICS,1018091716,3.32,
Department of Health,Salisbury NHS Foundation Trust,15-Aug-17,MEDSURGCONS - OTHER,Clinical Support,NHS LOGISTICS,1018091716,2.66,
Department of Health,Salisbury NHS Foundation Trust,15-Aug-17,MEDSURGCONS - OTHER,Clinical Support,NHS LOGISTICS,1018091716,1.56,
Department of Health,Salisbury NHS Foundation Trust,15-Aug-17,MEDSURGCONS - OTHER,Clinical Support,NHS LOGISTICS,1018091716,1.36,
Department of Health,Salisbury NHS Foundation Trust,15-Aug-17,BABY TEXTURE MODIFIED FOODS,Clinical Support,NHS LOGISTICS,1018091716,3.31,
Department of Health,Salisbury NHS Foundation Trust,15-Aug-17,M & S EQUIPELECTEQUIPINST - OTHER,Clinical Support,NHS LOGISTICS,1018091716,0.29,
Department of Health,Salisbury NHS Foundation Trust,15-Aug-17,DISPOSABLE THEATRE DRAPES WIPES,Clinical Support,NHS LOGISTICS,1018091716,1.42,
Department of Health,Salisbury NHS Foundation Trust,15-Aug-17,TISSUES HAND TOWELS & TOILET PAPER,Clinical Support,NHS LOGISTICS,1018091716,2.13,
Department of Health,Salisbury NHS Foundation Trust,15-Aug-17,COOKING & KITCHEN UTENSILS,Clinical Support,NHS LOGISTICS,1018091716,2.53,
Department of Health,Salisbury NHS Foundation Trust,15-Aug-17,TISSUES HAND TOWELS & TOILET PAPER,Clinical Support,NHS LOGISTICS,1018091716,0.78,
Department of Health,Salisbury NHS Foundation Trust,15-Aug-17,DRESSINGS  -  PROCEDURE PACKS,Clinical Support,NHS LOGISTICS,1018091716,1.13,
Department of Health,Salisbury NHS Foundation Trust,15-Aug-17,TUBES,Medicine,NHS LOGISTICS,1018091716,1.37,
Department of Health,Salisbury NHS Foundation Trust,15-Aug-17,SURGICAL INSTRUMENTS: GENERAL,Medicine,NHS LOGISTICS,1018091716,2.95,
Department of Health,Salisbury NHS Foundation Trust,15-Aug-17,OTHER MEDICAL SUPPLIES,Medicine,NHS LOGISTICS,1018091716,1.13,
Department of Health,Salisbury NHS Foundation Trust,15-Aug-17,TISSUES HAND TOWELS & TOILET PAPER,Medicine,NHS LOGISTICS,1018091716,0.21,
Department of Health,Salisbury NHS Foundation Trust,15-Aug-17,DISPOSABLE THEATRE DRAPES WIPES,Medicine,NHS LOGISTICS,1018091716,0.71,
Department of Health,Salisbury NHS Foundation Trust,15-Aug-17,CLEANING MATERIALS PRODUCTS SUNDRIES,Medicine,NHS LOGISTICS,1018091716,1.11,
Department of Health,Salisbury NHS Foundation Trust,15-Aug-17,OTHER MEDICAL SUPPLIES,Medicine,NHS LOGISTICS,1018091716,1.12,
Department of Health,Salisbury NHS Foundation Trust,15-Aug-17,OTHER MEDICAL SUPPLIES,Medicine,NHS LOGISTICS,1018091716,1.13,
Department of Health,Salisbury NHS Foundation Trust,15-Aug-17,MEDSURGCONS - OTHER,Medicine,NHS LOGISTICS,1018091716,1.18,
Department of Health,Salisbury NHS Foundation Trust,15-Aug-17,MEDSURGCONS - OTHER,Medicine,NHS LOGISTICS,1018091716,0.78,
Department of Health,Salisbury NHS Foundation Trust,15-Aug-17,TISSUES HAND TOWELS & TOILET PAPER,Medicine,NHS LOGISTICS,1018091716,0.21,
Department of Health,Salisbury NHS Foundation Trust,15-Aug-17,DISPOSABLE THEATRE DRAPES WIPES,Medicine,NHS LOGISTICS,1018091716,2.13,
Department of Health,Salisbury NHS Foundation Trust,15-Aug-17,TOILETRIES PERSONAL HYGIENE PRODUCTS,Surgery,NHS LOGISTICS,1018091716,3.08,
Department of Health,Salisbury NHS Foundation Trust,15-Aug-17,CLEANING MATERIALS PRODUCTS SUNDRIES,Surgery,NHS LOGISTICS,1018091716,1.11,
Department of Health,Salisbury NHS Foundation Trust,15-Aug-17,DRESSINGS - PRE STERILE,Surgery,NHS LOGISTICS,1018091716,1.2,
Department of Health,Salisbury NHS Foundation Trust,15-Aug-17,DISPOSABLE THEATRE DRAPES WIPES,Surgery,NHS LOGISTICS,1018091716,2.13,
Department of Health,Salisbury NHS Foundation Trust,15-Aug-17,PATIENTS BEDWEAR UNISEX,Clinical Support,NHS LOGISTICS,1018091716,3.2,
Department of Health,Salisbury NHS Foundation Trust,15-Aug-17,DRESSINGS - PRE STERILE,Clinical Support,NHS LOGISTICS,1018091716,0.07,
Department of Health,Salisbury NHS Foundation Trust,15-Aug-17,DRESSINGS - PRE STERILE,Musculo-Skeletal,NHS LOGISTICS,1018091716,47.48,
Department of Health,Salisbury NHS Foundation Trust,15-Aug-17,SURGICAL INSTRUMENTS: DISPOSABLE,Surgery,NHS LOGISTICS,1018091716,2.4,
Department of Health,Salisbury NHS Foundation Trust,15-Aug-17,SURGICAL INSTRUMENTS: GENERAL,Surgery,NHS LOGISTICS,1018091716,12.56,
Department of Health,Salisbury NHS Foundation Trust,15-Aug-17,MEDSURGCONS-LAPAROSCOPIC EQUIPMENT,Surgery,NHS LOGISTICS,1018091716,26.81,
Department of Health,Salisbury NHS Foundation Trust,15-Aug-17,DRESSINGS - PRE STERILE,Surgery,NHS LOGISTICS,1018091716,6.53,
Department of Health,Salisbury NHS Foundation Trust,15-Aug-17,OTHER MEDICAL SUPPLIES,Surgery,NHS LOGISTICS,1018091716,3.77,
Department of Health,Salisbury NHS Foundation Trust,15-Aug-17,DISPOSABLE THEATRE DRAPES WIPES,Surgery,NHS LOGISTICS,1018091716,1.42,
Department of Health,Salisbury NHS Foundation Trust,15-Aug-17,TISSUES HAND TOWELS & TOILET PAPER,Medicine,NHS LOGISTICS,1018091716,0.25,
Department of Health,Salisbury NHS Foundation Trust,15-Aug-17,DRESSINGS - PRE STERILE,Medicine,NHS LOGISTICS,1018091716,3.27,
Department of Health,Salisbury NHS Foundation Trust,15-Aug-17,HEALTHCARE - WEAR,Medicine,NHS LOGISTICS,1018091716,6.39,
Department of Health,Salisbury NHS Foundation Trust,15-Aug-17,OTHER MEDICAL SUPPLIES,Medicine,NHS LOGISTICS,1018091716,0.38,
Department of Health,Salisbury NHS Foundation Trust,15-Aug-17,M & S EQUIPELECTEQUIPINST - OTHER,Medicine,NHS LOGISTICS,1018091716,0.29,
Department of Health,Salisbury NHS Foundation Trust,15-Aug-17,DISPOSABLE THEATRE DRAPES WIPES,Medicine,NHS LOGISTICS,1018091716,0.71,
Department of Health,Salisbury NHS Foundation Trust,15-Aug-17,DISPOSABLE THEATRE DRAPES WIPES,Medicine,NHS LOGISTICS,1018091716,1.54,
Department of Health,Salisbury NHS Foundation Trust,15-Aug-17,DRESSINGS - PRE STERILE,Musculo-Skeletal,NHS LOGISTICS,1018091716,3.06,
Department of Health,Salisbury NHS Foundation Trust,15-Aug-17,TISSUES HAND TOWELS & TOILET PAPER,Musculo-Skeletal,NHS LOGISTICS,1018091716,0.74,
Department of Health,Salisbury NHS Foundation Trust,15-Aug-17,DRESSINGS - PRE STERILE,Musculo-Skeletal,NHS LOGISTICS,1018091716,4.98,
Department of Health,Salisbury NHS Foundation Trust,15-Aug-17,TUBES,Musculo-Skeletal,NHS LOGISTICS,1018091716,1.37,
Department of Health,Salisbury NHS Foundation Trust,15-Aug-17,PATIENT APPLIANCES,Musculo-Skeletal,NHS LOGISTICS,1018091716,0.67,
Department of Health,Salisbury NHS Foundation Trust,15-Aug-17,PATIENT APPLIANCES,Musculo-Skeletal,NHS LOGISTICS,1018091716,0.88,
Department of Health,Salisbury NHS Foundation Trust,15-Aug-17,TISSUES HAND TOWELS & TOILET PAPER,Musculo-Skeletal,NHS LOGISTICS,1018091716,0.07,
Department of Health,Salisbury NHS Foundation Trust,15-Aug-17,DISPOSABLE THEATRE DRAPES WIPES,Musculo-Skeletal,NHS LOGISTICS,1018091716,1.42,
Department of Health,Salisbury NHS Foundation Trust,15-Aug-17,DISPOSABLE THEATRE DRAPES WIPES,Musculo-Skeletal,NHS LOGISTICS,1018091716,2.07,
Department of Health,Salisbury NHS Foundation Trust,15-Aug-17,TUBES,Medicine,NHS LOGISTICS,1018091716,1.41,
Department of Health,Salisbury NHS Foundation Trust,15-Aug-17,DRESSINGS - PRE STERILE,Medicine,NHS LOGISTICS,1018091716,2.49,
Department of Health,Salisbury NHS Foundation Trust,15-Aug-17,OTHER MEDICAL SUPPLIES,Medicine,NHS LOGISTICS,1018091716,1.37,
Department of Health,Salisbury NHS Foundation Trust,15-Aug-17,DRESSINGS - PRE STERILE,Medicine,NHS LOGISTICS,1018091716,6.46,
Department of Health,Salisbury NHS Foundation Trust,15-Aug-17,DISPOSABLE THEATRE DRAPES WIPES,Medicine,NHS LOGISTICS,1018091716,0.71,
Department of Health,Salisbury NHS Foundation Trust,15-Aug-17,ADULTS HEARING AIDS,Surgery,NHS LOGISTICS,1018091716,18.75,
Department of Health,Salisbury NHS Foundation Trust,15-Aug-17,ADULTS HEARING AIDS,Surgery,NHS LOGISTICS,1018091716,18.75,
Department of Health,Salisbury NHS Foundation Trust,15-Aug-17,BEVERAGES & AMBIENT FOOD,Facilities,NHS LOGISTICS,1018091716,1.12,
Department of Health,Salisbury NHS Foundation Trust,15-Aug-17,BEVERAGES & AMBIENT FOOD,Facilities,NHS LOGISTICS,1018091716,2.64,
Department of Health,Salisbury NHS Foundation Trust,15-Aug-17,LIQUID REFRESHMENTS,Facilities,NHS LOGISTICS,1018091716,2.48,
Department of Health,Salisbury NHS Foundation Trust,15-Aug-17,TISSUES HAND TOWELS & TOILET PAPER,Facilities,NHS LOGISTICS,1018091716,2.13,
Department of Health,Salisbury NHS Foundation Trust,15-Aug-17,BEVERAGES & AMBIENT FOOD,Facilities,NHS LOGISTICS,1018091716,3.23,
Department of Health,Salisbury NHS Foundation Trust,15-Aug-17,COOKING & KITCHEN UTENSILS,Facilities,NHS LOGISTICS,1018091716,3.21,
Department of Health,Salisbury NHS Foundation Trust,15-Aug-17,BEVERAGES & AMBIENT FOOD,Facilities,NHS LOGISTICS,1018091716,1.87,
Department of Health,Salisbury NHS Foundation Trust,15-Aug-17,BEVERAGES & AMBIENT FOOD,Facilities,NHS LOGISTICS,1018091716,6.67,
Department of Health,Salisbury NHS Foundation Trust,15-Aug-17,BEVERAGES & AMBIENT FOOD,Facilities,NHS LOGISTICS,1018091716,5.36,
Department of Health,Salisbury NHS Foundation Trust,15-Aug-17,LIQUID REFRESHMENTS,Facilities,NHS LOGISTICS,1018091716,1.32,
Department of Health,Salisbury NHS Foundation Trust,15-Aug-17,LIQUID REFRESHMENTS,Facilities,NHS LOGISTICS,1018091716,0.51,
Department of Health,Salisbury NHS Foundation Trust,15-Aug-17,LIQUID REFRESHMENTS,Facilities,NHS LOGISTICS,1018091716,2.97,
Department of Health,Salisbury NHS Foundation Trust,15-Aug-17,FLAVOURINGS HERBS SPICES,Facilities,NHS LOGISTICS,1018091716,4.03,
Department of Health,Salisbury NHS Foundation Trust,15-Aug-17,LIQUID REFRESHMENTS,Facilities,NHS LOGISTICS,1018091716,20.4,
Department of Health,Salisbury NHS Foundation Trust,15-Aug-17,COOKING & KITCHEN UTENSILS,Facilities,NHS LOGISTICS,1018091716,1.69,
Department of Health,Salisbury NHS Foundation Trust,15-Aug-17,BEVERAGES & AMBIENT FOOD,Facilities,NHS LOGISTICS,1018091716,2.37,
Department of Health,Salisbury NHS Foundation Trust,15-Aug-17,BEVERAGES & AMBIENT FOOD,Facilities,NHS LOGISTICS,1018091716,2.48,
Department of Health,Salisbury NHS Foundation Trust,15-Aug-17,LIQUID REFRESHMENTS,Facilities,NHS LOGISTICS,1018091716,1.75,
Department of Health,Salisbury NHS Foundation Trust,15-Aug-17,BEVERAGES & AMBIENT FOOD,Facilities,NHS LOGISTICS,1018091716,10.55,
Department of Health,Salisbury NHS Foundation Trust,15-Aug-17,LIQUID REFRESHMENTS,Facilities,NHS LOGISTICS,1018091716,4.93,
Department of Health,Salisbury NHS Foundation Trust,15-Aug-17,LIQUID REFRESHMENTS,Facilities,NHS LOGISTICS,1018091716,2,
Department of Health,Salisbury NHS Foundation Trust,15-Aug-17,LIQUID REFRESHMENTS,Facilities,NHS LOGISTICS,1018091716,0.93,
Department of Health,Salisbury NHS Foundation Trust,15-Aug-17,LIQUID REFRESHMENTS,Facilities,NHS LOGISTICS,1018091716,1.83,
Department of Health,Salisbury NHS Foundation Trust,15-Aug-17,LIQUID REFRESHMENTS,Facilities,NHS LOGISTICS,1018091716,2.65,
Department of Health,Salisbury NHS Foundation Trust,15-Aug-17,LIQUID REFRESHMENTS,Facilities,NHS LOGISTICS,1018091716,2.65,
Department of Health,Salisbury NHS Foundation Trust,15-Aug-17,MEDSURGCONS - OTHER,Medicine,NHS LOGISTICS,1018091716,3526.56,
Department of Health,Salisbury NHS Foundation Trust,15-Aug-17,M & S EQUIPELECTEQUIPINST - OTHER,Clinical Support,NHS LOGISTICS,1018091716,45.83,
Department of Health,Salisbury NHS Foundation Trust,15-Aug-17,TOILETRIES PERSONAL HYGIENE PRODUCTS,Clinical Support,NHS LOGISTICS,1018091716,0.62,
Department of Health,Salisbury NHS Foundation Trust,15-Aug-17,TISSUES HAND TOWELS & TOILET PAPER,Clinical Support,NHS LOGISTICS,1018091716,0.25,
Department of Health,Salisbury NHS Foundation Trust,15-Aug-17,DRESSINGS - PRE STERILE,Clinical Support,NHS LOGISTICS,1018091716,3.27,
Department of Health,Salisbury NHS Foundation Trust,15-Aug-17,MED SURG EQUIP REP MAINT CLEANING,Clinical Support,NHS LOGISTICS,1018091716,22.08,
Department of Health,Salisbury NHS Foundation Trust,15-Aug-17,M & S EQUIPELECTEQUIPINST - OTHER,Clinical Support,NHS LOGISTICS,1018091716,26.04,
Department of Health,Salisbury NHS Foundation Trust,15-Aug-17,OTHER MEDICAL SUPPLIES,Clinical Support,NHS LOGISTICS,1018091716,14.99,
Department of Health,Salisbury NHS Foundation Trust,15-Aug-17,DISPOSABLE THEATRE DRAPES WIPES,Clinical Support,NHS LOGISTICS,1018091716,0.71,
Department of Health,Salisbury NHS Foundation Trust,15-Aug-17,TISSUES HAND TOWELS & TOILET PAPER,Surgery,NHS LOGISTICS,1018091716,0.25,
Department of Health,Salisbury NHS Foundation Trust,15-Aug-17,OTHER MEDICAL SUPPLIES,Surgery,NHS LOGISTICS,1018091716,9.26,
Department of Health,Salisbury NHS Foundation Trust,15-Aug-17,OTHER MEDICAL SUPPLIES,Surgery,NHS LOGISTICS,1018091716,9.26,
Department of Health,Salisbury NHS Foundation Trust,15-Aug-17,DISPOSABLE THEATRE DRAPES WIPES,Surgery,NHS LOGISTICS,1018091716,0.9,
Department of Health,Salisbury NHS Foundation Trust,15-Aug-17,TOILETRIES PERSONAL HYGIENE PRODUCTS,Surgery,NHS LOGISTICS,1018091716,1.85,
Department of Health,Salisbury NHS Foundation Trust,15-Aug-17,TISSUES HAND TOWELS & TOILET PAPER,Musculo-Skeletal,NHS LOGISTICS,1018091716,0.5,
Department of Health,Salisbury NHS Foundation Trust,15-Aug-17,DRESSINGS - PRE STERILE,Musculo-Skeletal,NHS LOGISTICS,1018091716,3.27,
Department of Health,Salisbury NHS Foundation Trust,15-Aug-17,OTHER MEDICAL SUPPLIES,Musculo-Skeletal,NHS LOGISTICS,1018091716,0.75,
Department of Health,Salisbury NHS Foundation Trust,15-Aug-17,DISPOSABLE THEATRE DRAPES WIPES,Musculo-Skeletal,NHS LOGISTICS,1018091716,1.42,
Department of Health,Salisbury NHS Foundation Trust,15-Aug-17,DRESSINGS - PRE STERILE,Surgery,NHS LOGISTICS,1018091716,13.39,
Department of Health,Salisbury NHS Foundation Trust,15-Aug-17,DRESSINGS - PRE STERILE,Surgery,NHS LOGISTICS,1018091716,5.14,
Department of Health,Salisbury NHS Foundation Trust,15-Aug-17,DRESSINGS - PRE STERILE,Surgery,NHS LOGISTICS,1018091716,0.78,
Department of Health,Salisbury NHS Foundation Trust,15-Aug-17,DRESSINGS - PRE STERILE,Surgery,NHS LOGISTICS,1018091716,0.78,
Department of Health,Salisbury NHS Foundation Trust,15-Aug-17,DRESSINGS - PRE STERILE,Surgery,NHS LOGISTICS,1018091716,1.87,
Department of Health,Salisbury NHS Foundation Trust,15-Aug-17,TISSUES HAND TOWELS & TOILET PAPER,Surgery,NHS LOGISTICS,1018091716,0.37,
Department of Health,Salisbury NHS Foundation Trust,15-Aug-17,TISSUES HAND TOWELS & TOILET PAPER,Surgery,NHS LOGISTICS,1018091716,1.49,
Department of Health,Salisbury NHS Foundation Trust,15-Aug-17,MEDSURGCONS - OTHER,Surgery,NHS LOGISTICS,1018091716,0.98,
Department of Health,Salisbury NHS Foundation Trust,15-Aug-17,DRESSINGS - PRE STERILE,Surgery,NHS LOGISTICS,1018091716,2.42,
Department of Health,Salisbury NHS Foundation Trust,15-Aug-17,TISSUES HAND TOWELS & TOILET PAPER,Medicine,NHS LOGISTICS,1018091716,2.13,
Department of Health,Salisbury NHS Foundation Trust,15-Aug-17,DISPOSABLE THEATRE DRAPES WIPES,Medicine,NHS LOGISTICS,1018091716,0.71,
Department of Health,Salisbury NHS Foundation Trust,15-Aug-17,MEDSURGCONS - OTHER,Clinical Support,NHS LOGISTICS,1018091716,0.77,
Department of Health,Salisbury NHS Foundation Trust,15-Aug-17,DRESSINGS - PRE STERILE,Clinical Support,NHS LOGISTICS,1018091716,0.13,
Department of Health,Salisbury NHS Foundation Trust,15-Aug-17,TOILETRIES PERSONAL HYGIENE PRODUCTS,Musculo-Skeletal,NHS LOGISTICS,1018091716,1.85,
Department of Health,Salisbury NHS Foundation Trust,15-Aug-17,DRESSINGS - PRE STERILE,Musculo-Skeletal,NHS LOGISTICS,1018091716,0.48,
Department of Health,Salisbury NHS Foundation Trust,15-Aug-17,TUBES,Musculo-Skeletal,NHS LOGISTICS,1018091716,2.74,
Department of Health,Salisbury NHS Foundation Trust,15-Aug-17,SERVICES FROM NHS BODIES,Musculo-Skeletal,NHS LOGISTICS,1018091716,0.89,
Department of Health,Salisbury NHS Foundation Trust,15-Aug-17,TOILETRIES PERSONAL HYGIENE PRODUCTS,Surgery,NHS LOGISTICS,1018091716,0.62,
Department of Health,Salisbury NHS Foundation Trust,15-Aug-17,TISSUES HAND TOWELS & TOILET PAPER,Surgery,NHS LOGISTICS,1018091716,2.13,
Department of Health,Salisbury NHS Foundation Trust,15-Aug-17,MEDSURGCONS - OTHER,Surgery,NHS LOGISTICS,1018091716,0.94,
Department of Health,Salisbury NHS Foundation Trust,15-Aug-17,TISSUES HAND TOWELS & TOILET PAPER,Surgery,NHS LOGISTICS,1018091716,0.16,
Department of Health,Salisbury NHS Foundation Trust,15-Aug-17,SURGICAL INSTRUMENTS: DISPOSABLE,Surgery,NHS LOGISTICS,1018091716,8.47,
Department of Health,Salisbury NHS Foundation Trust,15-Aug-17,M & S EQUIPELECTEQUIPINST - OTHER,Surgery,NHS LOGISTICS,1018091716,26.67,
Department of Health,Salisbury NHS Foundation Trust,15-Aug-17,DRESSINGS - PRE STERILE,Surgery,NHS LOGISTICS,1018091716,0.67,
Department of Health,Salisbury NHS Foundation Trust,15-Aug-17,PATIENT APPLIANCES,Medicine,NHS LOGISTICS,1018091716,14.1,
Department of Health,Salisbury NHS Foundation Trust,15-Aug-17,DRESSINGS - PRE STERILE,Medicine,NHS LOGISTICS,1018091716,6.53,
Department of Health,Salisbury NHS Foundation Trust,15-Aug-17,DRESSINGS - PRE STERILE,Medicine,NHS LOGISTICS,1018091716,0.5,
Department of Health,Salisbury NHS Foundation Trust,15-Aug-17,TUBES,Medicine,NHS LOGISTICS,1018091716,1.37,
Department of Health,Salisbury NHS Foundation Trust,15-Aug-17,OTHER MEDICAL SUPPLIES,Medicine,NHS LOGISTICS,1018091716,0.75,
Department of Health,Salisbury NHS Foundation Trust,15-Aug-17,HABERDASHERY,Medicine,NHS LOGISTICS,1018091716,0.35,
Department of Health,Salisbury NHS Foundation Trust,15-Aug-17,MEDSURGCONS - OTHER,Medicine,NHS LOGISTICS,1018091716,11.96,
Department of Health,Salisbury NHS Foundation Trust,15-Aug-17,SURGICAL INSTRUMENTS: GENERAL,Medicine,NHS LOGISTICS,1018091716,1.9,
Department of Health,Salisbury NHS Foundation Trust,15-Aug-17,SURGICAL INSTRUMENTS: GENERAL,Medicine,NHS LOGISTICS,1018091716,67.05,
Department of Health,Salisbury NHS Foundation Trust,15-Aug-17,ELECTRICAL EQUIPMENT x,Surgery,NHS LOGISTICS,1018091716,1.55,
Department of Health,Salisbury NHS Foundation Trust,15-Aug-17,M & S EQUIPELECTEQUIPINST - OTHER,Musculo-Skeletal,NHS LOGISTICS,1018091716,57.53,
Department of Health,Salisbury NHS Foundation Trust,15-Aug-17,M & S EQUIPELECTEQUIPINST - OTHER,Surgery,NHS LOGISTICS,1018091716,2.73,
Department of Health,Salisbury NHS Foundation Trust,15-Aug-17,BAGS SACKS - OTHER,Musculo-Skeletal,NHS LOGISTICS,1018091716,0.6,
Department of Health,Salisbury NHS Foundation Trust,15-Aug-17,DRESSINGS - PRE STERILE,Musculo-Skeletal,NHS LOGISTICS,1018091716,4.59,
Department of Health,Salisbury NHS Foundation Trust,15-Aug-17,DRESSINGS - PRE STERILE,Musculo-Skeletal,NHS LOGISTICS,1018091716,2.4,
Department of Health,Salisbury NHS Foundation Trust,15-Aug-17,DRESSINGS - PRE STERILE,Musculo-Skeletal,NHS LOGISTICS,1018091716,0.45,
Department of Health,Salisbury NHS Foundation Trust,15-Aug-17,DRESSINGS - PRE STERILE,Musculo-Skeletal,NHS LOGISTICS,1018091716,0.37,
Department of Health,Salisbury NHS Foundation Trust,15-Aug-17,TOILETRIES PERSONAL HYGIENE PRODUCTS,Musculo-Skeletal,NHS LOGISTICS,1018091716,0.62,
Department of Health,Salisbury NHS Foundation Trust,15-Aug-17,TISSUES HAND TOWELS & TOILET PAPER,Musculo-Skeletal,NHS LOGISTICS,1018091716,1.99,
Department of Health,Salisbury NHS Foundation Trust,15-Aug-17,TUBES,Musculo-Skeletal,NHS LOGISTICS,1018091716,1.37,
Department of Health,Salisbury NHS Foundation Trust,15-Aug-17,OTHER MEDICAL SUPPLIES,Musculo-Skeletal,NHS LOGISTICS,1018091716,0.38,
Department of Health,Salisbury NHS Foundation Trust,15-Aug-17,MEDSURGCONS - OTHER,Musculo-Skeletal,NHS LOGISTICS,1018091716,3.31,
Department of Health,Salisbury NHS Foundation Trust,15-Aug-17,DRESSINGS - PRE STERILE,Musculo-Skeletal,NHS LOGISTICS,1018091716,0.07,
Department of Health,Salisbury NHS Foundation Trust,15-Aug-17,BAGS SACKS - OTHER,Surgery,NHS LOGISTICS,1018091716,2.44,
Department of Health,Salisbury NHS Foundation Trust,15-Aug-17,LAB EQUIP-LABORATORY APPARATUS,Surgery,NHS LOGISTICS,1018091716,0.92,
Department of Health,Salisbury NHS Foundation Trust,15-Aug-17,TOILETRIES PERSONAL HYGIENE PRODUCTS,Surgery,NHS LOGISTICS,1018091716,1.85,
Department of Health,Salisbury NHS Foundation Trust,15-Aug-17,DRESSINGS - PRE STERILE,Surgery,NHS LOGISTICS,1018091716,3.53,
Department of Health,Salisbury NHS Foundation Trust,15-Aug-17,DISPOSABLE THEATRE DRAPES WIPES,Surgery,NHS LOGISTICS,1018091716,6.67,
Department of Health,Salisbury NHS Foundation Trust,15-Aug-17,MEDSURGCONS - OTHER,Surgery,NHS LOGISTICS,1018091716,5.65,
Department of Health,Salisbury NHS Foundation Trust,15-Aug-17,DRUGS,Surgery,NHS LOGISTICS,1018091716,10.98,
Department of Health,Salisbury NHS Foundation Trust,15-Aug-17,OTHER MEDICAL SUPPLIES,Surgery,NHS LOGISTICS,1018091716,50.57,
Department of Health,Salisbury NHS Foundation Trust,15-Aug-17,CLEANING MATERIALS PRODUCTS SUNDRIES,Surgery,NHS LOGISTICS,1018091716,0.46,
Department of Health,Salisbury NHS Foundation Trust,15-Aug-17,DRESSINGS - PRE STERILE,Musculo-Skeletal,NHS LOGISTICS,1018091716,1.93,
Department of Health,Salisbury NHS Foundation Trust,15-Aug-17,DISPOSABLE THEATRE DRAPES WIPES,Surgery,NHS LOGISTICS,1018091716,1.49,
Department of Health,Salisbury NHS Foundation Trust,15-Aug-17,DRESSINGS - PRE STERILE,Surgery,NHS LOGISTICS,1018091716,5.04,
Department of Health,Salisbury NHS Foundation Trust,15-Aug-17,TISSUES HAND TOWELS & TOILET PAPER,Surgery,NHS LOGISTICS,1018091716,0.5,
Department of Health,Salisbury NHS Foundation Trust,15-Aug-17,DISPOSABLE THEATRE DRAPES WIPES,Surgery,NHS LOGISTICS,1018091716,2.28,
Department of Health,Salisbury NHS Foundation Trust,15-Aug-17,DRESSINGS - PRE STERILE,Surgery,NHS LOGISTICS,1018091716,3.37,
Department of Health,Salisbury NHS Foundation Trust,15-Aug-17,DRUGS,Surgery,NHS LOGISTICS,1018091716,1.96,
Department of Health,Salisbury NHS Foundation Trust,15-Aug-17,DRUGS,Surgery,NHS LOGISTICS,1018091716,1.87,
Department of Health,Salisbury NHS Foundation Trust,15-Aug-17,OTHER MEDICAL SUPPLIES,Surgery,NHS LOGISTICS,1018091716,1.13,
Department of Health,Salisbury NHS Foundation Trust,15-Aug-17,PATIENT APPLIANCES,Surgery,NHS LOGISTICS,1018091716,0.86,
Department of Health,Salisbury NHS Foundation Trust,15-Aug-17,DISPOSABLE THEATRE DRAPES WIPES,Surgery,NHS LOGISTICS,1018091716,0.99,
Department of Health,Salisbury NHS Foundation Trust,15-Aug-17,DRESSINGS - PRE STERILE,Musculo-Skeletal,NHS LOGISTICS,1018091716,3.43,
Department of Health,Salisbury NHS Foundation Trust,15-Aug-17,DRESSINGS - PRE STERILE,Musculo-Skeletal,NHS LOGISTICS,1018091716,0.66,
Department of Health,Salisbury NHS Foundation Trust,15-Aug-17,DRESSINGS - PRE STERILE,Musculo-Skeletal,NHS LOGISTICS,1018091716,2.45,
Department of Health,Salisbury NHS Foundation Trust,15-Aug-17,TISSUES HAND TOWELS & TOILET PAPER,Musculo-Skeletal,NHS LOGISTICS,1018091716,0.25,
Department of Health,Salisbury NHS Foundation Trust,15-Aug-17,DRESSINGS - PRE STERILE,Musculo-Skeletal,NHS LOGISTICS,1018091716,10.75,
Department of Health,Salisbury NHS Foundation Trust,15-Aug-17,DRESSINGS - PRE STERILE,Musculo-Skeletal,NHS LOGISTICS,1018091716,6.01,
Department of Health,Salisbury NHS Foundation Trust,15-Aug-17,DRESSINGS - PRE STERILE,Musculo-Skeletal,NHS LOGISTICS,1018091716,4.38,
Department of Health,Salisbury NHS Foundation Trust,15-Aug-17,DRESSINGS - PRE STERILE,Musculo-Skeletal,NHS LOGISTICS,1018091716,2.06,
Department of Health,Salisbury NHS Foundation Trust,15-Aug-17,DRESSINGS - PRE STERILE,Musculo-Skeletal,NHS LOGISTICS,1018091716,2.07,
Department of Health,Salisbury NHS Foundation Trust,15-Aug-17,DRESSINGS - PRE STERILE,Musculo-Skeletal,NHS LOGISTICS,1018091716,4.14,
Department of Health,Salisbury NHS Foundation Trust,15-Aug-17,DRESSINGS - PRE STERILE,Musculo-Skeletal,NHS LOGISTICS,1018091716,4.14,
Department of Health,Salisbury NHS Foundation Trust,15-Aug-17,DISPOSABLE THEATRE DRAPES WIPES,Musculo-Skeletal,NHS LOGISTICS,1018091716,0.26,
Department of Health,Salisbury NHS Foundation Trust,15-Aug-17,PATIENT APPLIANCES,Clinical Support,NHS LOGISTICS,1018091716,3.04,
Department of Health,Salisbury NHS Foundation Trust,15-Aug-17,TISSUES HAND TOWELS & TOILET PAPER,Clinical Support,NHS LOGISTICS,1018091716,0.74,
Department of Health,Salisbury NHS Foundation Trust,15-Aug-17,OTHER MEDICAL SUPPLIES,Clinical Support,NHS LOGISTICS,1018091716,0.94,
Department of Health,Salisbury NHS Foundation Trust,15-Aug-17,PATIENT APPLIANCES,Clinical Support,NHS LOGISTICS,1018091716,5.77,
Department of Health,Salisbury NHS Foundation Trust,15-Aug-17,DRESSINGS - PRE STERILE,Clinical Support,NHS LOGISTICS,1018091716,0.07,
Department of Health,Salisbury NHS Foundation Trust,15-Aug-17,DISPOSABLE THEATRE DRAPES WIPES,Clinical Support,NHS LOGISTICS,1018091716,0.71,
Department of Health,Salisbury NHS Foundation Trust,15-Aug-17,DRESSINGS - PRE STERILE,Surgery,NHS LOGISTICS,1018091716,1.53,
Department of Health,Salisbury NHS Foundation Trust,15-Aug-17,TOILETRIES PERSONAL HYGIENE PRODUCTS,Surgery,NHS LOGISTICS,1018091716,0.62,
Department of Health,Salisbury NHS Foundation Trust,15-Aug-17,TISSUES HAND TOWELS & TOILET PAPER,Surgery,NHS LOGISTICS,1018091716,0.25,
Department of Health,Salisbury NHS Foundation Trust,15-Aug-17,CLEANING MATERIALS PRODUCTS SUNDRIES,Surgery,NHS LOGISTICS,1018091716,1.11,
Department of Health,Salisbury NHS Foundation Trust,15-Aug-17,DRESSINGS - PRE STERILE,Surgery,NHS LOGISTICS,1018091716,3.27,
Department of Health,Salisbury NHS Foundation Trust,15-Aug-17,OTHER MEDICAL SUPPLIES,Surgery,NHS LOGISTICS,1018091716,0.75,
Department of Health,Salisbury NHS Foundation Trust,15-Aug-17,PATIENT APPLIANCES,Surgery,NHS LOGISTICS,1018091716,1.34,
Department of Health,Salisbury NHS Foundation Trust,15-Aug-17,PATIENT APPLIANCES,Surgery,NHS LOGISTICS,1018091716,0.88,
Department of Health,Salisbury NHS Foundation Trust,15-Aug-17,MEDSURGCONS - OTHER,Surgery,NHS LOGISTICS,1018091716,11.96,
Department of Health,Salisbury NHS Foundation Trust,15-Aug-17,TISSUES HAND TOWELS & TOILET PAPER,Surgery,NHS LOGISTICS,1018091716,0.14,
Department of Health,Salisbury NHS Foundation Trust,15-Aug-17,DISPOSABLE THEATRE DRAPES WIPES,Surgery,NHS LOGISTICS,1018091716,0.71,
Department of Health,Salisbury NHS Foundation Trust,15-Aug-17,TISSUES HAND TOWELS & TOILET PAPER,Surgery,NHS LOGISTICS,1018091716,0.25,
Department of Health,Salisbury NHS Foundation Trust,15-Aug-17,TISSUES HAND TOWELS & TOILET PAPER,Surgery,NHS LOGISTICS,1018091716,0.08,
Department of Health,Salisbury NHS Foundation Trust,15-Aug-17,DRESSINGS - PRE STERILE,Surgery,NHS LOGISTICS,1018091716,4.75,
Department of Health,Salisbury NHS Foundation Trust,15-Aug-17,DRESSINGS - PRE STERILE,Surgery,NHS LOGISTICS,1018091716,2.24,
Department of Health,Salisbury NHS Foundation Trust,15-Aug-17,DENTAL SURGERY SUNDRIES,Musculo-Skeletal,NHS LOGISTICS,1018091716,0.69,
Department of Health,Salisbury NHS Foundation Trust,15-Aug-17,OTHER MEDICAL SUPPLIES,Surgery,NHS LOGISTICS,1018091716,1.37,
Department of Health,Salisbury NHS Foundation Trust,15-Aug-17,OTHER MEDICAL SUPPLIES,Surgery,NHS LOGISTICS,1018091716,0.38,
Department of Health,Salisbury NHS Foundation Trust,15-Aug-17,DISPOSABLE THEATRE DRAPES WIPES,Surgery,NHS LOGISTICS,1018091716,0.71,
Department of Health,Salisbury NHS Foundation Trust,15-Aug-17,PATIENTS BEDWEAR UNISEX,Clinical Support,NHS LOGISTICS,1018091716,0.8,
Department of Health,Salisbury NHS Foundation Trust,15-Aug-17,TISSUES HAND TOWELS & TOILET PAPER,Clinical Support,NHS LOGISTICS,1018091716,0.25,
Department of Health,Salisbury NHS Foundation Trust,15-Aug-17,CLEANING MATERIALS PRODUCTS SUNDRIES,Clinical Support,NHS LOGISTICS,1018091716,1.09,
Department of Health,Salisbury NHS Foundation Trust,15-Aug-17,DRESSINGS - PRE STERILE,Clinical Support,NHS LOGISTICS,1018091716,0.07,
Department of Health,Salisbury NHS Foundation Trust,15-Aug-17,BABY TEXTURE MODIFIED FOODS,Clinical Support,NHS LOGISTICS,1018091716,3.33,
Department of Health,Salisbury NHS Foundation Trust,15-Aug-17,TISSUES HAND TOWELS & TOILET PAPER,Clinical Support,NHS LOGISTICS,1018091716,0.31,
Department of Health,Salisbury NHS Foundation Trust,15-Aug-17,DRESSINGS - PRE STERILE,Clinical Support,NHS LOGISTICS,1018091716,0.07,
Department of Health,Salisbury NHS Foundation Trust,15-Aug-17,PATIENT APPLIANCES,Clinical Support,NHS LOGISTICS,1018091716,0.86,
Department of Health,Salisbury NHS Foundation Trust,15-Aug-17,OTHER MEDICAL SUPPLIES,Musculo-Skeletal,NHS LOGISTICS,1018091716,0.38,
Department of Health,Salisbury NHS Foundation Trust,15-Aug-17,PATIENTS BEDWEAR UNISEX,Clinical Support,NHS LOGISTICS,1018091716,3.2,
Department of Health,Salisbury NHS Foundation Trust,15-Aug-17,DRESSINGS - PRE STERILE,Clinical Support,NHS LOGISTICS,1018091716,3.27,
Department of Health,Salisbury NHS Foundation Trust,15-Aug-17,DISPOSABLE THEATRE DRAPES WIPES,Clinical Support,NHS LOGISTICS,1018091716,2.28,
Department of Health,Salisbury NHS Foundation Trust,15-Aug-17,M & S EQUIPELECTEQUIPINST - OTHER,Clinical Support,NHS LOGISTICS,1018091716,1.15,
Department of Health,Salisbury NHS Foundation Trust,15-Aug-17,DRESSINGS  -  PROCEDURE PACKS,Clinical Support,NHS LOGISTICS,1018091716,51.09,
Department of Health,Salisbury NHS Foundation Trust,15-Aug-17,SURGICAL INSTRUMENTS: DISPOSABLE,Clinical Support,NHS LOGISTICS,1018091716,9.88,
Department of Health,Salisbury NHS Foundation Trust,15-Aug-17,OTHER MEDICAL SUPPLIES,Clinical Support,NHS LOGISTICS,1018091716,0.75,
Department of Health,Salisbury NHS Foundation Trust,15-Aug-17,MED SURG EQUIP REP MAINT CLEANING,Clinical Support,NHS LOGISTICS,1018091716,2.19,
Department of Health,Salisbury NHS Foundation Trust,15-Aug-17,PATIENT APPLIANCES,Clinical Support,NHS LOGISTICS,1018091716,0.86,
Department of Health,Salisbury NHS Foundation Trust,15-Aug-17,CLEANING MATERIALS PRODUCTS SUNDRIES,Surgery,NHS LOGISTICS,1018091716,1.11,
Department of Health,Salisbury NHS Foundation Trust,15-Aug-17,DRESSINGS - PRE STERILE,Surgery,NHS LOGISTICS,1018091716,3.27,
Department of Health,Salisbury NHS Foundation Trust,15-Aug-17,TISSUES HAND TOWELS & TOILET PAPER,Surgery,NHS LOGISTICS,1018091716,0.14,
Department of Health,Salisbury NHS Foundation Trust,15-Aug-17,MEDSURGCONS - OTHER,Musculo-Skeletal,NHS LOGISTICS,1018091716,4.29,
Department of Health,Salisbury NHS Foundation Trust,15-Aug-17,TISSUES HAND TOWELS & TOILET PAPER,Musculo-Skeletal,NHS LOGISTICS,1018091716,4.2,
Department of Health,Salisbury NHS Foundation Trust,15-Aug-17,MEDSURGCONS - OTHER,Musculo-Skeletal,NHS LOGISTICS,1018091716,2.39,
Department of Health,Salisbury NHS Foundation Trust,15-Aug-17,PATIENT APPLIANCES,Musculo-Skeletal,NHS LOGISTICS,1018091716,17.27,
Department of Health,Salisbury NHS Foundation Trust,15-Aug-17,DISPOSABLE THEATRE DRAPES WIPES,Musculo-Skeletal,NHS LOGISTICS,1018091716,2.84,
Department of Health,Salisbury NHS Foundation Trust,15-Aug-17,DISPOSABLE THEATRE DRAPES WIPES,Musculo-Skeletal,NHS LOGISTICS,1018091716,0.26,
Department of Health,Salisbury NHS Foundation Trust,15-Aug-17,M & S EQUIPELECTEQUIPINST - OTHER,Clinical Support,NHS LOGISTICS,1018091716,9.85,
Department of Health,Salisbury NHS Foundation Trust,15-Aug-17,OTHER MEDICAL SUPPLIES,Clinical Support,NHS LOGISTICS,1018091716,31.58,
Department of Health,Salisbury NHS Foundation Trust,15-Aug-17,PATIENTS BEDWEAR UNISEX,Clinical Support,NHS LOGISTICS,1018091716,0.8,
Department of Health,Salisbury NHS Foundation Trust,15-Aug-17,OTHER MEDICAL SUPPLIES,Clinical Support,NHS LOGISTICS,1018091716,0.38,
Department of Health,Salisbury NHS Foundation Trust,15-Aug-17,MEDSURGCONS - OTHER,Clinical Support,NHS LOGISTICS,1018091716,0.76,
Department of Health,Salisbury NHS Foundation Trust,15-Aug-17,MEDSURGCONS - OTHER,Clinical Support,NHS LOGISTICS,1018091716,5.89,
Department of Health,Salisbury NHS Foundation Trust,15-Aug-17,MEDSURGCONS - OTHER,Clinical Support,NHS LOGISTICS,1018091716,0.78,
Department of Health,Salisbury NHS Foundation Trust,15-Aug-17,TISSUES HAND TOWELS & TOILET PAPER,Clinical Support,NHS LOGISTICS,1018091716,1.99,
Department of Health,Salisbury NHS Foundation Trust,15-Aug-17,TISSUES HAND TOWELS & TOILET PAPER,Clinical Support,NHS LOGISTICS,1018091716,0.31,
Department of Health,Salisbury NHS Foundation Trust,15-Aug-17,TISSUES HAND TOWELS & TOILET PAPER,Surgery,NHS LOGISTICS,1018091716,2.13,
Department of Health,Salisbury NHS Foundation Trust,15-Aug-17,DRESSINGS - PRE STERILE,Surgery,NHS LOGISTICS,1018091716,0.79,
Department of Health,Salisbury NHS Foundation Trust,15-Aug-17,DRESSINGS - PRE STERILE,Surgery,NHS LOGISTICS,1018091716,0.44,
Department of Health,Salisbury NHS Foundation Trust,15-Aug-17,TISSUES HAND TOWELS & TOILET PAPER,Medicine,NHS LOGISTICS,1018091716,0.5,
Department of Health,Salisbury NHS Foundation Trust,15-Aug-17,TISSUES HAND TOWELS & TOILET PAPER,Medicine,NHS LOGISTICS,1018091716,0.16,
Department of Health,Salisbury NHS Foundation Trust,15-Aug-17,PATIENT APPLIANCES,Medicine,NHS LOGISTICS,1018091716,0.88,
Department of Health,Salisbury NHS Foundation Trust,15-Aug-17,MEDSURGCONS - OTHER,Medicine,NHS LOGISTICS,1018091716,0.78,
Department of Health,Salisbury NHS Foundation Trust,15-Aug-17,TISSUES HAND TOWELS & TOILET PAPER,Medicine,NHS LOGISTICS,1018091716,0.07,
Department of Health,Salisbury NHS Foundation Trust,15-Aug-17,DRESSINGS - PRE STERILE,Clinical Support,NHS LOGISTICS,1018091716,6.46,
Department of Health,Salisbury NHS Foundation Trust,15-Aug-17,DRESSINGS - PRE STERILE,Medicine,NHS LOGISTICS,1018091716,0.99,
Department of Health,Salisbury NHS Foundation Trust,15-Aug-17,TISSUES HAND TOWELS & TOILET PAPER,Medicine,NHS LOGISTICS,1018091716,0.25,
Department of Health,Salisbury NHS Foundation Trust,15-Aug-17,OTHER MEDICAL SUPPLIES,Medicine,NHS LOGISTICS,1018091716,1.12,
Department of Health,Salisbury NHS Foundation Trust,15-Aug-17,OTHER MEDICAL SUPPLIES,Medicine,NHS LOGISTICS,1018091716,1.13,
Department of Health,Salisbury NHS Foundation Trust,15-Aug-17,DISPOSABLE TABLE LINEN,Medicine,NHS LOGISTICS,1018091716,0.14,
Department of Health,Salisbury NHS Foundation Trust,15-Aug-17,PATIENT APPLIANCES,Medicine,NHS LOGISTICS,1018091716,0.67,
Department of Health,Salisbury NHS Foundation Trust,15-Aug-17,DISPOSABLE THEATRE DRAPES WIPES,Medicine,NHS LOGISTICS,1018091716,1.42,
Department of Health,Salisbury NHS Foundation Trust,15-Aug-17,COOKING & KITCHEN UTENSILS,Surgery,NHS LOGISTICS,1018091716,4.08,
Department of Health,Salisbury NHS Foundation Trust,15-Aug-17,DRESSINGS - PRE STERILE,Surgery,NHS LOGISTICS,1018091716,3.27,
Department of Health,Salisbury NHS Foundation Trust,15-Aug-17,ANAESTHETIC EQUIPMENT ACCESSORIES,Surgery,NHS LOGISTICS,1018091716,0.13,
Department of Health,Salisbury NHS Foundation Trust,15-Aug-17,OTHER MEDICAL SUPPLIES,Surgery,NHS LOGISTICS,1018091716,1.7,
Department of Health,Salisbury NHS Foundation Trust,15-Aug-17,OTHER MEDICAL SUPPLIES,Surgery,NHS LOGISTICS,1018091716,1.72,
Department of Health,Salisbury NHS Foundation Trust,15-Aug-17,OTHER MEDICAL SUPPLIES,Surgery,NHS LOGISTICS,1018091716,1.88,
Department of Health,Salisbury NHS Foundation Trust,15-Aug-17,MEDSURGCONS - OTHER,Surgery,NHS LOGISTICS,1018091716,1.18,
Department of Health,Salisbury NHS Foundation Trust,15-Aug-17,DRUGS,Surgery,NHS LOGISTICS,1018091716,1.3,
Department of Health,Salisbury NHS Foundation Trust,15-Aug-17,MEDSURGCONS - OTHER,Surgery,NHS LOGISTICS,1018091716,20.36,
Department of Health,Salisbury NHS Foundation Trust,15-Aug-17,OTHER MEDICAL SUPPLIES,Surgery,NHS LOGISTICS,1018091716,1.51,
Department of Health,Salisbury NHS Foundation Trust,15-Aug-17,TOILETRIES PERSONAL HYGIENE PRODUCTS,Surgery,NHS LOGISTICS,1018091716,0.83,
Department of Health,Salisbury NHS Foundation Trust,15-Aug-17,MEDSURGCONS - OTHER,Surgery,NHS LOGISTICS,1018091716,2.71,
Department of Health,Salisbury NHS Foundation Trust,15-Aug-17,M & S EQUIPELECTEQUIPINST - OTHER,Surgery,NHS LOGISTICS,1018091716,0.29,
Department of Health,Salisbury NHS Foundation Trust,15-Aug-17,PATIENT APPLIANCES,Surgery,NHS LOGISTICS,1018091716,0.86,
Department of Health,Salisbury NHS Foundation Trust,15-Aug-17,DISPOSABLE THEATRE DRAPES WIPES,Surgery,NHS LOGISTICS,1018091716,1.42,
Department of Health,Salisbury NHS Foundation Trust,15-Aug-17,DISPOSABLE THEATRE DRAPES WIPES,Surgery,NHS LOGISTICS,1018091716,0.53,
Department of Health,Salisbury NHS Foundation Trust,15-Aug-17,MEDSURGCONS - OTHER,Surgery,NHS LOGISTICS,1018091716,1.07,
Department of Health,Salisbury NHS Foundation Trust,15-Aug-17,DISPOSABLE THEATRE DRAPES WIPES,Surgery,NHS LOGISTICS,1018091716,0.45,
Department of Health,Salisbury NHS Foundation Trust,15-Aug-17,ELECTRICAL EQUIPMENT x,Surgery,NHS LOGISTICS,1018091716,0.74,
Department of Health,Salisbury NHS Foundation Trust,15-Aug-17,MEDSURGCONS - OTHER,Surgery,NHS LOGISTICS,1018091716,4.28,
Department of Health,Salisbury NHS Foundation Trust,15-Aug-17,DRESSINGS - PRE STERILE,Surgery,NHS LOGISTICS,1018091716,1.53,
Department of Health,Salisbury NHS Foundation Trust,15-Aug-17,DRUGS,Surgery,NHS LOGISTICS,1018091716,3.34,
Department of Health,Salisbury NHS Foundation Trust,15-Aug-17,COOKING & KITCHEN UTENSILS,Surgery,NHS LOGISTICS,1018091716,3.54,
Department of Health,Salisbury NHS Foundation Trust,15-Aug-17,OTHER MEDICAL SUPPLIES,Surgery,NHS LOGISTICS,1018091716,0.75,
Department of Health,Salisbury NHS Foundation Trust,15-Aug-17,TISSUES HAND TOWELS & TOILET PAPER,Surgery,NHS LOGISTICS,1018091716,0.14,
Department of Health,Salisbury NHS Foundation Trust,15-Aug-17,BEVERAGES & AMBIENT FOOD,Surgery,NHS LOGISTICS,1018091716,0.35,
Department of Health,Salisbury NHS Foundation Trust,15-Aug-17,BEVERAGES & AMBIENT FOOD,Surgery,NHS LOGISTICS,1018091716,0.56,
Department of Health,Salisbury NHS Foundation Trust,15-Aug-17,OTHER MEDICAL SUPPLIES,Musculo-Skeletal,NHS LOGISTICS,1018091716,21.33,
Department of Health,Salisbury NHS Foundation Trust,15-Aug-17,BEVERAGES & AMBIENT FOOD,Facilities,NHS LOGISTICS,1018091716,21.1,
Department of Health,Salisbury NHS Foundation Trust,15-Aug-17,LIQUID REFRESHMENTS,Facilities,NHS LOGISTICS,1018091716,1.49,
Department of Health,Salisbury NHS Foundation Trust,15-Aug-17,BEVERAGES & AMBIENT FOOD,Facilities,NHS LOGISTICS,1018091716,6.67,
Department of Health,Salisbury NHS Foundation Trust,15-Aug-17,BEVERAGES & AMBIENT FOOD,Facilities,NHS LOGISTICS,1018091716,2.68,
Department of Health,Salisbury NHS Foundation Trust,15-Aug-17,BEVERAGES & AMBIENT FOOD,Facilities,NHS LOGISTICS,1018091716,2.37,
Department of Health,Salisbury NHS Foundation Trust,15-Aug-17,LIQUID REFRESHMENTS,Facilities,NHS LOGISTICS,1018091716,1.75,
Department of Health,Salisbury NHS Foundation Trust,15-Aug-17,COOKING & KITCHEN UTENSILS,Facilities,NHS LOGISTICS,1018091716,3.83,
Department of Health,Salisbury NHS Foundation Trust,15-Aug-17,BABY TEXTURE MODIFIED FOODS,Facilities,NHS LOGISTICS,1018091716,0.72,
Department of Health,Salisbury NHS Foundation Trust,15-Aug-17,BEVERAGES & AMBIENT FOOD,Facilities,NHS LOGISTICS,1018091716,3.23,
Department of Health,Salisbury NHS Foundation Trust,15-Aug-17,BEVERAGES & AMBIENT FOOD,Facilities,NHS LOGISTICS,1018091716,2.64,
Department of Health,Salisbury NHS Foundation Trust,15-Aug-17,COOKING & KITCHEN UTENSILS,Facilities,NHS LOGISTICS,1018091716,2.53,
Department of Health,Salisbury NHS Foundation Trust,15-Aug-17,BEVERAGES & AMBIENT FOOD,Facilities,NHS LOGISTICS,1018091716,1.12,
Department of Health,Salisbury NHS Foundation Trust,15-Aug-17,LIQUID REFRESHMENTS,Facilities,NHS LOGISTICS,1018091716,0.51,
Department of Health,Salisbury NHS Foundation Trust,15-Aug-17,BEVERAGES & AMBIENT FOOD,Facilities,NHS LOGISTICS,1018091716,0.89,
Department of Health,Salisbury NHS Foundation Trust,15-Aug-17,LIQUID REFRESHMENTS,Facilities,NHS LOGISTICS,1018091716,2.48,
Department of Health,Salisbury NHS Foundation Trust,15-Aug-17,COOKING & KITCHEN UTENSILS,Facilities,NHS LOGISTICS,1018091716,3.56,
Department of Health,Salisbury NHS Foundation Trust,15-Aug-17,LIQUID REFRESHMENTS,Facilities,NHS LOGISTICS,1018091716,20.4,
Department of Health,Salisbury NHS Foundation Trust,15-Aug-17,COOKING & KITCHEN UTENSILS,Facilities,NHS LOGISTICS,1018091716,3.83,
Department of Health,Salisbury NHS Foundation Trust,15-Aug-17,STATIONERY SUNDRIES,Facilities,NHS LOGISTICS,1018091716,0.46,
Department of Health,Salisbury NHS Foundation Trust,15-Aug-17,BEVERAGES & AMBIENT FOOD,Facilities,NHS LOGISTICS,1018091716,1.78,
Department of Health,Salisbury NHS Foundation Trust,15-Aug-17,LIQUID REFRESHMENTS,Facilities,NHS LOGISTICS,1018091716,1.32,
Department of Health,Salisbury NHS Foundation Trust,15-Aug-17,ADULTS HEARING AIDS,Surgery,NHS LOGISTICS,1018091716,579.13,
Department of Health,Salisbury NHS Foundation Trust,15-Aug-17,ADULTS HEARING AIDS,Surgery,NHS LOGISTICS,1018091716,579.13,
Department of Health,Salisbury NHS Foundation Trust,15-Aug-17,LIQUID REFRESHMENTS,Facilities,NHS LOGISTICS,1018091716,3.47,
Department of Health,Salisbury NHS Foundation Trust,15-Aug-17,LIQUID REFRESHMENTS,Facilities,NHS LOGISTICS,1018091716,2.65,
Department of Health,Salisbury NHS Foundation Trust,15-Aug-17,COOKING & KITCHEN UTENSILS,Facilities,NHS LOGISTICS,1018091716,5,
Department of Health,Salisbury NHS Foundation Trust,15-Aug-17,BAGS SACKS - OTHER,Facilities,NHS LOGISTICS,1018091716,1.44,
Department of Health,Salisbury NHS Foundation Trust,15-Aug-17,LIQUID REFRESHMENTS,Facilities,NHS LOGISTICS,1018091716,0.93,
Department of Health,Salisbury NHS Foundation Trust,15-Aug-17,LIQUID REFRESHMENTS,Facilities,NHS LOGISTICS,1018091716,1.83,
Department of Health,Salisbury NHS Foundation Trust,15-Aug-17,LIQUID REFRESHMENTS,Facilities,NHS LOGISTICS,1018091716,2.65,
Department of Health,Salisbury NHS Foundation Trust,15-Aug-17,BAGS SACKS - OTHER,Facilities,NHS LOGISTICS,1018091716,4.05,
Department of Health,Salisbury NHS Foundation Trust,15-Aug-17,COOKING & KITCHEN UTENSILS,Surgery,NHS LOGISTICS,1018091716,80.33,
Department of Health,Salisbury NHS Foundation Trust,14-Aug-17,DRESSINGS - PRE STERILE,Surgery,NHS LOGISTICS,1018078296,758.7,
Department of Health,Salisbury NHS Foundation Trust,14-Aug-17,M & S EQUIPELECTEQUIPINST - OTHER,Surgery,NHS LOGISTICS,1018078296,146.63,
Department of Health,Salisbury NHS Foundation Trust,14-Aug-17,NON DISPOSABLE THEATRE DRAPES WIPES,Clinical Support,NHS LOGISTICS,1018078296,40.08,
Department of Health,Salisbury NHS Foundation Trust,14-Aug-17,PATIENT APPLIANCES,Surgery,NHS LOGISTICS,1018078296,3.29,
Department of Health,Salisbury NHS Foundation Trust,14-Aug-17,DRESSINGS - PRE STERILE,Surgery,NHS LOGISTICS,1018078296,15.56,
Department of Health,Salisbury NHS Foundation Trust,14-Aug-17,DRESSINGS - PRE STERILE,Surgery,NHS LOGISTICS,1018078296,31.12,
Department of Health,Salisbury NHS Foundation Trust,14-Aug-17,MEDSURGCONS - OTHER,Clinical Support,NHS LOGISTICS,1018078296,13.87,
Department of Health,Salisbury NHS Foundation Trust,14-Aug-17,MISCELLANEOUS CONSUMABLE ITEMS,Clinical Support,NHS LOGISTICS,1018078296,33.67,
Department of Health,Salisbury NHS Foundation Trust,14-Aug-17,DENTAL LABORATORY,Musculo-Skeletal,NHS LOGISTICS,1018078296,86.12,
Department of Health,Salisbury NHS Foundation Trust,14-Aug-17,LAB REAGENTS-BUFFERS COMPUND SOLNS,Clinical Support,NHS LOGISTICS,1018078296,1213.33,
Department of Health,Salisbury NHS Foundation Trust,14-Aug-17,MEDSURGCONS - OTHER,Surgery,NHS LOGISTICS,1018078296,63.97,
Department of Health,Salisbury NHS Foundation Trust,14-Aug-17,BAGS SACKS - OTHER,Clinical Support,NHS LOGISTICS,1018078296,51.25,
Department of Health,Salisbury NHS Foundation Trust,14-Aug-17,DISPOSABLE THEATRE DRAPES WIPES,Clinical Support,NHS LOGISTICS,1018078296,24.9,
Department of Health,Salisbury NHS Foundation Trust,14-Aug-17,OFFICE EQUIP MACHINERY  -  OTHER,Medicine,NHS LOGISTICS,1018078296,5.49,
Department of Health,Salisbury NHS Foundation Trust,14-Aug-17,DRESSINGS - PRE STERILE,Musculo-Skeletal,NHS LOGISTICS,1018078296,67.07,
Department of Health,Salisbury NHS Foundation Trust,14-Aug-17,DRESSINGS - PRE STERILE,Musculo-Skeletal,NHS LOGISTICS,1018078296,26.65,
Department of Health,Salisbury NHS Foundation Trust,14-Aug-17,DRESSINGS - PRE STERILE,Musculo-Skeletal,NHS LOGISTICS,1018078296,29.07,
Department of Health,Salisbury NHS Foundation Trust,14-Aug-17,MEDSURGCONS - OTHER,Clinical Support,NHS LOGISTICS,1018078296,31.96,
Department of Health,Salisbury NHS Foundation Trust,14-Aug-17,OTHER MEDICAL SUPPLIES,Clinical Support,NHS LOGISTICS,1018078296,74.73,
Department of Health,Salisbury NHS Foundation Trust,14-Aug-17,SERVICES FROM NHS BODIES,Surgery,NHS LOGISTICS,1018078296,35.87,
Department of Health,Salisbury NHS Foundation Trust,14-Aug-17,MEDSURGCONS - OTHER,Surgery,NHS LOGISTICS,1018078296,12,
Department of Health,Salisbury NHS Foundation Trust,14-Aug-17,OTHER MEDICAL SUPPLIES,Medicine,NHS LOGISTICS,1018078296,23.86,
Department of Health,Salisbury NHS Foundation Trust,14-Aug-17,ADULTS HEARING AIDS,Surgery,NHS LOGISTICS,1018078296,533.92,
Department of Health,Salisbury NHS Foundation Trust,14-Aug-17,ADULTS HEARING AIDS,Surgery,NHS LOGISTICS,1018078296,1067.83,
Department of Health,Salisbury NHS Foundation Trust,14-Aug-17,ADULTS HEARING AIDS,Surgery,NHS LOGISTICS,1018078296,2669.58,
Department of Health,Salisbury NHS Foundation Trust,14-Aug-17,ADULTS HEARING AIDS,Surgery,NHS LOGISTICS,1018078296,872.67,
Department of Health,Salisbury NHS Foundation Trust,14-Aug-17,D IMAG & RADIO - X RAY FILM PROCESSING CHEMICALS,Clinical Support,NHS LOGISTICS,1018078296,112.58,
Department of Health,Salisbury NHS Foundation Trust,14-Aug-17,MED SURG EQUIP REP MAINT CLEANING,Clinical Support,NHS LOGISTICS,1018078296,110.42,
Department of Health,Salisbury NHS Foundation Trust,14-Aug-17,ELECTRICAL EQUIPMENT x,Corporate - ETS,NHS LOGISTICS,1018078296,36.83,
Department of Health,Salisbury NHS Foundation Trust,14-Aug-17,TISSUES HAND TOWELS & TOILET PAPER,Surgery,NHS LOGISTICS,1018078296,4.97,
Department of Health,Salisbury NHS Foundation Trust,14-Aug-17,DRUGS,Clinical Support,NHS LOGISTICS,1018078296,14.73,
Department of Health,Salisbury NHS Foundation Trust,14-Aug-17,MEDSURGCONS - OTHER,Surgery,NHS LOGISTICS,1018078296,72,
Department of Health,Salisbury NHS Foundation Trust,14-Aug-17,MEDSURGCONS - OTHER,Clinical Support,NHS LOGISTICS,1018078296,69.38,
Department of Health,Salisbury NHS Foundation Trust,14-Aug-17,PATIENT APPLIANCES,Medicine,NHS LOGISTICS,1018078296,10,
Department of Health,Salisbury NHS Foundation Trust,14-Aug-17,MEDSURGCONS - OTHER,Surgery,NHS LOGISTICS,1018078296,45.82,
Department of Health,Salisbury NHS Foundation Trust,14-Aug-17,TISSUES HAND TOWELS & TOILET PAPER,Surgery,NHS LOGISTICS,1018078296,3.72,
Department of Health,Salisbury NHS Foundation Trust,14-Aug-17,TISSUES HAND TOWELS & TOILET PAPER,Surgery,NHS LOGISTICS,1018078296,0.39,
Department of Health,Salisbury NHS Foundation Trust,14-Aug-17,HEALTHCARE - WEAR,Clinical Support,NHS LOGISTICS,1018078296,81.33,
Department of Health,Salisbury NHS Foundation Trust,14-Aug-17,PATIENT APPLIANCES,Clinical Support,NHS LOGISTICS,1018078296,33.25,
Department of Health,Salisbury NHS Foundation Trust,14-Aug-17,PATIENT APPLIANCES,Clinical Support,NHS LOGISTICS,1018078296,30,
Department of Health,Salisbury NHS Foundation Trust,14-Aug-17,LAB EQUIP-LABORATORY APPARATUS,Clinical Support,NHS LOGISTICS,1018078296,12.62,
Department of Health,Salisbury NHS Foundation Trust,14-Aug-17,LAB EQUIP-LABORATORY APPARATUS,Clinical Support,NHS LOGISTICS,1018078296,296.67,
Department of Health,Salisbury NHS Foundation Trust,14-Aug-17,LAB EQUIP-ANALYSERS,Clinical Support,NHS LOGISTICS,1018078296,25.4,
Department of Health,Salisbury NHS Foundation Trust,14-Aug-17,LAB EQUIP-LABORATORY APPARATUS,Clinical Support,NHS LOGISTICS,1018078296,19.38,
Department of Health,Salisbury NHS Foundation Trust,14-Aug-17,LAB EQUIP-LABORATORY APPARATUS,Clinical Support,NHS LOGISTICS,1018078296,748.67,
Department of Health,Salisbury NHS Foundation Trust,14-Aug-17,LAB EQUIP-LABORATORY APPARATUS,Clinical Support,NHS LOGISTICS,1018078296,38.5,
Department of Health,Salisbury NHS Foundation Trust,14-Aug-17,LAB EQUIP-LABORATORY APPARATUS,Clinical Support,NHS LOGISTICS,1018078296,12.83,
Department of Health,Salisbury NHS Foundation Trust,14-Aug-17,LAB EQUIP-LABORATORY APPARATUS,Clinical Support,NHS LOGISTICS,1018078296,62.08,
Department of Health,Salisbury NHS Foundation Trust,14-Aug-17,COOKING & KITCHEN UTENSILS,Clinical Support,NHS LOGISTICS,1018078296,7.6,
Department of Health,Salisbury NHS Foundation Trust,14-Aug-17,LAB EQUIP-LABORATORY APPARATUS,Clinical Support,NHS LOGISTICS,1018078296,3.15,
Department of Health,Salisbury NHS Foundation Trust,14-Aug-17,LAB EQUIP-LABORATORY APPARATUS,Clinical Support,NHS LOGISTICS,1018078296,73.2,
Department of Health,Salisbury NHS Foundation Trust,14-Aug-17,OTHER MEDICAL SUPPLIES,Clinical Support,NHS LOGISTICS,1018078296,455,
Department of Health,Salisbury NHS Foundation Trust,14-Aug-17,LAB REAGENTS-BUFFERS COMPUND SOLNS,Clinical Support,NHS LOGISTICS,1018078296,172.62,
Department of Health,Salisbury NHS Foundation Trust,14-Aug-17,DISPOSABLE THEATRE DRAPES WIPES,Clinical Support,NHS LOGISTICS,1018078296,12.45,
Department of Health,Salisbury NHS Foundation Trust,14-Aug-17,OTHER MEDICAL SUPPLIES,Clinical Support,NHS LOGISTICS,1018078296,42.87,
Department of Health,Salisbury NHS Foundation Trust,14-Aug-17,ADULTS HEARING AIDS,Surgery,NHS LOGISTICS,1018078296,739.25,
Department of Health,Salisbury NHS Foundation Trust,14-Aug-17,ADULTS HEARING AIDS,Surgery,NHS LOGISTICS,1018078296,3737.42,
Department of Health,Salisbury NHS Foundation Trust,14-Aug-17,ADULTS HEARING AIDS,Surgery,NHS LOGISTICS,1018078296,1601.75,
Department of Health,Salisbury NHS Foundation Trust,14-Aug-17,ADULTS HEARING AIDS,Surgery,NHS LOGISTICS,1018078296,707.5,
Department of Health,Salisbury NHS Foundation Trust,14-Aug-17,BAGS SACKS - OTHER,Facilities,NHS LOGISTICS,1018078296,258,
Department of Health,Salisbury NHS Foundation Trust,14-Aug-17,CLEANING MATERIALS PRODUCTS SUNDRIES,Facilities,NHS LOGISTICS,1018078296,34.8,
Department of Health,Salisbury NHS Foundation Trust,14-Aug-17,LIQUID REFRESHMENTS,Facilities,NHS LOGISTICS,1018078296,3.91,
Department of Health,Salisbury NHS Foundation Trust,14-Aug-17,CLEANING MATERIALS PRODUCTS SUNDRIES,Facilities,NHS LOGISTICS,1018078296,4.4,
Department of Health,Salisbury NHS Foundation Trust,14-Aug-17,CLEANING MATERIALS PRODUCTS SUNDRIES,Facilities,NHS LOGISTICS,1018078296,33.07,
Department of Health,Salisbury NHS Foundation Trust,14-Aug-17,CLEANING MATERIALS PRODUCTS SUNDRIES,Facilities,NHS LOGISTICS,1018078296,13.75,
Department of Health,Salisbury NHS Foundation Trust,14-Aug-17,DISPOSABLE THEATRE DRAPES WIPES,Facilities,NHS LOGISTICS,1018078296,266.8,
Department of Health,Salisbury NHS Foundation Trust,14-Aug-17,CLEANING MATERIALS PRODUCTS SUNDRIES,Facilities,NHS LOGISTICS,1018078296,25.5,
Department of Health,Salisbury NHS Foundation Trust,14-Aug-17,CLEANING MATERIALS PRODUCTS SUNDRIES,Facilities,NHS LOGISTICS,1018078296,14.42,
Department of Health,Salisbury NHS Foundation Trust,14-Aug-17,CLEANING MATERIALS PRODUCTS SUNDRIES,Facilities,NHS LOGISTICS,1018078296,85.2,
Department of Health,Salisbury NHS Foundation Trust,14-Aug-17,DISPOSABLE THEATRE DRAPES WIPES,Facilities,NHS LOGISTICS,1018078296,91.2,
Department of Health,Salisbury NHS Foundation Trust,14-Aug-17,TISSUES HAND TOWELS & TOILET PAPER,Corporate - HR/Education,NHS LOGISTICS,1018078296,3.92,
Department of Health,Salisbury NHS Foundation Trust,14-Aug-17,TISSUES HAND TOWELS & TOILET PAPER,Clinical Support,NHS LOGISTICS,1018078296,3.72,
Department of Health,Salisbury NHS Foundation Trust,14-Aug-17,TISSUES HAND TOWELS & TOILET PAPER,Clinical Support,NHS LOGISTICS,1018078296,10.65,
Department of Health,Salisbury NHS Foundation Trust,14-Aug-17,CLEANING MATERIALS PRODUCTS SUNDRIES,Facilities,NHS LOGISTICS,1018078296,2.5,
Department of Health,Salisbury NHS Foundation Trust,14-Aug-17,DRESSINGS  -  PROCEDURE PACKS,Medicine,NHS LOGISTICS,1018078296,6.33,
Department of Health,Salisbury NHS Foundation Trust,14-Aug-17,DRESSINGS - PRE STERILE,Medicine,NHS LOGISTICS,1018078296,28.23,
Department of Health,Salisbury NHS Foundation Trust,14-Aug-17,SURGICAL INSTRUMENTS: DISPOSABLE,Medicine,NHS LOGISTICS,1018078296,12,
Department of Health,Salisbury NHS Foundation Trust,14-Aug-17,PATIENT APPLIANCES,Clinical Support,NHS LOGISTICS,1018078296,25.01,
Department of Health,Salisbury NHS Foundation Trust,14-Aug-17,SURGICAL INSTRUMENTS: DISPOSABLE,Clinical Support,NHS LOGISTICS,1018078296,41.58,
Department of Health,Salisbury NHS Foundation Trust,14-Aug-17,PATIENT APPLIANCES,Clinical Support,NHS LOGISTICS,1018078296,8.1,
Department of Health,Salisbury NHS Foundation Trust,14-Aug-17,PATIENT APPLIANCES,Clinical Support,NHS LOGISTICS,1018078296,53.27,
Department of Health,Salisbury NHS Foundation Trust,14-Aug-17,TISSUES HAND TOWELS & TOILET PAPER,Clinical Support,NHS LOGISTICS,1018078296,7.45,
Department of Health,Salisbury NHS Foundation Trust,14-Aug-17,PATIENT APPLIANCES,Clinical Support,NHS LOGISTICS,1018078296,14.42,
Department of Health,Salisbury NHS Foundation Trust,14-Aug-17,SERVICES FROM NHS BODIES,Clinical Support,NHS LOGISTICS,1018078296,4.44,
Department of Health,Salisbury NHS Foundation Trust,14-Aug-17,DISPOSABLE THEATRE DRAPES WIPES,Clinical Support,NHS LOGISTICS,1018078296,3.24,
Department of Health,Salisbury NHS Foundation Trust,14-Aug-17,MEDSURGCONS - OTHER,Musculo-Skeletal,NHS LOGISTICS,1018078296,5.89,
Department of Health,Salisbury NHS Foundation Trust,14-Aug-17,MEDSURGCONS - OTHER,Musculo-Skeletal,NHS LOGISTICS,1018078296,3.91,
Department of Health,Salisbury NHS Foundation Trust,14-Aug-17,TISSUES HAND TOWELS & TOILET PAPER,Surgery,NHS LOGISTICS,1018078296,2.48,
Department of Health,Salisbury NHS Foundation Trust,14-Aug-17,OTHER MEDICAL SUPPLIES,Surgery,NHS LOGISTICS,1018078296,6.84,
Department of Health,Salisbury NHS Foundation Trust,14-Aug-17,TISSUES HAND TOWELS & TOILET PAPER,Surgery,NHS LOGISTICS,1018078296,6.21,
Department of Health,Salisbury NHS Foundation Trust,14-Aug-17,TISSUES HAND TOWELS & TOILET PAPER,Surgery,NHS LOGISTICS,1018078296,1.57,
Department of Health,Salisbury NHS Foundation Trust,14-Aug-17,TISSUES HAND TOWELS & TOILET PAPER,Musculo-Skeletal,NHS LOGISTICS,1018078296,3.72,
Department of Health,Salisbury NHS Foundation Trust,14-Aug-17,HEALTHCARE - WEAR,Musculo-Skeletal,NHS LOGISTICS,1018078296,5.63,
Department of Health,Salisbury NHS Foundation Trust,14-Aug-17,DRESSINGS - PRE STERILE,Musculo-Skeletal,NHS LOGISTICS,1018078296,2.68,
Department of Health,Salisbury NHS Foundation Trust,14-Aug-17,BAGS SACKS - OTHER,Surgery,NHS LOGISTICS,1018078296,2.04,
Department of Health,Salisbury NHS Foundation Trust,14-Aug-17,TISSUES HAND TOWELS & TOILET PAPER,Surgery,NHS LOGISTICS,1018078296,1.24,
Department of Health,Salisbury NHS Foundation Trust,14-Aug-17,DRESSINGS - PRE STERILE,Surgery,NHS LOGISTICS,1018078296,15.95,
Department of Health,Salisbury NHS Foundation Trust,14-Aug-17,TISSUES HAND TOWELS & TOILET PAPER,Surgery,NHS LOGISTICS,1018078296,0.39,
Department of Health,Salisbury NHS Foundation Trust,14-Aug-17,TISSUES HAND TOWELS & TOILET PAPER,Surgery,NHS LOGISTICS,1018078296,0.35,
Department of Health,Salisbury NHS Foundation Trust,14-Aug-17,DRESSINGS - PRE STERILE,Medicine,NHS LOGISTICS,1018078296,4.87,
Department of Health,Salisbury NHS Foundation Trust,14-Aug-17,DISPOSABLE THEATRE DRAPES WIPES,Medicine,NHS LOGISTICS,1018078296,3.24,
Department of Health,Salisbury NHS Foundation Trust,14-Aug-17,LAB EQUIP-LABORATORY APPARATUS,Clinical Support,NHS LOGISTICS,1018078296,85.07,
Department of Health,Salisbury NHS Foundation Trust,14-Aug-17,HEALTHCARE - WEAR,Clinical Support,NHS LOGISTICS,1018078296,43.33,
Department of Health,Salisbury NHS Foundation Trust,14-Aug-17,OTHER MEDICAL SUPPLIES,Surgery,NHS LOGISTICS,1018078296,16.83,
Department of Health,Salisbury NHS Foundation Trust,14-Aug-17,ADULTS HEARING AIDS,Surgery,NHS LOGISTICS,1018078296,391.75,
Department of Health,Salisbury NHS Foundation Trust,14-Aug-17,DRESSINGS - PRE STERILE,Musculo-Skeletal,NHS LOGISTICS,1018078296,81.82,
Department of Health,Salisbury NHS Foundation Trust,14-Aug-17,DRESSINGS - PRE STERILE,Musculo-Skeletal,NHS LOGISTICS,1018078296,135,
Department of Health,Salisbury NHS Foundation Trust,14-Aug-17,DRESSINGS - PRE STERILE,Musculo-Skeletal,NHS LOGISTICS,1018078296,151.82,
Department of Health,Salisbury NHS Foundation Trust,14-Aug-17,DRESSINGS - PRE STERILE,Musculo-Skeletal,NHS LOGISTICS,1018078296,179.68,
Department of Health,Salisbury NHS Foundation Trust,14-Aug-17,M & S EQUIPELECTEQUIPINST - OTHER,Musculo-Skeletal,NHS LOGISTICS,1018078296,391.75,
Department of Health,Salisbury NHS Foundation Trust,14-Aug-17,M & S EQUIPELECTEQUIPINST - OTHER,Clinical Support,NHS LOGISTICS,1018078296,67.75,
Department of Health,Salisbury NHS Foundation Trust,14-Aug-17,TISSUES HAND TOWELS & TOILET PAPER,Clinical Support,NHS LOGISTICS,1018078296,4.97,
Department of Health,Salisbury NHS Foundation Trust,14-Aug-17,TISSUES HAND TOWELS & TOILET PAPER,Clinical Support,NHS LOGISTICS,1018078296,1.57,
Department of Health,Salisbury NHS Foundation Trust,14-Aug-17,TISSUES HAND TOWELS & TOILET PAPER,Musculo-Skeletal,NHS LOGISTICS,1018078296,2.48,
Department of Health,Salisbury NHS Foundation Trust,14-Aug-17,TISSUES HAND TOWELS & TOILET PAPER,Musculo-Skeletal,NHS LOGISTICS,1018078296,1.17,
Department of Health,Salisbury NHS Foundation Trust,14-Aug-17,DISPOSABLE THEATRE DRAPES WIPES,Musculo-Skeletal,NHS LOGISTICS,1018078296,3.24,
Department of Health,Salisbury NHS Foundation Trust,14-Aug-17,DRESSINGS - PRE STERILE,Clinical Support,NHS LOGISTICS,1018078296,15.95,
Department of Health,Salisbury NHS Foundation Trust,14-Aug-17,MEDSURGCONS - OTHER,Clinical Support,NHS LOGISTICS,1018078296,7.67,
Department of Health,Salisbury NHS Foundation Trust,14-Aug-17,TISSUES HAND TOWELS & TOILET PAPER,Clinical Support,NHS LOGISTICS,1018078296,21.3,
Department of Health,Salisbury NHS Foundation Trust,14-Aug-17,MEDSURGCONS - OTHER,Clinical Support,NHS LOGISTICS,1018078296,21.83,
Department of Health,Salisbury NHS Foundation Trust,14-Aug-17,MEDSURGCONS - OTHER,Clinical Support,NHS LOGISTICS,1018078296,84.84,
Department of Health,Salisbury NHS Foundation Trust,14-Aug-17,MEDSURGCONS - OTHER,Clinical Support,NHS LOGISTICS,1018078296,84.84,
Department of Health,Salisbury NHS Foundation Trust,14-Aug-17,DRESSINGS - PRE STERILE,Clinical Support,NHS LOGISTICS,1018078296,18.26,
Department of Health,Salisbury NHS Foundation Trust,14-Aug-17,DRESSINGS - PRE STERILE,Clinical Support,NHS LOGISTICS,1018078296,29.33,
Department of Health,Salisbury NHS Foundation Trust,14-Aug-17,DRESSINGS - PRE STERILE,Clinical Support,NHS LOGISTICS,1018078296,9.25,
Department of Health,Salisbury NHS Foundation Trust,14-Aug-17,MED SURG EQUIP REP MAINT CLEANING,Clinical Support,NHS LOGISTICS,1018078296,195.17,
Department of Health,Salisbury NHS Foundation Trust,14-Aug-17,TOILETRIES PERSONAL HYGIENE PRODUCTS,Clinical Support,NHS LOGISTICS,1018078296,7.23,
Department of Health,Salisbury NHS Foundation Trust,14-Aug-17,DISPOSABLE THEATRE DRAPES WIPES,Clinical Support,NHS LOGISTICS,1018078296,3.24,
Department of Health,Salisbury NHS Foundation Trust,14-Aug-17,M & S EQUIPELECTEQUIPINST - OTHER,Medicine,NHS LOGISTICS,1018078296,4.35,
Department of Health,Salisbury NHS Foundation Trust,14-Aug-17,PATIENTS BEDWEAR UNISEX,Medicine,NHS LOGISTICS,1018078296,174.7,
Department of Health,Salisbury NHS Foundation Trust,14-Aug-17,PATIENTS BEDWEAR UNISEX,Medicine,NHS LOGISTICS,1018078296,232.93,
Department of Health,Salisbury NHS Foundation Trust,14-Aug-17,DRESSINGS - PRE STERILE,Surgery,NHS LOGISTICS,1018078296,8.37,
Department of Health,Salisbury NHS Foundation Trust,14-Aug-17,DRESSINGS - PRE STERILE,Surgery,NHS LOGISTICS,1018078296,3.11,
Department of Health,Salisbury NHS Foundation Trust,14-Aug-17,TISSUES HAND TOWELS & TOILET PAPER,Surgery,NHS LOGISTICS,1018078296,3.7,
Department of Health,Salisbury NHS Foundation Trust,14-Aug-17,TISSUES HAND TOWELS & TOILET PAPER,Surgery,NHS LOGISTICS,1018078296,7.45,
Department of Health,Salisbury NHS Foundation Trust,14-Aug-17,DRESSINGS - PRE STERILE,Medicine,NHS LOGISTICS,1018078296,15.28,
Department of Health,Salisbury NHS Foundation Trust,14-Aug-17,TISSUES HAND TOWELS & TOILET PAPER,Medicine,NHS LOGISTICS,1018078296,1.24,
Department of Health,Salisbury NHS Foundation Trust,14-Aug-17,OTHER MEDICAL SUPPLIES,Medicine,NHS LOGISTICS,1018078296,1.88,
Department of Health,Salisbury NHS Foundation Trust,14-Aug-17,PATIENT APPLIANCES,Medicine,NHS LOGISTICS,1018078296,3.35,
Department of Health,Salisbury NHS Foundation Trust,14-Aug-17,PATIENT APPLIANCES,Medicine,NHS LOGISTICS,1018078296,3.35,
Department of Health,Salisbury NHS Foundation Trust,14-Aug-17,PATIENT APPLIANCES,Medicine,NHS LOGISTICS,1018078296,3.35,
Department of Health,Salisbury NHS Foundation Trust,14-Aug-17,PATIENT APPLIANCES,Medicine,NHS LOGISTICS,1018078296,4.39,
Department of Health,Salisbury NHS Foundation Trust,14-Aug-17,M & S EQUIPELECTEQUIPINST - OTHER,Medicine,NHS LOGISTICS,1018078296,20.48,
Department of Health,Salisbury NHS Foundation Trust,14-Aug-17,TISSUES HAND TOWELS & TOILET PAPER,Medicine,NHS LOGISTICS,1018078296,0.35,
Department of Health,Salisbury NHS Foundation Trust,14-Aug-17,DRESSINGS - PRE STERILE,Surgery,NHS LOGISTICS,1018078296,7.64,
Department of Health,Salisbury NHS Foundation Trust,14-Aug-17,MEDSURGCONS - OTHER,Surgery,NHS LOGISTICS,1018078296,4.88,
Department of Health,Salisbury NHS Foundation Trust,14-Aug-17,MEDSURGCONS - OTHER,Surgery,NHS LOGISTICS,1018078296,9.69,
Department of Health,Salisbury NHS Foundation Trust,14-Aug-17,DISPOSABLE THEATRE DRAPES WIPES,Surgery,NHS LOGISTICS,1018078296,3.24,
Department of Health,Salisbury NHS Foundation Trust,14-Aug-17,TISSUES HAND TOWELS & TOILET PAPER,Medicine,NHS LOGISTICS,1018078296,1.24,
Department of Health,Salisbury NHS Foundation Trust,14-Aug-17,MEDSURGCONS - OTHER,Medicine,NHS LOGISTICS,1018078296,4.88,
Department of Health,Salisbury NHS Foundation Trust,14-Aug-17,TISSUES HAND TOWELS & TOILET PAPER,Medicine,NHS LOGISTICS,1018078296,0.78,
Department of Health,Salisbury NHS Foundation Trust,14-Aug-17,M & S EQUIPELECTEQUIPINST - OTHER,Medicine,NHS LOGISTICS,1018078296,3.08,
Department of Health,Salisbury NHS Foundation Trust,14-Aug-17,DRESSINGS - PRE STERILE,Medicine,NHS LOGISTICS,1018078296,0.35,
Department of Health,Salisbury NHS Foundation Trust,14-Aug-17,MEDSURGCONS - OTHER,Medicine,NHS LOGISTICS,1018078296,5.89,
Department of Health,Salisbury NHS Foundation Trust,14-Aug-17,MEDSURGCONS - OTHER,Medicine,NHS LOGISTICS,1018078296,3.91,
Department of Health,Salisbury NHS Foundation Trust,14-Aug-17,M & S EQUIPELECTEQUIPINST - OTHER,Musculo-Skeletal,NHS LOGISTICS,1018078296,14.5,
Department of Health,Salisbury NHS Foundation Trust,14-Aug-17,PATIENTS FOOTWEAR,Medicine,NHS LOGISTICS,1018078296,35.52,
Department of Health,Salisbury NHS Foundation Trust,14-Aug-17,DENTAL SURGERY SUNDRIES,Surgery,NHS LOGISTICS,1018078296,4.37,
Department of Health,Salisbury NHS Foundation Trust,14-Aug-17,BEVERAGES & AMBIENT FOOD,Surgery,NHS LOGISTICS,1018078296,10.81,
Department of Health,Salisbury NHS Foundation Trust,14-Aug-17,DISPOSABLE THEATRE DRAPES WIPES,Surgery,NHS LOGISTICS,1018078296,17.08,
Department of Health,Salisbury NHS Foundation Trust,14-Aug-17,MEDSURGCONS - OTHER,Surgery,NHS LOGISTICS,1018078296,19.53,
Department of Health,Salisbury NHS Foundation Trust,14-Aug-17,DRESSINGS - PRE STERILE,Surgery,NHS LOGISTICS,1018078296,11.68,
Department of Health,Salisbury NHS Foundation Trust,14-Aug-17,DRUGS,Surgery,NHS LOGISTICS,1018078296,9.82,
Department of Health,Salisbury NHS Foundation Trust,14-Aug-17,SURGICAL INSTRUMENTS: DISPOSABLE,Surgery,NHS LOGISTICS,1018078296,56.47,
Department of Health,Salisbury NHS Foundation Trust,14-Aug-17,SURGICAL INSTRUMENTS: GENERAL,Surgery,NHS LOGISTICS,1018078296,7.5,
Department of Health,Salisbury NHS Foundation Trust,14-Aug-17,OTHER MEDICAL SUPPLIES,Surgery,NHS LOGISTICS,1018078296,5.65,
Department of Health,Salisbury NHS Foundation Trust,14-Aug-17,BEVERAGES & AMBIENT FOOD,Surgery,NHS LOGISTICS,1018078296,28.68,
Department of Health,Salisbury NHS Foundation Trust,14-Aug-17,BEVERAGES & AMBIENT FOOD,Surgery,NHS LOGISTICS,1018078296,0.87,
Department of Health,Salisbury NHS Foundation Trust,14-Aug-17,COOKING & KITCHEN UTENSILS,Surgery,NHS LOGISTICS,1018078296,20.38,
Department of Health,Salisbury NHS Foundation Trust,14-Aug-17,DRESSINGS - PRE STERILE,Surgery,NHS LOGISTICS,1018078296,4.87,
Department of Health,Salisbury NHS Foundation Trust,14-Aug-17,SURGICAL INSTRUMENTS: GENERAL,Surgery,NHS LOGISTICS,1018078296,115.98,
Department of Health,Salisbury NHS Foundation Trust,14-Aug-17,OPTICAL  -  OTHER,Surgery,NHS LOGISTICS,1018078296,225,
Department of Health,Salisbury NHS Foundation Trust,14-Aug-17,CLEANING MATERIALS PRODUCTS SUNDRIES,Facilities,NHS LOGISTICS,1018078296,5.73,
Department of Health,Salisbury NHS Foundation Trust,14-Aug-17,DRESSINGS - PRE STERILE,Surgery,NHS LOGISTICS,1018078296,9.18,
Department of Health,Salisbury NHS Foundation Trust,14-Aug-17,DRESSINGS - PRE STERILE,Surgery,NHS LOGISTICS,1018078296,9.73,
Department of Health,Salisbury NHS Foundation Trust,14-Aug-17,PATIENT APPLIANCES,Surgery,NHS LOGISTICS,1018078296,3.35,
Department of Health,Salisbury NHS Foundation Trust,14-Aug-17,MEDSURGCONS - OTHER,Surgery,NHS LOGISTICS,1018078296,3.91,
Department of Health,Salisbury NHS Foundation Trust,14-Aug-17,TISSUES HAND TOWELS & TOILET PAPER,Surgery,NHS LOGISTICS,1018078296,1.05,
Department of Health,Salisbury NHS Foundation Trust,14-Aug-17,DISPOSABLE THEATRE DRAPES WIPES,Surgery,NHS LOGISTICS,1018078296,3.24,
Department of Health,Salisbury NHS Foundation Trust,14-Aug-17,DISPOSABLE THEATRE DRAPES WIPES,Surgery,NHS LOGISTICS,1018078296,21,
Department of Health,Salisbury NHS Foundation Trust,14-Aug-17,M & S EQUIPELECTEQUIPINST - OTHER,Medicine,NHS LOGISTICS,1018078296,160.12,
Department of Health,Salisbury NHS Foundation Trust,14-Aug-17,M & S EQUIPELECTEQUIPINST - OTHER,Clinical Support,NHS LOGISTICS,1018078296,319.58,
Department of Health,Salisbury NHS Foundation Trust,14-Aug-17,DRESSINGS - PRE STERILE,Medicine,NHS LOGISTICS,1018078296,7.64,
Department of Health,Salisbury NHS Foundation Trust,14-Aug-17,CLEANING MATERIALS PRODUCTS SUNDRIES,Medicine,NHS LOGISTICS,1018078296,5.53,
Department of Health,Salisbury NHS Foundation Trust,14-Aug-17,DRESSINGS - PRE STERILE,Medicine,NHS LOGISTICS,1018078296,15.95,
Department of Health,Salisbury NHS Foundation Trust,14-Aug-17,DRESSINGS - PRE STERILE,Medicine,NHS LOGISTICS,1018078296,2.43,
Department of Health,Salisbury NHS Foundation Trust,14-Aug-17,DRESSINGS - PRE STERILE,Medicine,NHS LOGISTICS,1018078296,24.91,
Department of Health,Salisbury NHS Foundation Trust,14-Aug-17,MEDSURGCONS - OTHER,Medicine,NHS LOGISTICS,1018078296,4.76,
Department of Health,Salisbury NHS Foundation Trust,14-Aug-17,SURGICAL INSTRUMENTS: GENERAL,Medicine,NHS LOGISTICS,1018078296,14.75,
Department of Health,Salisbury NHS Foundation Trust,14-Aug-17,OTHER MEDICAL SUPPLIES,Medicine,NHS LOGISTICS,1018078296,3.77,
Department of Health,Salisbury NHS Foundation Trust,14-Aug-17,SERVICES FROM NHS BODIES,Medicine,NHS LOGISTICS,1018078296,4.44,
Department of Health,Salisbury NHS Foundation Trust,14-Aug-17,MEDSURGCONS - OTHER,Medicine,NHS LOGISTICS,1018078296,3.78,
Department of Health,Salisbury NHS Foundation Trust,14-Aug-17,MEDSURGCONS - OTHER,Medicine,NHS LOGISTICS,1018078296,3.91,
Department of Health,Salisbury NHS Foundation Trust,14-Aug-17,TISSUES HAND TOWELS & TOILET PAPER,Medicine,NHS LOGISTICS,1018078296,1.05,
Department of Health,Salisbury NHS Foundation Trust,14-Aug-17,DISPOSABLE THEATRE DRAPES WIPES,Medicine,NHS LOGISTICS,1018078296,3.24,
Department of Health,Salisbury NHS Foundation Trust,14-Aug-17,MEDSURGCONS - OTHER,Medicine,NHS LOGISTICS,1018078296,138.42,
Department of Health,Salisbury NHS Foundation Trust,14-Aug-17,MEDSURGCONS - OTHER,Medicine,NHS LOGISTICS,1018078296,553.67,
Department of Health,Salisbury NHS Foundation Trust,14-Aug-17,MEDSURGCONS - OTHER,Medicine,NHS LOGISTICS,1018078296,205.63,
Department of Health,Salisbury NHS Foundation Trust,14-Aug-17,MEDSURGCONS - OTHER,Medicine,NHS LOGISTICS,1018078296,204.08,
Department of Health,Salisbury NHS Foundation Trust,14-Aug-17,MEDSURGCONS - OTHER,Medicine,NHS LOGISTICS,1018078296,197.71,
Department of Health,Salisbury NHS Foundation Trust,14-Aug-17,MEDSURGCONS - OTHER,Medicine,NHS LOGISTICS,1018078296,163.27,
Department of Health,Salisbury NHS Foundation Trust,14-Aug-17,MEDSURGCONS - OTHER,Medicine,NHS LOGISTICS,1018078296,326.53,
Department of Health,Salisbury NHS Foundation Trust,14-Aug-17,MEDSURGCONS - OTHER,Medicine,NHS LOGISTICS,1018078296,173.47,
Department of Health,Salisbury NHS Foundation Trust,14-Aug-17,MEDSURGCONS - OTHER,Medicine,NHS LOGISTICS,1018078296,244.9,
Department of Health,Salisbury NHS Foundation Trust,14-Aug-17,MEDSURGCONS - OTHER,Medicine,NHS LOGISTICS,1018078296,122.45,
Department of Health,Salisbury NHS Foundation Trust,14-Aug-17,MEDSURGCONS - OTHER,Medicine,NHS LOGISTICS,1018078296,612.25,
Department of Health,Salisbury NHS Foundation Trust,14-Aug-17,MEDSURGCONS - OTHER,Medicine,NHS LOGISTICS,1018078296,168.38,
Department of Health,Salisbury NHS Foundation Trust,14-Aug-17,PATIENT APPLIANCES,Medicine,NHS LOGISTICS,1018078296,117.5,
Department of Health,Salisbury NHS Foundation Trust,14-Aug-17,LAB EQUIP-ANALYSERS,Clinical Support,NHS LOGISTICS,1018078296,30.98,
Department of Health,Salisbury NHS Foundation Trust,14-Aug-17,DRESSINGS - PRE STERILE,Clinical Support,NHS LOGISTICS,1018078296,7.64,
Department of Health,Salisbury NHS Foundation Trust,14-Aug-17,MEDSURGCONS - OTHER,Clinical Support,NHS LOGISTICS,1018078296,45.36,
Department of Health,Salisbury NHS Foundation Trust,14-Aug-17,DRESSINGS - PRE STERILE,Clinical Support,NHS LOGISTICS,1018078296,0.75,
Department of Health,Salisbury NHS Foundation Trust,14-Aug-17,TISSUES HAND TOWELS & TOILET PAPER,Clinical Support,NHS LOGISTICS,1018078296,1.24,
Department of Health,Salisbury NHS Foundation Trust,14-Aug-17,CLEANING MATERIALS PRODUCTS SUNDRIES,Clinical Support,NHS LOGISTICS,1018078296,5.53,
Department of Health,Salisbury NHS Foundation Trust,14-Aug-17,DRESSINGS - PRE STERILE,Clinical Support,NHS LOGISTICS,1018078296,5.18,
Department of Health,Salisbury NHS Foundation Trust,14-Aug-17,OTHER MEDICAL SUPPLIES,Clinical Support,NHS LOGISTICS,1018078296,7.53,
Department of Health,Salisbury NHS Foundation Trust,14-Aug-17,MEDSURGCONS - OTHER,Clinical Support,NHS LOGISTICS,1018078296,19.4,
Department of Health,Salisbury NHS Foundation Trust,14-Aug-17,MEDSURGCONS - OTHER,Clinical Support,NHS LOGISTICS,1018078296,3.91,
Department of Health,Salisbury NHS Foundation Trust,14-Aug-17,M & S EQUIPELECTEQUIPINST - OTHER,Clinical Support,NHS LOGISTICS,1018078296,1.47,
Department of Health,Salisbury NHS Foundation Trust,14-Aug-17,DISPOSABLE THEATRE DRAPES WIPES,Clinical Support,NHS LOGISTICS,1018078296,6.48,
Department of Health,Salisbury NHS Foundation Trust,14-Aug-17,TISSUES HAND TOWELS & TOILET PAPER,Medicine,NHS LOGISTICS,1018078296,2.48,
Department of Health,Salisbury NHS Foundation Trust,14-Aug-17,CLEANING MATERIALS PRODUCTS SUNDRIES,Medicine,NHS LOGISTICS,1018078296,5.45,
Department of Health,Salisbury NHS Foundation Trust,14-Aug-17,CLEANING MATERIALS PRODUCTS SUNDRIES,Medicine,NHS LOGISTICS,1018078296,5.53,
Department of Health,Salisbury NHS Foundation Trust,14-Aug-17,DRESSINGS - PRE STERILE,Medicine,NHS LOGISTICS,1018078296,47.85,
Department of Health,Salisbury NHS Foundation Trust,14-Aug-17,DRESSINGS - PRE STERILE,Medicine,NHS LOGISTICS,1018078296,2.43,
Department of Health,Salisbury NHS Foundation Trust,14-Aug-17,OTHER MEDICAL SUPPLIES,Medicine,NHS LOGISTICS,1018078296,6.84,
Department of Health,Salisbury NHS Foundation Trust,14-Aug-17,OTHER MEDICAL SUPPLIES,Medicine,NHS LOGISTICS,1018078296,1.88,
Department of Health,Salisbury NHS Foundation Trust,14-Aug-17,TISSUES HAND TOWELS & TOILET PAPER,Medicine,NHS LOGISTICS,1018078296,0.35,
Department of Health,Salisbury NHS Foundation Trust,14-Aug-17,MED SURG EQUIP REP MAINT CLEANING,Medicine,NHS LOGISTICS,1018078296,10.97,
Department of Health,Salisbury NHS Foundation Trust,14-Aug-17,SURGICAL INSTRUMENTS: GENERAL,Medicine,NHS LOGISTICS,1018078296,14.23,
Department of Health,Salisbury NHS Foundation Trust,14-Aug-17,DISPOSABLE THEATRE DRAPES WIPES,Medicine,NHS LOGISTICS,1018078296,3.24,
Department of Health,Salisbury NHS Foundation Trust,14-Aug-17,DRESSINGS - PRE STERILE,Musculo-Skeletal,NHS LOGISTICS,1018078296,15.95,
Department of Health,Salisbury NHS Foundation Trust,14-Aug-17,TUBES,Musculo-Skeletal,NHS LOGISTICS,1018078296,6.85,
Department of Health,Salisbury NHS Foundation Trust,14-Aug-17,DRESSINGS - PRE STERILE,Musculo-Skeletal,NHS LOGISTICS,1018078296,136.38,
Department of Health,Salisbury NHS Foundation Trust,14-Aug-17,DRESSINGS - PRE STERILE,Musculo-Skeletal,NHS LOGISTICS,1018078296,253.04,
Department of Health,Salisbury NHS Foundation Trust,14-Aug-17,DRESSINGS - PRE STERILE,Musculo-Skeletal,NHS LOGISTICS,1018078296,299.46,
Department of Health,Salisbury NHS Foundation Trust,14-Aug-17,OTHER MEDICAL SUPPLIES,Medicine,NHS LOGISTICS,1018078296,1.88,
Department of Health,Salisbury NHS Foundation Trust,14-Aug-17,MEDSURGCONS - OTHER,Medicine,NHS LOGISTICS,1018078296,3.91,
Department of Health,Salisbury NHS Foundation Trust,14-Aug-17,TISSUES HAND TOWELS & TOILET PAPER,Medicine,NHS LOGISTICS,1018078296,1.05,
Department of Health,Salisbury NHS Foundation Trust,14-Aug-17,M & S EQUIPELECTEQUIPINST - OTHER,Medicine,NHS LOGISTICS,1018078296,1.47,
Department of Health,Salisbury NHS Foundation Trust,14-Aug-17,DISPOSABLE THEATRE DRAPES WIPES,Medicine,NHS LOGISTICS,1018078296,3.24,
Department of Health,Salisbury NHS Foundation Trust,14-Aug-17,DISPOSABLE THEATRE DRAPES WIPES,Medicine,NHS LOGISTICS,1018078296,7.7,
Department of Health,Salisbury NHS Foundation Trust,14-Aug-17,MEDSURGCONS - OTHER,Musculo-Skeletal,NHS LOGISTICS,1018078296,4.88,
Department of Health,Salisbury NHS Foundation Trust,14-Aug-17,OTHER MEDICAL SUPPLIES,Medicine,NHS LOGISTICS,1018078296,53.33,
Department of Health,Salisbury NHS Foundation Trust,14-Aug-17,BABY TEXTURE MODIFIED FOODS,Medicine,NHS LOGISTICS,1018078296,16.53,
Department of Health,Salisbury NHS Foundation Trust,14-Aug-17,MEDSURGCONS - OTHER,Surgery,NHS LOGISTICS,1018078296,30.42,
Department of Health,Salisbury NHS Foundation Trust,14-Aug-17,MEDSURGCONS - OTHER,Surgery,NHS LOGISTICS,1018078296,30.42,
Department of Health,Salisbury NHS Foundation Trust,14-Aug-17,OTHER MEDICAL SUPPLIES,Surgery,NHS LOGISTICS,1018078296,7.53,
Department of Health,Salisbury NHS Foundation Trust,14-Aug-17,MEDSURGCONS - OTHER,Surgery,NHS LOGISTICS,1018078296,13.57,
Department of Health,Salisbury NHS Foundation Trust,14-Aug-17,TOILETRIES PERSONAL HYGIENE PRODUCTS,Surgery,NHS LOGISTICS,1018078296,0.93,
Department of Health,Salisbury NHS Foundation Trust,14-Aug-17,M & S EQUIPELECTEQUIPINST - OTHER,Surgery,NHS LOGISTICS,1018078296,2.93,
Department of Health,Salisbury NHS Foundation Trust,14-Aug-17,OTHER MEDICAL SUPPLIES,Surgery,NHS LOGISTICS,1018078296,12.34,
Department of Health,Salisbury NHS Foundation Trust,14-Aug-17,MEDSURGCONS - OTHER,Surgery,NHS LOGISTICS,1018078296,5.34,
Department of Health,Salisbury NHS Foundation Trust,14-Aug-17,LAB EQUIP-LABORATORY APPARATUS,Surgery,NHS LOGISTICS,1018078296,4.61,
Department of Health,Salisbury NHS Foundation Trust,14-Aug-17,SURGICAL INSTRUMENTS: DISPOSABLE,Surgery,NHS LOGISTICS,1018078296,6,
Department of Health,Salisbury NHS Foundation Trust,14-Aug-17,COOKING & KITCHEN UTENSILS,Surgery,NHS LOGISTICS,1018078296,20.38,
Department of Health,Salisbury NHS Foundation Trust,14-Aug-17,DISPOSABLE THEATRE DRAPES WIPES,Surgery,NHS LOGISTICS,1018078296,85.19,
Department of Health,Salisbury NHS Foundation Trust,14-Aug-17,DISPOSABLE THEATRE DRAPES WIPES,Surgery,NHS LOGISTICS,1018078296,11.38,
Department of Health,Salisbury NHS Foundation Trust,14-Aug-17,DISPOSABLE THEATRE DRAPES WIPES,Surgery,NHS LOGISTICS,1018078296,33.35,
Department of Health,Salisbury NHS Foundation Trust,14-Aug-17,OTHER MEDICAL SUPPLIES,Surgery,NHS LOGISTICS,1018078296,15.07,
Department of Health,Salisbury NHS Foundation Trust,14-Aug-17,TISSUES HAND TOWELS & TOILET PAPER,Medicine,NHS LOGISTICS,1018078296,1.24,
Department of Health,Salisbury NHS Foundation Trust,14-Aug-17,CLEANING MATERIALS PRODUCTS SUNDRIES,Medicine,NHS LOGISTICS,1018078296,5.45,
Department of Health,Salisbury NHS Foundation Trust,14-Aug-17,CLEANING MATERIALS PRODUCTS SUNDRIES,Medicine,NHS LOGISTICS,1018078296,5.53,
Department of Health,Salisbury NHS Foundation Trust,14-Aug-17,DRESSINGS - PRE STERILE,Medicine,NHS LOGISTICS,1018078296,2.43,
Department of Health,Salisbury NHS Foundation Trust,14-Aug-17,MEDSURGCONS - OTHER,Medicine,NHS LOGISTICS,1018078296,57.78,
Department of Health,Salisbury NHS Foundation Trust,14-Aug-17,TUBES,Medicine,NHS LOGISTICS,1018078296,6.85,
Department of Health,Salisbury NHS Foundation Trust,14-Aug-17,PATIENT APPLIANCES,Medicine,NHS LOGISTICS,1018078296,4.39,
Department of Health,Salisbury NHS Foundation Trust,14-Aug-17,MEDSURGCONS - OTHER,Medicine,NHS LOGISTICS,1018078296,59.78,
Department of Health,Salisbury NHS Foundation Trust,14-Aug-17,MEDSURGCONS - OTHER,Medicine,NHS LOGISTICS,1018078296,5.89,
Department of Health,Salisbury NHS Foundation Trust,14-Aug-17,MEDSURGCONS - OTHER,Medicine,NHS LOGISTICS,1018078296,3.91,
Department of Health,Salisbury NHS Foundation Trust,14-Aug-17,DISPOSABLE THEATRE DRAPES WIPES,Medicine,NHS LOGISTICS,1018078296,3.24,
Department of Health,Salisbury NHS Foundation Trust,14-Aug-17,TISSUES HAND TOWELS & TOILET PAPER,Musculo-Skeletal,NHS LOGISTICS,1018078296,3.72,
Department of Health,Salisbury NHS Foundation Trust,14-Aug-17,OTHER MEDICAL SUPPLIES,Musculo-Skeletal,NHS LOGISTICS,1018078296,11.3,
Department of Health,Salisbury NHS Foundation Trust,14-Aug-17,MEDSURGCONS - OTHER,Musculo-Skeletal,NHS LOGISTICS,1018078296,3.91,
Department of Health,Salisbury NHS Foundation Trust,14-Aug-17,TISSUES HAND TOWELS & TOILET PAPER,Musculo-Skeletal,NHS LOGISTICS,1018078296,0.7,
Department of Health,Salisbury NHS Foundation Trust,14-Aug-17,DISPOSABLE THEATRE DRAPES WIPES,Musculo-Skeletal,NHS LOGISTICS,1018078296,23.1,
Department of Health,Salisbury NHS Foundation Trust,14-Aug-17,OTHER MEDICAL SUPPLIES,Medicine,NHS LOGISTICS,1018078296,58.33,
Department of Health,Salisbury NHS Foundation Trust,14-Aug-17,DISPOSABLE THEATRE DRAPES WIPES,Clinical Support,NHS LOGISTICS,1018078296,20.37,
Department of Health,Salisbury NHS Foundation Trust,14-Aug-17,M & S EQUIPELECTEQUIPINST - OTHER,Clinical Support,NHS LOGISTICS,1018078296,130.21,
Department of Health,Salisbury NHS Foundation Trust,14-Aug-17,TISSUES HAND TOWELS & TOILET PAPER,Clinical Support,NHS LOGISTICS,1018078296,2.48,
Department of Health,Salisbury NHS Foundation Trust,14-Aug-17,SURGICAL INSTRUMENTS: DISPOSABLE,Clinical Support,NHS LOGISTICS,1018078296,84.7,
Department of Health,Salisbury NHS Foundation Trust,14-Aug-17,OTHER MEDICAL SUPPLIES,Clinical Support,NHS LOGISTICS,1018078296,27.37,
Department of Health,Salisbury NHS Foundation Trust,14-Aug-17,DRESSINGS - PRE STERILE,Clinical Support,NHS LOGISTICS,1018078296,0.35,
Department of Health,Salisbury NHS Foundation Trust,14-Aug-17,DRESSINGS - PRE STERILE,Clinical Support,NHS LOGISTICS,1018078296,16.63,
Department of Health,Salisbury NHS Foundation Trust,14-Aug-17,TUBES,Musculo-Skeletal,NHS LOGISTICS,1018078296,6.85,
Department of Health,Salisbury NHS Foundation Trust,14-Aug-17,DRESSINGS - PRE STERILE,Musculo-Skeletal,NHS LOGISTICS,1018078296,6.16,
Department of Health,Salisbury NHS Foundation Trust,14-Aug-17,DRESSINGS - PRE STERILE,Musculo-Skeletal,NHS LOGISTICS,1018078296,1.12,
Department of Health,Salisbury NHS Foundation Trust,14-Aug-17,TISSUES HAND TOWELS & TOILET PAPER,Musculo-Skeletal,NHS LOGISTICS,1018078296,4.97,
Department of Health,Salisbury NHS Foundation Trust,14-Aug-17,DRESSINGS - PRE STERILE,Musculo-Skeletal,NHS LOGISTICS,1018078296,3.84,
Department of Health,Salisbury NHS Foundation Trust,14-Aug-17,TUBES,Musculo-Skeletal,NHS LOGISTICS,1018078296,6.85,
Department of Health,Salisbury NHS Foundation Trust,14-Aug-17,DRESSINGS - PRE STERILE,Musculo-Skeletal,NHS LOGISTICS,1018078296,8.6,
Department of Health,Salisbury NHS Foundation Trust,14-Aug-17,DISPOSABLE THEATRE DRAPES WIPES,Clinical Support,NHS LOGISTICS,1018078296,3.24,
Department of Health,Salisbury NHS Foundation Trust,14-Aug-17,TISSUES HAND TOWELS & TOILET PAPER,Clinical Support,NHS LOGISTICS,1018078296,3.72,
Department of Health,Salisbury NHS Foundation Trust,14-Aug-17,TISSUES HAND TOWELS & TOILET PAPER,Clinical Support,NHS LOGISTICS,1018078296,53.25,
Department of Health,Salisbury NHS Foundation Trust,14-Aug-17,DRESSINGS - PRE STERILE,Clinical Support,NHS LOGISTICS,1018078296,9.18,
Department of Health,Salisbury NHS Foundation Trust,14-Aug-17,DRESSINGS - PRE STERILE,Clinical Support,NHS LOGISTICS,1018078296,5.6,
Department of Health,Salisbury NHS Foundation Trust,14-Aug-17,DRESSINGS - PRE STERILE,Clinical Support,NHS LOGISTICS,1018078296,4.43,
Department of Health,Salisbury NHS Foundation Trust,14-Aug-17,NON DISPOSABLE BED LINEN,Clinical Support,NHS LOGISTICS,1018078296,35.5,
Department of Health,Salisbury NHS Foundation Trust,14-Aug-17,DRESSINGS - PRE STERILE,Medicine,NHS LOGISTICS,1018078296,7.64,
Department of Health,Salisbury NHS Foundation Trust,14-Aug-17,DRESSINGS - PRE STERILE,Medicine,NHS LOGISTICS,1018078296,3.21,
Department of Health,Salisbury NHS Foundation Trust,14-Aug-17,DRESSINGS - PRE STERILE,Medicine,NHS LOGISTICS,1018078296,6.13,
Department of Health,Salisbury NHS Foundation Trust,14-Aug-17,PATIENT APPLIANCES,Medicine,NHS LOGISTICS,1018078296,5.34,
Department of Health,Salisbury NHS Foundation Trust,14-Aug-17,DRESSINGS - PRE STERILE,Medicine,NHS LOGISTICS,1018078296,63.8,
Department of Health,Salisbury NHS Foundation Trust,14-Aug-17,DRESSINGS - PRE STERILE,Medicine,NHS LOGISTICS,1018078296,2.43,
Department of Health,Salisbury NHS Foundation Trust,14-Aug-17,DRESSINGS - PRE STERILE,Medicine,NHS LOGISTICS,1018078296,10.22,
Department of Health,Salisbury NHS Foundation Trust,14-Aug-17,MEDSURGCONS - OTHER,Medicine,NHS LOGISTICS,1018078296,19.53,
Department of Health,Salisbury NHS Foundation Trust,14-Aug-17,TUBES,Medicine,NHS LOGISTICS,1018078296,6.85,
Department of Health,Salisbury NHS Foundation Trust,14-Aug-17,MEDSURGCONS - OTHER,Medicine,NHS LOGISTICS,1018078296,0.78,
Department of Health,Salisbury NHS Foundation Trust,14-Aug-17,MEDSURGCONS - OTHER,Medicine,NHS LOGISTICS,1018078296,8.57,
Department of Health,Salisbury NHS Foundation Trust,14-Aug-17,PATIENT APPLIANCES,Medicine,NHS LOGISTICS,1018078296,16.1,
Department of Health,Salisbury NHS Foundation Trust,14-Aug-17,PATIENT APPLIANCES,Medicine,NHS LOGISTICS,1018078296,8.05,
Department of Health,Salisbury NHS Foundation Trust,14-Aug-17,PATIENT APPLIANCES,Medicine,NHS LOGISTICS,1018078296,4.03,
Department of Health,Salisbury NHS Foundation Trust,14-Aug-17,PATIENT APPLIANCES,Medicine,NHS LOGISTICS,1018078296,4.03,
Department of Health,Salisbury NHS Foundation Trust,14-Aug-17,PATIENT APPLIANCES,Medicine,NHS LOGISTICS,1018078296,4.03,
Department of Health,Salisbury NHS Foundation Trust,14-Aug-17,OTHER MEDICAL SUPPLIES,Medicine,NHS LOGISTICS,1018078296,1.88,
Department of Health,Salisbury NHS Foundation Trust,14-Aug-17,HABERDASHERY,Medicine,NHS LOGISTICS,1018078296,1.73,
Department of Health,Salisbury NHS Foundation Trust,14-Aug-17,MEDSURGCONS - OTHER,Medicine,NHS LOGISTICS,1018078296,7.75,
Department of Health,Salisbury NHS Foundation Trust,14-Aug-17,MEDSURGCONS - OTHER,Medicine,NHS LOGISTICS,1018078296,5.32,
Department of Health,Salisbury NHS Foundation Trust,14-Aug-17,SURGICAL INSTRUMENTS: GENERAL,Medicine,NHS LOGISTICS,1018078296,4.74,
Department of Health,Salisbury NHS Foundation Trust,14-Aug-17,DRESSINGS - PRE STERILE,Medicine,NHS LOGISTICS,1018078296,12.8,
Department of Health,Salisbury NHS Foundation Trust,14-Aug-17,M & S EQUIPELECTEQUIPINST - OTHER,Surgery,NHS LOGISTICS,1018078296,76.32,
Department of Health,Salisbury NHS Foundation Trust,14-Aug-17,TISSUES HAND TOWELS & TOILET PAPER,Surgery,NHS LOGISTICS,1018078296,3.72,
Department of Health,Salisbury NHS Foundation Trust,14-Aug-17,DISPOSABLE THEATRE DRAPES WIPES,Surgery,NHS LOGISTICS,1018078296,11.38,
Department of Health,Salisbury NHS Foundation Trust,14-Aug-17,SURGICAL INSTRUMENTS: GENERAL,Surgery,NHS LOGISTICS,1018078296,10.5,
Department of Health,Salisbury NHS Foundation Trust,14-Aug-17,OTHER MEDICAL SUPPLIES,Surgery,NHS LOGISTICS,1018078296,3.77,
Department of Health,Salisbury NHS Foundation Trust,14-Aug-17,DISPOSABLE THEATRE DRAPES WIPES,Surgery,NHS LOGISTICS,1018078296,4.97,
Department of Health,Salisbury NHS Foundation Trust,14-Aug-17,SURGICAL INSTRUMENTS: GENERAL,Surgery,NHS LOGISTICS,1018078296,115.98,
Department of Health,Salisbury NHS Foundation Trust,14-Aug-17,TISSUES HAND TOWELS & TOILET PAPER,Medicine,NHS LOGISTICS,1018078296,3.72,
Department of Health,Salisbury NHS Foundation Trust,14-Aug-17,TISSUES HAND TOWELS & TOILET PAPER,Medicine,NHS LOGISTICS,1018078296,10.65,
Department of Health,Salisbury NHS Foundation Trust,14-Aug-17,DRESSINGS - PRE STERILE,Musculo-Skeletal,NHS LOGISTICS,1018078296,6.42,
Department of Health,Salisbury NHS Foundation Trust,14-Aug-17,DRESSINGS - PRE STERILE,Musculo-Skeletal,NHS LOGISTICS,1018078296,9.18,
Department of Health,Salisbury NHS Foundation Trust,14-Aug-17,DRESSINGS - PRE STERILE,Musculo-Skeletal,NHS LOGISTICS,1018078296,30.03,
Department of Health,Salisbury NHS Foundation Trust,14-Aug-17,DRESSINGS - PRE STERILE,Musculo-Skeletal,NHS LOGISTICS,1018078296,30.03,
Department of Health,Salisbury NHS Foundation Trust,14-Aug-17,DRESSINGS - PRE STERILE,Musculo-Skeletal,NHS LOGISTICS,1018078296,20.25,
Department of Health,Salisbury NHS Foundation Trust,14-Aug-17,DRESSINGS - PRE STERILE,Musculo-Skeletal,NHS LOGISTICS,1018078296,21.88,
Department of Health,Salisbury NHS Foundation Trust,14-Aug-17,DRESSINGS - PRE STERILE,Musculo-Skeletal,NHS LOGISTICS,1018078296,21.88,
Department of Health,Salisbury NHS Foundation Trust,14-Aug-17,DRESSINGS - PRE STERILE,Musculo-Skeletal,NHS LOGISTICS,1018078296,50.05,
Department of Health,Salisbury NHS Foundation Trust,14-Aug-17,DRESSINGS - PRE STERILE,Musculo-Skeletal,NHS LOGISTICS,1018078296,25.03,
Department of Health,Salisbury NHS Foundation Trust,14-Aug-17,DRESSINGS - PRE STERILE,Musculo-Skeletal,NHS LOGISTICS,1018078296,12.6,
Department of Health,Salisbury NHS Foundation Trust,14-Aug-17,DRESSINGS - PRE STERILE,Musculo-Skeletal,NHS LOGISTICS,1018078296,8.79,
Department of Health,Salisbury NHS Foundation Trust,14-Aug-17,DRESSINGS - PRE STERILE,Musculo-Skeletal,NHS LOGISTICS,1018078296,3.43,
Department of Health,Salisbury NHS Foundation Trust,14-Aug-17,DRESSINGS - PRE STERILE,Musculo-Skeletal,NHS LOGISTICS,1018078296,7.63,
Department of Health,Salisbury NHS Foundation Trust,14-Aug-17,DRESSINGS - PRE STERILE,Musculo-Skeletal,NHS LOGISTICS,1018078296,15.27,
Department of Health,Salisbury NHS Foundation Trust,14-Aug-17,DISPOSABLE THEATRE DRAPES WIPES,Musculo-Skeletal,NHS LOGISTICS,1018078296,3.24,
Department of Health,Salisbury NHS Foundation Trust,14-Aug-17,LAB EQUIP-LABORATORY APPARATUS,Medicine,NHS LOGISTICS,1018078296,273.76,
Department of Health,Salisbury NHS Foundation Trust,14-Aug-17,ANAESTHETIC EQUIPMENT ACCESSORIES,Musculo-Skeletal,NHS LOGISTICS,1018078296,18.92,
Department of Health,Salisbury NHS Foundation Trust,14-Aug-17,TISSUES HAND TOWELS & TOILET PAPER,Surgery,NHS LOGISTICS,1018078296,1.24,
Department of Health,Salisbury NHS Foundation Trust,14-Aug-17,CLEANING MATERIALS PRODUCTS SUNDRIES,Surgery,NHS LOGISTICS,1018078296,5.45,
Department of Health,Salisbury NHS Foundation Trust,14-Aug-17,CLEANING MATERIALS PRODUCTS SUNDRIES,Surgery,NHS LOGISTICS,1018078296,5.53,
Department of Health,Salisbury NHS Foundation Trust,14-Aug-17,DRESSINGS - PRE STERILE,Surgery,NHS LOGISTICS,1018078296,9.18,
Department of Health,Salisbury NHS Foundation Trust,14-Aug-17,TUBES,Surgery,NHS LOGISTICS,1018078296,6.85,
Department of Health,Salisbury NHS Foundation Trust,14-Aug-17,OTHER MEDICAL SUPPLIES,Surgery,NHS LOGISTICS,1018078296,3.77,
Department of Health,Salisbury NHS Foundation Trust,14-Aug-17,PATIENT APPLIANCES,Surgery,NHS LOGISTICS,1018078296,6.7,
Department of Health,Salisbury NHS Foundation Trust,14-Aug-17,MEDSURGCONS - OTHER,Surgery,NHS LOGISTICS,1018078296,3.91,
Department of Health,Salisbury NHS Foundation Trust,14-Aug-17,TISSUES HAND TOWELS & TOILET PAPER,Surgery,NHS LOGISTICS,1018078296,0.35,
Department of Health,Salisbury NHS Foundation Trust,14-Aug-17,DISPOSABLE THEATRE DRAPES WIPES,Surgery,NHS LOGISTICS,1018078296,3.24,
Department of Health,Salisbury NHS Foundation Trust,14-Aug-17,DRESSINGS - PRE STERILE,Medicine,NHS LOGISTICS,1018078296,1.98,
Department of Health,Salisbury NHS Foundation Trust,14-Aug-17,MEDSURGCONS - OTHER,Musculo-Skeletal,NHS LOGISTICS,1018078296,42.93,
Department of Health,Salisbury NHS Foundation Trust,14-Aug-17,TISSUES HAND TOWELS & TOILET PAPER,Musculo-Skeletal,NHS LOGISTICS,1018078296,21,
Department of Health,Salisbury NHS Foundation Trust,14-Aug-17,NON DISPOSABLE BED LINEN,Musculo-Skeletal,NHS LOGISTICS,1018078296,33.18,
Department of Health,Salisbury NHS Foundation Trust,14-Aug-17,MEDSURGCONS - OTHER,Musculo-Skeletal,NHS LOGISTICS,1018078296,11.95,
Department of Health,Salisbury NHS Foundation Trust,14-Aug-17,DISPOSABLE THEATRE DRAPES WIPES,Musculo-Skeletal,NHS LOGISTICS,1018078296,25.93,
Department of Health,Salisbury NHS Foundation Trust,14-Aug-17,COOKING & KITCHEN UTENSILS,Clinical Support,NHS LOGISTICS,1018078296,13.61,
Department of Health,Salisbury NHS Foundation Trust,14-Aug-17,BABY TEXTURE MODIFIED FOODS,Clinical Support,NHS LOGISTICS,1018078296,13.17,
Department of Health,Salisbury NHS Foundation Trust,14-Aug-17,MEDSURGCONS - OTHER,Clinical Support,NHS LOGISTICS,1018078296,2.5,
Department of Health,Salisbury NHS Foundation Trust,14-Aug-17,BABY TEXTURE MODIFIED FOODS,Clinical Support,NHS LOGISTICS,1018078296,21.1,
Department of Health,Salisbury NHS Foundation Trust,14-Aug-17,MEDSURGCONS - OTHER,Clinical Support,NHS LOGISTICS,1018078296,7.57,
Department of Health,Salisbury NHS Foundation Trust,14-Aug-17,MEDSURGCONS - OTHER,Clinical Support,NHS LOGISTICS,1018078296,11.78,
Department of Health,Salisbury NHS Foundation Trust,14-Aug-17,BABY TEXTURE MODIFIED FOODS,Clinical Support,NHS LOGISTICS,1018078296,16.66,
Department of Health,Salisbury NHS Foundation Trust,14-Aug-17,MEDSURGCONS - OTHER,Surgery,NHS LOGISTICS,1018078296,43.48,
Department of Health,Salisbury NHS Foundation Trust,14-Aug-17,MEDSURGCONS - OTHER,Surgery,NHS LOGISTICS,1018078296,43.48,
Department of Health,Salisbury NHS Foundation Trust,14-Aug-17,BEVERAGES & AMBIENT FOOD,Surgery,NHS LOGISTICS,1018078296,4.17,
Department of Health,Salisbury NHS Foundation Trust,14-Aug-17,DRESSINGS - PRE STERILE,Surgery,NHS LOGISTICS,1018078296,15.95,
Department of Health,Salisbury NHS Foundation Trust,14-Aug-17,DRESSINGS - PRE STERILE,Surgery,NHS LOGISTICS,1018078296,5.6,
Department of Health,Salisbury NHS Foundation Trust,14-Aug-17,MEDSURGCONS - OTHER,Surgery,NHS LOGISTICS,1018078296,9.69,
Department of Health,Salisbury NHS Foundation Trust,14-Aug-17,MEDSURGCONS - OTHER,Surgery,NHS LOGISTICS,1018078296,3.91,
Department of Health,Salisbury NHS Foundation Trust,14-Aug-17,TOILETRIES PERSONAL HYGIENE PRODUCTS,Surgery,NHS LOGISTICS,1018078296,16.91,
Department of Health,Salisbury NHS Foundation Trust,14-Aug-17,PATIENT APPLIANCES,Surgery,NHS LOGISTICS,1018078296,3.35,
Department of Health,Salisbury NHS Foundation Trust,14-Aug-17,SERVICES FROM NHS BODIES,Surgery,NHS LOGISTICS,1018078296,4.44,
Department of Health,Salisbury NHS Foundation Trust,14-Aug-17,TISSUES HAND TOWELS & TOILET PAPER,Medicine,NHS LOGISTICS,1018078296,1.24,
Department of Health,Salisbury NHS Foundation Trust,14-Aug-17,DRESSINGS - PRE STERILE,Medicine,NHS LOGISTICS,1018078296,4.87,
Department of Health,Salisbury NHS Foundation Trust,14-Aug-17,TUBES,Medicine,NHS LOGISTICS,1018078296,6.85,
Department of Health,Salisbury NHS Foundation Trust,14-Aug-17,HEALTHCARE - WEAR,Medicine,NHS LOGISTICS,1018078296,31.95,
